{"text_format":"1","workbook":"xlsx","n_sheets":4,"sheets":["Hoja1","Dato_Empresas","DANE","Mcpio"],"not_rendered":{"charts":0,"images":0,"macros":1,"external_links":0,"defined_names":8,"comments":1,"pivot_tables":0},"unopened":[],"bounds":{"document_bytes":16777216,"sheet_cells":100000,"rows_first":2000,"rows_last":500,"rows_between":2000,"halvings":0,"cell_chars":16384,"cell_head_chars":4096},"cells_cut":0,"cells_raw":0,"read":"whole","date_system":"1900"}

{"sheet":"Hoja1","index":0,"n_rows":153,"n_cols":22,"rows_kept":153,"cut":false,"hidden":false,"merged":[[1,1,1,21],[2,1,2,21],[9,3,10,3],[9,16,10,16],[9,17,10,17],[9,9,10,9],[9,8,10,8],[9,4,10,4],[9,10,9,15],[9,21,10,21],[9,18,10,18],[4,0,4,1],[5,0,5,1],[9,1,10,1],[6,0,6,1],[3,6,3,8],[152,1,153,17],[9,20,10,20],[9,19,10,19],[9,7,10,7],[4,2,4,3],[4,6,4,8],[6,2,6,3],[6,6,6,8],[5,2,5,3],[9,5,10,5],[9,6,10,6],[9,2,10,2]]}
[]
[null,"Formato Reporte Información de Coberturas \nServicio Público Domiciliario de Distribución de Gas Combustible por Red"]
[null,"Ministerio de Minas y Energía - Dirección de Hidrocarburos"]
[null,null,null,null,null,"COD FSSRI",{"$f":"+IF(C5=\"\",\"\",VLOOKUP(C5,Dato_Empresas!A1:F78,6,0))","v":1324}]
["Empresa",null,"ALCANOS DE COLOMBIA S.A. E.S.P. ",null,null,"NIT",{"$f":"+IF(C5=\"\",\"\",VLOOKUP(C5,Dato_Empresas!A1:F78,2,0))","v":"891101577-4"},null,null,null,null,null,"Fecha de corte reporte información","2026-06-30"]
[]
["Responsable",null,{"$f":"+IF(C5=\"\",\"\",VLOOKUP(C5,Dato_Empresas!A1:E78,4,0))","v":"CAMILO ERNESTO LOZANO HERMIDA"},null,null,"Cargo",{"$f":"+IF(C5=\"\",\"\",VLOOKUP(C5,Dato_Empresas!A1:E78,5,0))","v":"Gerente General"}]
[]
[]
[null,"Mercado Relevante","Resolución aprobación \nCargos","Tecnología \n(GN, GNC, GNL, GLP Red)","Código \nDANE","Departamento","Municipio","Nuevo / Existente","Catastro \nPoblación","Total Residenciales \nAnillados","Usuarios Residenciales Conectados",null,null,null,null,null,"Total Comercial \nConectados","Total Industriales\n Conectados","Total Usuarios Conectados","Cobertura Residencial Potencial","Cobertura Residencial Efectiva","Observaciones"]
[null,null,null,null,null,null,null,null,null,null,"E1","E2","E3","E4","E5","E6"]
[null,null,null,null,null,{"$f":"+IF(E12=\"\",\"\",VLOOKUP(E12,DANE!$A$2:$E$1123,2,0))","v":""},{"$f":"+IF(E12=\"\",\"\",VLOOKUP(E12,DANE!$A$2:$E$1123,4,0))","v":""},null,null,null,null,null,null,null,null,null,null,null,{"$f":"+IF(SUM(K12:R12)=0,\"\",SUM(K12:R12))","v":""},{"$f":"+IFERROR(J12/I12,\"\")","v":""},{"$f":"+IFERROR(SUM(K12:P12)/I12,\"\")","v":""}]
[null,null,null,null,null,{"$f":"+IF(E13=\"\",\"\",VLOOKUP(E13,DANE!$A$2:$E$1123,2,0))","v":""},{"$f":"+IF(E13=\"\",\"\",VLOOKUP(E13,DANE!$A$2:$E$1123,4,0))","v":""},null,null,null,null,null,null,null,null,null,null,null,{"$f":"+IF(SUM(K13:R13)=0,\"\",SUM(K13:R13))","v":""},{"$f":"+IFERROR(J13/I13,\"\")","v":""},{"$f":"+IFERROR(SUM(K13:P13)/I13,\"\")","v":""}]
[null,null,null,null,null,{"$f":"+IF(E14=\"\",\"\",VLOOKUP(E14,DANE!$A$2:$E$1123,2,0))","v":""},{"$f":"+IF(E14=\"\",\"\",VLOOKUP(E14,DANE!$A$2:$E$1123,4,0))","v":""},null,null,null,null,null,null,null,null,null,null,null,"","",""]
[null,null,null,null,null,{"$f":"+IF(E15=\"\",\"\",VLOOKUP(E15,DANE!$A$2:$E$1123,2,0))","v":""},{"$f":"+IF(E15=\"\",\"\",VLOOKUP(E15,DANE!$A$2:$E$1123,4,0))","v":""},null,null,null,null,null,null,null,null,null,null,null,"","",""]
[null,null,null,null,null,{"$f":"+IF(E16=\"\",\"\",VLOOKUP(E16,DANE!$A$2:$E$1123,2,0))","v":""},{"$f":"+IF(E16=\"\",\"\",VLOOKUP(E16,DANE!$A$2:$E$1123,4,0))","v":""},null,null,null,null,null,null,null,null,null,null,null,"","",""]
[null,null,null,null,null,{"$f":"+IF(E17=\"\",\"\",VLOOKUP(E17,DANE!$A$2:$E$1123,2,0))","v":""},{"$f":"+IF(E17=\"\",\"\",VLOOKUP(E17,DANE!$A$2:$E$1123,4,0))","v":""},null,null,null,null,null,null,null,null,null,null,null,"","",""]
[null,null,null,null,null,{"$f":"+IF(E18=\"\",\"\",VLOOKUP(E18,DANE!$A$2:$E$1123,2,0))","v":""},{"$f":"+IF(E18=\"\",\"\",VLOOKUP(E18,DANE!$A$2:$E$1123,4,0))","v":""},null,null,null,null,null,null,null,null,null,null,null,"","",""]
[null,null,null,null,null,{"$f":"+IF(E19=\"\",\"\",VLOOKUP(E19,DANE!$A$2:$E$1123,2,0))","v":""},{"$f":"+IF(E19=\"\",\"\",VLOOKUP(E19,DANE!$A$2:$E$1123,4,0))","v":""},null,null,null,null,null,null,null,null,null,null,null,"","",""]
[null,null,null,null,null,{"$f":"+IF(E20=\"\",\"\",VLOOKUP(E20,DANE!$A$2:$E$1123,2,0))","v":""},{"$f":"+IF(E20=\"\",\"\",VLOOKUP(E20,DANE!$A$2:$E$1123,4,0))","v":""},null,null,null,null,null,null,null,null,null,null,null,"","",""]
[null,null,null,null,null,{"$f":"+IF(E21=\"\",\"\",VLOOKUP(E21,DANE!$A$2:$E$1123,2,0))","v":""},{"$f":"+IF(E21=\"\",\"\",VLOOKUP(E21,DANE!$A$2:$E$1123,4,0))","v":""},null,null,null,null,null,null,null,null,null,null,null,"","",""]
[null,null,null,null,null,{"$f":"+IF(E22=\"\",\"\",VLOOKUP(E22,DANE!$A$2:$E$1123,2,0))","v":""},{"$f":"+IF(E22=\"\",\"\",VLOOKUP(E22,DANE!$A$2:$E$1123,4,0))","v":""},null,null,null,null,null,null,null,null,null,null,null,"","",""]
[null,null,null,null,null,{"$f":"+IF(E23=\"\",\"\",VLOOKUP(E23,DANE!$A$2:$E$1123,2,0))","v":""},{"$f":"+IF(E23=\"\",\"\",VLOOKUP(E23,DANE!$A$2:$E$1123,4,0))","v":""},null,null,null,null,null,null,null,null,null,null,null,"","",""]
[null,null,null,null,null,{"$f":"+IF(E24=\"\",\"\",VLOOKUP(E24,DANE!$A$2:$E$1123,2,0))","v":""},{"$f":"+IF(E24=\"\",\"\",VLOOKUP(E24,DANE!$A$2:$E$1123,4,0))","v":""},null,null,null,null,null,null,null,null,null,null,null,"","",""]
[null,null,null,null,null,{"$f":"+IF(E25=\"\",\"\",VLOOKUP(E25,DANE!$A$2:$E$1123,2,0))","v":""},{"$f":"+IF(E25=\"\",\"\",VLOOKUP(E25,DANE!$A$2:$E$1123,4,0))","v":""},null,null,null,null,null,null,null,null,null,null,null,"","",""]
[null,null,null,null,null,{"$f":"+IF(E26=\"\",\"\",VLOOKUP(E26,DANE!$A$2:$E$1123,2,0))","v":""},{"$f":"+IF(E26=\"\",\"\",VLOOKUP(E26,DANE!$A$2:$E$1123,4,0))","v":""},null,null,null,null,null,null,null,null,null,null,null,"","",""]
[null,null,null,null,null,{"$f":"+IF(E27=\"\",\"\",VLOOKUP(E27,DANE!$A$2:$E$1123,2,0))","v":""},{"$f":"+IF(E27=\"\",\"\",VLOOKUP(E27,DANE!$A$2:$E$1123,4,0))","v":""},null,null,null,null,null,null,null,null,null,null,null,"","",""]
[null,null,null,null,null,{"$f":"+IF(E28=\"\",\"\",VLOOKUP(E28,DANE!$A$2:$E$1123,2,0))","v":""},{"$f":"+IF(E28=\"\",\"\",VLOOKUP(E28,DANE!$A$2:$E$1123,4,0))","v":""},null,null,null,null,null,null,null,null,null,null,null,"","",""]
[null,null,null,null,null,{"$f":"+IF(E29=\"\",\"\",VLOOKUP(E29,DANE!$A$2:$E$1123,2,0))","v":""},{"$f":"+IF(E29=\"\",\"\",VLOOKUP(E29,DANE!$A$2:$E$1123,4,0))","v":""},null,null,null,null,null,null,null,null,null,null,null,"","",""]
[null,null,null,null,null,{"$f":"+IF(E30=\"\",\"\",VLOOKUP(E30,DANE!$A$2:$E$1123,2,0))","v":""},{"$f":"+IF(E30=\"\",\"\",VLOOKUP(E30,DANE!$A$2:$E$1123,4,0))","v":""},null,null,null,null,null,null,null,null,null,null,null,"","",""]
[null,null,null,null,null,{"$f":"+IF(E31=\"\",\"\",VLOOKUP(E31,DANE!$A$2:$E$1123,2,0))","v":""},{"$f":"+IF(E31=\"\",\"\",VLOOKUP(E31,DANE!$A$2:$E$1123,4,0))","v":""},null,null,null,null,null,null,null,null,null,null,null,"","",""]
[null,null,null,null,null,{"$f":"+IF(E32=\"\",\"\",VLOOKUP(E32,DANE!$A$2:$E$1123,2,0))","v":""},{"$f":"+IF(E32=\"\",\"\",VLOOKUP(E32,DANE!$A$2:$E$1123,4,0))","v":""},null,null,null,null,null,null,null,null,null,null,null,"","",""]
[null,null,null,null,null,{"$f":"+IF(E33=\"\",\"\",VLOOKUP(E33,DANE!$A$2:$E$1123,2,0))","v":""},{"$f":"+IF(E33=\"\",\"\",VLOOKUP(E33,DANE!$A$2:$E$1123,4,0))","v":""},null,null,null,null,null,null,null,null,null,null,null,"","",""]
[null,null,null,null,null,{"$f":"+IF(E34=\"\",\"\",VLOOKUP(E34,DANE!$A$2:$E$1123,2,0))","v":""},{"$f":"+IF(E34=\"\",\"\",VLOOKUP(E34,DANE!$A$2:$E$1123,4,0))","v":""},null,null,null,null,null,null,null,null,null,null,null,"","",""]
[null,null,null,null,null,{"$f":"+IF(E35=\"\",\"\",VLOOKUP(E35,DANE!$A$2:$E$1123,2,0))","v":""},{"$f":"+IF(E35=\"\",\"\",VLOOKUP(E35,DANE!$A$2:$E$1123,4,0))","v":""},null,null,null,null,null,null,null,null,null,null,null,"","",""]
[null,null,null,null,null,{"$f":"+IF(E36=\"\",\"\",VLOOKUP(E36,DANE!$A$2:$E$1123,2,0))","v":""},{"$f":"+IF(E36=\"\",\"\",VLOOKUP(E36,DANE!$A$2:$E$1123,4,0))","v":""},null,null,null,null,null,null,null,null,null,null,null,"","",""]
[null,null,null,null,null,{"$f":"+IF(E37=\"\",\"\",VLOOKUP(E37,DANE!$A$2:$E$1123,2,0))","v":""},{"$f":"+IF(E37=\"\",\"\",VLOOKUP(E37,DANE!$A$2:$E$1123,4,0))","v":""},null,null,null,null,null,null,null,null,null,null,null,"","",""]
[null,null,null,null,null,{"$f":"+IF(E38=\"\",\"\",VLOOKUP(E38,DANE!$A$2:$E$1123,2,0))","v":""},{"$f":"+IF(E38=\"\",\"\",VLOOKUP(E38,DANE!$A$2:$E$1123,4,0))","v":""},null,null,null,null,null,null,null,null,null,null,null,"","",""]
[null,null,null,null,null,{"$f":"+IF(E39=\"\",\"\",VLOOKUP(E39,DANE!$A$2:$E$1123,2,0))","v":""},{"$f":"+IF(E39=\"\",\"\",VLOOKUP(E39,DANE!$A$2:$E$1123,4,0))","v":""},null,null,null,null,null,null,null,null,null,null,null,"","",""]
[null,null,null,null,null,{"$f":"+IF(E40=\"\",\"\",VLOOKUP(E40,DANE!$A$2:$E$1123,2,0))","v":""},{"$f":"+IF(E40=\"\",\"\",VLOOKUP(E40,DANE!$A$2:$E$1123,4,0))","v":""},null,null,null,null,null,null,null,null,null,null,null,"","",""]
[null,null,null,null,null,{"$f":"+IF(E41=\"\",\"\",VLOOKUP(E41,DANE!$A$2:$E$1123,2,0))","v":""},{"$f":"+IF(E41=\"\",\"\",VLOOKUP(E41,DANE!$A$2:$E$1123,4,0))","v":""},null,null,null,null,null,null,null,null,null,null,null,"","",""]
[null,null,null,null,null,{"$f":"+IF(E42=\"\",\"\",VLOOKUP(E42,DANE!$A$2:$E$1123,2,0))","v":""},{"$f":"+IF(E42=\"\",\"\",VLOOKUP(E42,DANE!$A$2:$E$1123,4,0))","v":""},null,null,null,null,null,null,null,null,null,null,null,"","",""]
[null,null,null,null,null,{"$f":"+IF(E43=\"\",\"\",VLOOKUP(E43,DANE!$A$2:$E$1123,2,0))","v":""},{"$f":"+IF(E43=\"\",\"\",VLOOKUP(E43,DANE!$A$2:$E$1123,4,0))","v":""},null,null,null,null,null,null,null,null,null,null,null,"","",""]
[null,null,null,null,null,{"$f":"+IF(E44=\"\",\"\",VLOOKUP(E44,DANE!$A$2:$E$1123,2,0))","v":""},{"$f":"+IF(E44=\"\",\"\",VLOOKUP(E44,DANE!$A$2:$E$1123,4,0))","v":""},null,null,null,null,null,null,null,null,null,null,null,"","",""]
[null,null,null,null,null,{"$f":"+IF(E45=\"\",\"\",VLOOKUP(E45,DANE!$A$2:$E$1123,2,0))","v":""},{"$f":"+IF(E45=\"\",\"\",VLOOKUP(E45,DANE!$A$2:$E$1123,4,0))","v":""},null,null,null,null,null,null,null,null,null,null,null,"","",""]
[null,null,null,null,null,{"$f":"+IF(E46=\"\",\"\",VLOOKUP(E46,DANE!$A$2:$E$1123,2,0))","v":""},{"$f":"+IF(E46=\"\",\"\",VLOOKUP(E46,DANE!$A$2:$E$1123,4,0))","v":""},null,null,null,null,null,null,null,null,null,null,null,"","",""]
[null,null,null,null,null,{"$f":"+IF(E47=\"\",\"\",VLOOKUP(E47,DANE!$A$2:$E$1123,2,0))","v":""},{"$f":"+IF(E47=\"\",\"\",VLOOKUP(E47,DANE!$A$2:$E$1123,4,0))","v":""},null,null,null,null,null,null,null,null,null,null,null,"","",""]
[null,null,null,null,null,{"$f":"+IF(E48=\"\",\"\",VLOOKUP(E48,DANE!$A$2:$E$1123,2,0))","v":""},{"$f":"+IF(E48=\"\",\"\",VLOOKUP(E48,DANE!$A$2:$E$1123,4,0))","v":""},null,null,null,null,null,null,null,null,null,null,null,"","",""]
[null,null,null,null,null,{"$f":"+IF(E49=\"\",\"\",VLOOKUP(E49,DANE!$A$2:$E$1123,2,0))","v":""},{"$f":"+IF(E49=\"\",\"\",VLOOKUP(E49,DANE!$A$2:$E$1123,4,0))","v":""},null,null,null,null,null,null,null,null,null,null,null,"","",""]
[null,null,null,null,null,{"$f":"+IF(E50=\"\",\"\",VLOOKUP(E50,DANE!$A$2:$E$1123,2,0))","v":""},{"$f":"+IF(E50=\"\",\"\",VLOOKUP(E50,DANE!$A$2:$E$1123,4,0))","v":""},null,null,null,null,null,null,null,null,null,null,null,"","",""]
[null,null,null,null,null,{"$f":"+IF(E51=\"\",\"\",VLOOKUP(E51,DANE!$A$2:$E$1123,2,0))","v":""},{"$f":"+IF(E51=\"\",\"\",VLOOKUP(E51,DANE!$A$2:$E$1123,4,0))","v":""},null,null,null,null,null,null,null,null,null,null,null,"","",""]
[null,null,null,null,null,{"$f":"+IF(E52=\"\",\"\",VLOOKUP(E52,DANE!$A$2:$E$1123,2,0))","v":""},{"$f":"+IF(E52=\"\",\"\",VLOOKUP(E52,DANE!$A$2:$E$1123,4,0))","v":""},null,null,null,null,null,null,null,null,null,null,null,"","",""]
[null,null,null,null,null,{"$f":"+IF(E53=\"\",\"\",VLOOKUP(E53,DANE!$A$2:$E$1123,2,0))","v":""},{"$f":"+IF(E53=\"\",\"\",VLOOKUP(E53,DANE!$A$2:$E$1123,4,0))","v":""},null,null,null,null,null,null,null,null,null,null,null,"","",""]
[null,null,null,null,null,{"$f":"+IF(E54=\"\",\"\",VLOOKUP(E54,DANE!$A$2:$E$1123,2,0))","v":""},{"$f":"+IF(E54=\"\",\"\",VLOOKUP(E54,DANE!$A$2:$E$1123,4,0))","v":""},null,null,null,null,null,null,null,null,null,null,null,"","",""]
[null,null,null,null,null,{"$f":"+IF(E55=\"\",\"\",VLOOKUP(E55,DANE!$A$2:$E$1123,2,0))","v":""},{"$f":"+IF(E55=\"\",\"\",VLOOKUP(E55,DANE!$A$2:$E$1123,4,0))","v":""},null,null,null,null,null,null,null,null,null,null,null,"","",""]
[null,null,null,null,null,{"$f":"+IF(E56=\"\",\"\",VLOOKUP(E56,DANE!$A$2:$E$1123,2,0))","v":""},{"$f":"+IF(E56=\"\",\"\",VLOOKUP(E56,DANE!$A$2:$E$1123,4,0))","v":""},null,null,null,null,null,null,null,null,null,null,null,"","",""]
[null,null,null,null,null,{"$f":"+IF(E57=\"\",\"\",VLOOKUP(E57,DANE!$A$2:$E$1123,2,0))","v":""},{"$f":"+IF(E57=\"\",\"\",VLOOKUP(E57,DANE!$A$2:$E$1123,4,0))","v":""},null,null,null,null,null,null,null,null,null,null,null,"","",""]
[null,null,null,null,null,{"$f":"+IF(E58=\"\",\"\",VLOOKUP(E58,DANE!$A$2:$E$1123,2,0))","v":""},{"$f":"+IF(E58=\"\",\"\",VLOOKUP(E58,DANE!$A$2:$E$1123,4,0))","v":""},null,null,null,null,null,null,null,null,null,null,null,"","",""]
[null,null,null,null,null,{"$f":"+IF(E59=\"\",\"\",VLOOKUP(E59,DANE!$A$2:$E$1123,2,0))","v":""},{"$f":"+IF(E59=\"\",\"\",VLOOKUP(E59,DANE!$A$2:$E$1123,4,0))","v":""},null,null,null,null,null,null,null,null,null,null,null,"","",""]
[null,null,null,null,null,{"$f":"+IF(E60=\"\",\"\",VLOOKUP(E60,DANE!$A$2:$E$1123,2,0))","v":""},{"$f":"+IF(E60=\"\",\"\",VLOOKUP(E60,DANE!$A$2:$E$1123,4,0))","v":""},null,null,null,null,null,null,null,null,null,null,null,"","",""]
[null,null,null,null,null,{"$f":"+IF(E61=\"\",\"\",VLOOKUP(E61,DANE!$A$2:$E$1123,2,0))","v":""},{"$f":"+IF(E61=\"\",\"\",VLOOKUP(E61,DANE!$A$2:$E$1123,4,0))","v":""},null,null,null,null,null,null,null,null,null,null,null,"","",""]
[null,null,null,null,null,{"$f":"+IF(E62=\"\",\"\",VLOOKUP(E62,DANE!$A$2:$E$1123,2,0))","v":""},{"$f":"+IF(E62=\"\",\"\",VLOOKUP(E62,DANE!$A$2:$E$1123,4,0))","v":""},null,null,null,null,null,null,null,null,null,null,null,"","",""]
[null,null,null,null,null,{"$f":"+IF(E63=\"\",\"\",VLOOKUP(E63,DANE!$A$2:$E$1123,2,0))","v":""},{"$f":"+IF(E63=\"\",\"\",VLOOKUP(E63,DANE!$A$2:$E$1123,4,0))","v":""},null,null,null,null,null,null,null,null,null,null,null,"","",""]
[null,null,null,null,null,{"$f":"+IF(E64=\"\",\"\",VLOOKUP(E64,DANE!$A$2:$E$1123,2,0))","v":""},{"$f":"+IF(E64=\"\",\"\",VLOOKUP(E64,DANE!$A$2:$E$1123,4,0))","v":""},null,null,null,null,null,null,null,null,null,null,null,"","",""]
[null,null,null,null,null,{"$f":"+IF(E65=\"\",\"\",VLOOKUP(E65,DANE!$A$2:$E$1123,2,0))","v":""},{"$f":"+IF(E65=\"\",\"\",VLOOKUP(E65,DANE!$A$2:$E$1123,4,0))","v":""},null,null,null,null,null,null,null,null,null,null,null,"","",""]
[null,null,null,null,null,{"$f":"+IF(E66=\"\",\"\",VLOOKUP(E66,DANE!$A$2:$E$1123,2,0))","v":""},{"$f":"+IF(E66=\"\",\"\",VLOOKUP(E66,DANE!$A$2:$E$1123,4,0))","v":""},null,null,null,null,null,null,null,null,null,null,null,"","",""]
[null,null,null,null,null,{"$f":"+IF(E67=\"\",\"\",VLOOKUP(E67,DANE!$A$2:$E$1123,2,0))","v":""},{"$f":"+IF(E67=\"\",\"\",VLOOKUP(E67,DANE!$A$2:$E$1123,4,0))","v":""},null,null,null,null,null,null,null,null,null,null,null,"","",""]
[null,null,null,null,null,{"$f":"+IF(E68=\"\",\"\",VLOOKUP(E68,DANE!$A$2:$E$1123,2,0))","v":""},{"$f":"+IF(E68=\"\",\"\",VLOOKUP(E68,DANE!$A$2:$E$1123,4,0))","v":""},null,null,null,null,null,null,null,null,null,null,null,"","",""]
[null,null,null,null,null,{"$f":"+IF(E69=\"\",\"\",VLOOKUP(E69,DANE!$A$2:$E$1123,2,0))","v":""},{"$f":"+IF(E69=\"\",\"\",VLOOKUP(E69,DANE!$A$2:$E$1123,4,0))","v":""},null,null,null,null,null,null,null,null,null,null,null,"","",""]
[null,null,null,null,null,{"$f":"+IF(E70=\"\",\"\",VLOOKUP(E70,DANE!$A$2:$E$1123,2,0))","v":""},{"$f":"+IF(E70=\"\",\"\",VLOOKUP(E70,DANE!$A$2:$E$1123,4,0))","v":""},null,null,null,null,null,null,null,null,null,null,null,"","",""]
[null,null,null,null,null,{"$f":"+IF(E71=\"\",\"\",VLOOKUP(E71,DANE!$A$2:$E$1123,2,0))","v":""},{"$f":"+IF(E71=\"\",\"\",VLOOKUP(E71,DANE!$A$2:$E$1123,4,0))","v":""},null,null,null,null,null,null,null,null,null,null,null,"","",""]
[null,null,null,null,null,{"$f":"+IF(E72=\"\",\"\",VLOOKUP(E72,DANE!$A$2:$E$1123,2,0))","v":""},{"$f":"+IF(E72=\"\",\"\",VLOOKUP(E72,DANE!$A$2:$E$1123,4,0))","v":""},null,null,null,null,null,null,null,null,null,null,null,"","",""]
[null,null,null,null,null,{"$f":"+IF(E73=\"\",\"\",VLOOKUP(E73,DANE!$A$2:$E$1123,2,0))","v":""},{"$f":"+IF(E73=\"\",\"\",VLOOKUP(E73,DANE!$A$2:$E$1123,4,0))","v":""},null,null,null,null,null,null,null,null,null,null,null,"","",""]
[null,null,null,null,null,{"$f":"+IF(E74=\"\",\"\",VLOOKUP(E74,DANE!$A$2:$E$1123,2,0))","v":""},{"$f":"+IF(E74=\"\",\"\",VLOOKUP(E74,DANE!$A$2:$E$1123,4,0))","v":""},null,null,null,null,null,null,null,null,null,null,null,"","",""]
[null,null,null,null,null,{"$f":"+IF(E75=\"\",\"\",VLOOKUP(E75,DANE!$A$2:$E$1123,2,0))","v":""},{"$f":"+IF(E75=\"\",\"\",VLOOKUP(E75,DANE!$A$2:$E$1123,4,0))","v":""},null,null,null,null,null,null,null,null,null,null,null,"","",""]
[null,null,null,null,null,{"$f":"+IF(E76=\"\",\"\",VLOOKUP(E76,DANE!$A$2:$E$1123,2,0))","v":""},{"$f":"+IF(E76=\"\",\"\",VLOOKUP(E76,DANE!$A$2:$E$1123,4,0))","v":""},null,null,null,null,null,null,null,null,null,null,null,"","",""]
[null,null,null,null,null,{"$f":"+IF(E77=\"\",\"\",VLOOKUP(E77,DANE!$A$2:$E$1123,2,0))","v":""},{"$f":"+IF(E77=\"\",\"\",VLOOKUP(E77,DANE!$A$2:$E$1123,4,0))","v":""},null,null,null,null,null,null,null,null,null,null,null,{"$f":"+IF(SUM(K77:R77)=0,\"\",SUM(K77:R77))","v":""},{"$f":"+IFERROR(J77/I77,\"\")","v":""},{"$f":"+IFERROR(SUM(K77:P77)/I77,\"\")","v":""}]
[null,null,null,null,null,{"$f":"+IF(E78=\"\",\"\",VLOOKUP(E78,DANE!$A$2:$E$1123,2,0))","v":""},{"$f":"+IF(E78=\"\",\"\",VLOOKUP(E78,DANE!$A$2:$E$1123,4,0))","v":""},null,null,null,null,null,null,null,null,null,null,null,"","",""]
[null,null,null,null,null,{"$f":"+IF(E79=\"\",\"\",VLOOKUP(E79,DANE!$A$2:$E$1123,2,0))","v":""},{"$f":"+IF(E79=\"\",\"\",VLOOKUP(E79,DANE!$A$2:$E$1123,4,0))","v":""},null,null,null,null,null,null,null,null,null,null,null,"","",""]
[null,null,null,null,null,{"$f":"+IF(E80=\"\",\"\",VLOOKUP(E80,DANE!$A$2:$E$1123,2,0))","v":""},{"$f":"+IF(E80=\"\",\"\",VLOOKUP(E80,DANE!$A$2:$E$1123,4,0))","v":""},null,null,null,null,null,null,null,null,null,null,null,"","",""]
[null,null,null,null,null,{"$f":"+IF(E81=\"\",\"\",VLOOKUP(E81,DANE!$A$2:$E$1123,2,0))","v":""},{"$f":"+IF(E81=\"\",\"\",VLOOKUP(E81,DANE!$A$2:$E$1123,4,0))","v":""},null,null,null,null,null,null,null,null,null,null,null,"","",""]
[null,null,null,null,null,{"$f":"+IF(E82=\"\",\"\",VLOOKUP(E82,DANE!$A$2:$E$1123,2,0))","v":""},{"$f":"+IF(E82=\"\",\"\",VLOOKUP(E82,DANE!$A$2:$E$1123,4,0))","v":""},null,null,null,null,null,null,null,null,null,null,null,"","",""]
[null,null,null,null,null,{"$f":"+IF(E83=\"\",\"\",VLOOKUP(E83,DANE!$A$2:$E$1123,2,0))","v":""},{"$f":"+IF(E83=\"\",\"\",VLOOKUP(E83,DANE!$A$2:$E$1123,4,0))","v":""},null,null,null,null,null,null,null,null,null,null,null,"","",""]
[null,null,null,null,null,{"$f":"+IF(E84=\"\",\"\",VLOOKUP(E84,DANE!$A$2:$E$1123,2,0))","v":""},{"$f":"+IF(E84=\"\",\"\",VLOOKUP(E84,DANE!$A$2:$E$1123,4,0))","v":""},null,null,null,null,null,null,null,null,null,null,null,"","",""]
[null,null,null,null,null,{"$f":"+IF(E85=\"\",\"\",VLOOKUP(E85,DANE!$A$2:$E$1123,2,0))","v":""},{"$f":"+IF(E85=\"\",\"\",VLOOKUP(E85,DANE!$A$2:$E$1123,4,0))","v":""},null,null,null,null,null,null,null,null,null,null,null,"","",""]
[null,null,null,null,null,{"$f":"+IF(E86=\"\",\"\",VLOOKUP(E86,DANE!$A$2:$E$1123,2,0))","v":""},{"$f":"+IF(E86=\"\",\"\",VLOOKUP(E86,DANE!$A$2:$E$1123,4,0))","v":""},null,null,null,null,null,null,null,null,null,null,null,"","",""]
[null,null,null,null,null,{"$f":"+IF(E87=\"\",\"\",VLOOKUP(E87,DANE!$A$2:$E$1123,2,0))","v":""},{"$f":"+IF(E87=\"\",\"\",VLOOKUP(E87,DANE!$A$2:$E$1123,4,0))","v":""},null,null,null,null,null,null,null,null,null,null,null,"","",""]
[null,null,null,null,null,{"$f":"+IF(E88=\"\",\"\",VLOOKUP(E88,DANE!$A$2:$E$1123,2,0))","v":""},{"$f":"+IF(E88=\"\",\"\",VLOOKUP(E88,DANE!$A$2:$E$1123,4,0))","v":""},null,null,null,null,null,null,null,null,null,null,null,"","",""]
[null,null,null,null,null,{"$f":"+IF(E89=\"\",\"\",VLOOKUP(E89,DANE!$A$2:$E$1123,2,0))","v":""},{"$f":"+IF(E89=\"\",\"\",VLOOKUP(E89,DANE!$A$2:$E$1123,4,0))","v":""},null,null,null,null,null,null,null,null,null,null,null,"","",""]
[null,null,null,null,null,{"$f":"+IF(E90=\"\",\"\",VLOOKUP(E90,DANE!$A$2:$E$1123,2,0))","v":""},{"$f":"+IF(E90=\"\",\"\",VLOOKUP(E90,DANE!$A$2:$E$1123,4,0))","v":""},null,null,null,null,null,null,null,null,null,null,null,"","",""]
[null,null,null,null,null,{"$f":"+IF(E91=\"\",\"\",VLOOKUP(E91,DANE!$A$2:$E$1123,2,0))","v":""},{"$f":"+IF(E91=\"\",\"\",VLOOKUP(E91,DANE!$A$2:$E$1123,4,0))","v":""},null,null,null,null,null,null,null,null,null,null,null,"","",""]
[null,null,null,null,null,{"$f":"+IF(E92=\"\",\"\",VLOOKUP(E92,DANE!$A$2:$E$1123,2,0))","v":""},{"$f":"+IF(E92=\"\",\"\",VLOOKUP(E92,DANE!$A$2:$E$1123,4,0))","v":""},null,null,null,null,null,null,null,null,null,null,null,"","",""]
[null,null,null,null,null,{"$f":"+IF(E93=\"\",\"\",VLOOKUP(E93,DANE!$A$2:$E$1123,2,0))","v":""},{"$f":"+IF(E93=\"\",\"\",VLOOKUP(E93,DANE!$A$2:$E$1123,4,0))","v":""},null,null,null,null,null,null,null,null,null,null,null,"","",""]
[null,null,null,null,null,{"$f":"+IF(E94=\"\",\"\",VLOOKUP(E94,DANE!$A$2:$E$1123,2,0))","v":""},{"$f":"+IF(E94=\"\",\"\",VLOOKUP(E94,DANE!$A$2:$E$1123,4,0))","v":""},null,null,null,null,null,null,null,null,null,null,null,"","",""]
[null,null,null,null,null,{"$f":"+IF(E95=\"\",\"\",VLOOKUP(E95,DANE!$A$2:$E$1123,2,0))","v":""},{"$f":"+IF(E95=\"\",\"\",VLOOKUP(E95,DANE!$A$2:$E$1123,4,0))","v":""},null,null,null,null,null,null,null,null,null,null,null,"","",""]
[null,null,null,null,null,{"$f":"+IF(E96=\"\",\"\",VLOOKUP(E96,DANE!$A$2:$E$1123,2,0))","v":""},{"$f":"+IF(E96=\"\",\"\",VLOOKUP(E96,DANE!$A$2:$E$1123,4,0))","v":""},null,null,null,null,null,null,null,null,null,null,null,"","",""]
[null,null,null,null,null,{"$f":"+IF(E97=\"\",\"\",VLOOKUP(E97,DANE!$A$2:$E$1123,2,0))","v":""},{"$f":"+IF(E97=\"\",\"\",VLOOKUP(E97,DANE!$A$2:$E$1123,4,0))","v":""},null,null,null,null,null,null,null,null,null,null,null,"","",""]
[null,null,null,null,null,{"$f":"+IF(E98=\"\",\"\",VLOOKUP(E98,DANE!$A$2:$E$1123,2,0))","v":""},{"$f":"+IF(E98=\"\",\"\",VLOOKUP(E98,DANE!$A$2:$E$1123,4,0))","v":""},null,null,null,null,null,null,null,null,null,null,null,"","",""]
[null,null,null,null,null,{"$f":"+IF(E99=\"\",\"\",VLOOKUP(E99,DANE!$A$2:$E$1123,2,0))","v":""},{"$f":"+IF(E99=\"\",\"\",VLOOKUP(E99,DANE!$A$2:$E$1123,4,0))","v":""},null,null,null,null,null,null,null,null,null,null,null,"","",""]
[null,null,null,null,null,{"$f":"+IF(E100=\"\",\"\",VLOOKUP(E100,DANE!$A$2:$E$1123,2,0))","v":""},{"$f":"+IF(E100=\"\",\"\",VLOOKUP(E100,DANE!$A$2:$E$1123,4,0))","v":""},null,null,null,null,null,null,null,null,null,null,null,"","",""]
[null,null,null,null,null,{"$f":"+IF(E101=\"\",\"\",VLOOKUP(E101,DANE!$A$2:$E$1123,2,0))","v":""},{"$f":"+IF(E101=\"\",\"\",VLOOKUP(E101,DANE!$A$2:$E$1123,4,0))","v":""},null,null,null,null,null,null,null,null,null,null,null,"","",""]
[null,null,null,null,null,{"$f":"+IF(E102=\"\",\"\",VLOOKUP(E102,DANE!$A$2:$E$1123,2,0))","v":""},{"$f":"+IF(E102=\"\",\"\",VLOOKUP(E102,DANE!$A$2:$E$1123,4,0))","v":""},null,null,null,null,null,null,null,null,null,null,null,"","",""]
[null,null,null,null,null,{"$f":"+IF(E103=\"\",\"\",VLOOKUP(E103,DANE!$A$2:$E$1123,2,0))","v":""},{"$f":"+IF(E103=\"\",\"\",VLOOKUP(E103,DANE!$A$2:$E$1123,4,0))","v":""},null,null,null,null,null,null,null,null,null,null,null,"","",""]
[null,null,null,null,null,{"$f":"+IF(E104=\"\",\"\",VLOOKUP(E104,DANE!$A$2:$E$1123,2,0))","v":""},{"$f":"+IF(E104=\"\",\"\",VLOOKUP(E104,DANE!$A$2:$E$1123,4,0))","v":""},null,null,null,null,null,null,null,null,null,null,null,"","",""]
[null,null,null,null,null,{"$f":"+IF(E105=\"\",\"\",VLOOKUP(E105,DANE!$A$2:$E$1123,2,0))","v":""},{"$f":"+IF(E105=\"\",\"\",VLOOKUP(E105,DANE!$A$2:$E$1123,4,0))","v":""},null,null,null,null,null,null,null,null,null,null,null,"","",""]
[null,null,null,null,null,{"$f":"+IF(E106=\"\",\"\",VLOOKUP(E106,DANE!$A$2:$E$1123,2,0))","v":""},{"$f":"+IF(E106=\"\",\"\",VLOOKUP(E106,DANE!$A$2:$E$1123,4,0))","v":""},null,null,null,null,null,null,null,null,null,null,null,"","",""]
[null,null,null,null,null,{"$f":"+IF(E107=\"\",\"\",VLOOKUP(E107,DANE!$A$2:$E$1123,2,0))","v":""},{"$f":"+IF(E107=\"\",\"\",VLOOKUP(E107,DANE!$A$2:$E$1123,4,0))","v":""},null,null,null,null,null,null,null,null,null,null,null,"","",""]
[null,null,null,null,null,{"$f":"+IF(E108=\"\",\"\",VLOOKUP(E108,DANE!$A$2:$E$1123,2,0))","v":""},{"$f":"+IF(E108=\"\",\"\",VLOOKUP(E108,DANE!$A$2:$E$1123,4,0))","v":""},null,null,null,null,null,null,null,null,null,null,null,"","",""]
[null,null,null,null,null,{"$f":"+IF(E109=\"\",\"\",VLOOKUP(E109,DANE!$A$2:$E$1123,2,0))","v":""},{"$f":"+IF(E109=\"\",\"\",VLOOKUP(E109,DANE!$A$2:$E$1123,4,0))","v":""},null,null,null,null,null,null,null,null,null,null,null,"","",""]
[null,null,null,null,null,{"$f":"+IF(E110=\"\",\"\",VLOOKUP(E110,DANE!$A$2:$E$1123,2,0))","v":""},{"$f":"+IF(E110=\"\",\"\",VLOOKUP(E110,DANE!$A$2:$E$1123,4,0))","v":""},null,null,null,null,null,null,null,null,null,null,null,"","",""]
[null,null,null,null,null,{"$f":"+IF(E111=\"\",\"\",VLOOKUP(E111,DANE!$A$2:$E$1123,2,0))","v":""},{"$f":"+IF(E111=\"\",\"\",VLOOKUP(E111,DANE!$A$2:$E$1123,4,0))","v":""},null,null,null,null,null,null,null,null,null,null,null,"","",""]
[null,null,null,null,null,{"$f":"+IF(E112=\"\",\"\",VLOOKUP(E112,DANE!$A$2:$E$1123,2,0))","v":""},{"$f":"+IF(E112=\"\",\"\",VLOOKUP(E112,DANE!$A$2:$E$1123,4,0))","v":""},null,null,null,null,null,null,null,null,null,null,null,"","",""]
[null,null,null,null,null,{"$f":"+IF(E113=\"\",\"\",VLOOKUP(E113,DANE!$A$2:$E$1123,2,0))","v":""},{"$f":"+IF(E113=\"\",\"\",VLOOKUP(E113,DANE!$A$2:$E$1123,4,0))","v":""},null,null,null,null,null,null,null,null,null,null,null,"","",""]
[null,null,null,null,null,{"$f":"+IF(E114=\"\",\"\",VLOOKUP(E114,DANE!$A$2:$E$1123,2,0))","v":""},{"$f":"+IF(E114=\"\",\"\",VLOOKUP(E114,DANE!$A$2:$E$1123,4,0))","v":""},null,null,null,null,null,null,null,null,null,null,null,"","",""]
[null,null,null,null,null,{"$f":"+IF(E115=\"\",\"\",VLOOKUP(E115,DANE!$A$2:$E$1123,2,0))","v":""},{"$f":"+IF(E115=\"\",\"\",VLOOKUP(E115,DANE!$A$2:$E$1123,4,0))","v":""},null,null,null,null,null,null,null,null,null,null,null,"","",""]
[null,null,null,null,null,{"$f":"+IF(E116=\"\",\"\",VLOOKUP(E116,DANE!$A$2:$E$1123,2,0))","v":""},{"$f":"+IF(E116=\"\",\"\",VLOOKUP(E116,DANE!$A$2:$E$1123,4,0))","v":""},null,null,null,null,null,null,null,null,null,null,null,"","",""]
[null,null,null,null,null,{"$f":"+IF(E117=\"\",\"\",VLOOKUP(E117,DANE!$A$2:$E$1123,2,0))","v":""},{"$f":"+IF(E117=\"\",\"\",VLOOKUP(E117,DANE!$A$2:$E$1123,4,0))","v":""},null,null,null,null,null,null,null,null,null,null,null,"","",""]
[null,null,null,null,null,{"$f":"+IF(E118=\"\",\"\",VLOOKUP(E118,DANE!$A$2:$E$1123,2,0))","v":""},{"$f":"+IF(E118=\"\",\"\",VLOOKUP(E118,DANE!$A$2:$E$1123,4,0))","v":""},null,null,null,null,null,null,null,null,null,null,null,"","",""]
[null,null,null,null,null,{"$f":"+IF(E119=\"\",\"\",VLOOKUP(E119,DANE!$A$2:$E$1123,2,0))","v":""},{"$f":"+IF(E119=\"\",\"\",VLOOKUP(E119,DANE!$A$2:$E$1123,4,0))","v":""},null,null,null,null,null,null,null,null,null,null,null,"","",""]
[null,null,null,null,null,{"$f":"+IF(E120=\"\",\"\",VLOOKUP(E120,DANE!$A$2:$E$1123,2,0))","v":""},{"$f":"+IF(E120=\"\",\"\",VLOOKUP(E120,DANE!$A$2:$E$1123,4,0))","v":""},null,null,null,null,null,null,null,null,null,null,null,"","",""]
[null,null,null,null,null,{"$f":"+IF(E121=\"\",\"\",VLOOKUP(E121,DANE!$A$2:$E$1123,2,0))","v":""},{"$f":"+IF(E121=\"\",\"\",VLOOKUP(E121,DANE!$A$2:$E$1123,4,0))","v":""},null,null,null,null,null,null,null,null,null,null,null,"","",""]
[null,null,null,null,null,{"$f":"+IF(E122=\"\",\"\",VLOOKUP(E122,DANE!$A$2:$E$1123,2,0))","v":""},{"$f":"+IF(E122=\"\",\"\",VLOOKUP(E122,DANE!$A$2:$E$1123,4,0))","v":""},null,null,null,null,null,null,null,null,null,null,null,"","",""]
[null,null,null,null,null,{"$f":"+IF(E123=\"\",\"\",VLOOKUP(E123,DANE!$A$2:$E$1123,2,0))","v":""},{"$f":"+IF(E123=\"\",\"\",VLOOKUP(E123,DANE!$A$2:$E$1123,4,0))","v":""},null,null,null,null,null,null,null,null,null,null,null,"","",""]
[null,null,null,null,null,{"$f":"+IF(E124=\"\",\"\",VLOOKUP(E124,DANE!$A$2:$E$1123,2,0))","v":""},{"$f":"+IF(E124=\"\",\"\",VLOOKUP(E124,DANE!$A$2:$E$1123,4,0))","v":""},null,null,null,null,null,null,null,null,null,null,null,"","",""]
[null,null,null,null,null,{"$f":"+IF(E125=\"\",\"\",VLOOKUP(E125,DANE!$A$2:$E$1123,2,0))","v":""},{"$f":"+IF(E125=\"\",\"\",VLOOKUP(E125,DANE!$A$2:$E$1123,4,0))","v":""},null,null,null,null,null,null,null,null,null,null,null,"","",""]
[null,null,null,null,null,{"$f":"+IF(E126=\"\",\"\",VLOOKUP(E126,DANE!$A$2:$E$1123,2,0))","v":""},{"$f":"+IF(E126=\"\",\"\",VLOOKUP(E126,DANE!$A$2:$E$1123,4,0))","v":""},null,null,null,null,null,null,null,null,null,null,null,"","",""]
[null,null,null,null,null,{"$f":"+IF(E127=\"\",\"\",VLOOKUP(E127,DANE!$A$2:$E$1123,2,0))","v":""},{"$f":"+IF(E127=\"\",\"\",VLOOKUP(E127,DANE!$A$2:$E$1123,4,0))","v":""},null,null,null,null,null,null,null,null,null,null,null,"","",""]
[null,null,null,null,null,{"$f":"+IF(E128=\"\",\"\",VLOOKUP(E128,DANE!$A$2:$E$1123,2,0))","v":""},{"$f":"+IF(E128=\"\",\"\",VLOOKUP(E128,DANE!$A$2:$E$1123,4,0))","v":""},null,null,null,null,null,null,null,null,null,null,null,"","",""]
[null,null,null,null,null,{"$f":"+IF(E129=\"\",\"\",VLOOKUP(E129,DANE!$A$2:$E$1123,2,0))","v":""},{"$f":"+IF(E129=\"\",\"\",VLOOKUP(E129,DANE!$A$2:$E$1123,4,0))","v":""},null,null,null,null,null,null,null,null,null,null,null,"","",""]
[null,null,null,null,null,{"$f":"+IF(E130=\"\",\"\",VLOOKUP(E130,DANE!$A$2:$E$1123,2,0))","v":""},{"$f":"+IF(E130=\"\",\"\",VLOOKUP(E130,DANE!$A$2:$E$1123,4,0))","v":""},null,null,null,null,null,null,null,null,null,null,null,"","",""]
[null,null,null,null,null,{"$f":"+IF(E131=\"\",\"\",VLOOKUP(E131,DANE!$A$2:$E$1123,2,0))","v":""},{"$f":"+IF(E131=\"\",\"\",VLOOKUP(E131,DANE!$A$2:$E$1123,4,0))","v":""},null,null,null,null,null,null,null,null,null,null,null,"","",""]
[null,null,null,null,null,{"$f":"+IF(E132=\"\",\"\",VLOOKUP(E132,DANE!$A$2:$E$1123,2,0))","v":""},{"$f":"+IF(E132=\"\",\"\",VLOOKUP(E132,DANE!$A$2:$E$1123,4,0))","v":""},null,null,null,null,null,null,null,null,null,null,null,"","",""]
[null,null,null,null,null,{"$f":"+IF(E133=\"\",\"\",VLOOKUP(E133,DANE!$A$2:$E$1123,2,0))","v":""},{"$f":"+IF(E133=\"\",\"\",VLOOKUP(E133,DANE!$A$2:$E$1123,4,0))","v":""},null,null,null,null,null,null,null,null,null,null,null,"","",""]
[null,null,null,null,null,{"$f":"+IF(E134=\"\",\"\",VLOOKUP(E134,DANE!$A$2:$E$1123,2,0))","v":""},{"$f":"+IF(E134=\"\",\"\",VLOOKUP(E134,DANE!$A$2:$E$1123,4,0))","v":""},null,null,null,null,null,null,null,null,null,null,null,"","",""]
[null,null,null,null,null,{"$f":"+IF(E135=\"\",\"\",VLOOKUP(E135,DANE!$A$2:$E$1123,2,0))","v":""},{"$f":"+IF(E135=\"\",\"\",VLOOKUP(E135,DANE!$A$2:$E$1123,4,0))","v":""},null,null,null,null,null,null,null,null,null,null,null,"","",""]
[null,null,null,null,null,{"$f":"+IF(E136=\"\",\"\",VLOOKUP(E136,DANE!$A$2:$E$1123,2,0))","v":""},{"$f":"+IF(E136=\"\",\"\",VLOOKUP(E136,DANE!$A$2:$E$1123,4,0))","v":""},null,null,null,null,null,null,null,null,null,null,null,"","",""]
[null,null,null,null,null,{"$f":"+IF(E137=\"\",\"\",VLOOKUP(E137,DANE!$A$2:$E$1123,2,0))","v":""},{"$f":"+IF(E137=\"\",\"\",VLOOKUP(E137,DANE!$A$2:$E$1123,4,0))","v":""},null,null,null,null,null,null,null,null,null,null,null,"","",""]
[null,null,null,null,null,{"$f":"+IF(E138=\"\",\"\",VLOOKUP(E138,DANE!$A$2:$E$1123,2,0))","v":""},{"$f":"+IF(E138=\"\",\"\",VLOOKUP(E138,DANE!$A$2:$E$1123,4,0))","v":""},null,null,null,null,null,null,null,null,null,null,null,"","",""]
[null,null,null,null,null,{"$f":"+IF(E139=\"\",\"\",VLOOKUP(E139,DANE!$A$2:$E$1123,2,0))","v":""},{"$f":"+IF(E139=\"\",\"\",VLOOKUP(E139,DANE!$A$2:$E$1123,4,0))","v":""},null,null,null,null,null,null,null,null,null,null,null,"","",""]
[null,null,null,null,null,{"$f":"+IF(E140=\"\",\"\",VLOOKUP(E140,DANE!$A$2:$E$1123,2,0))","v":""},{"$f":"+IF(E140=\"\",\"\",VLOOKUP(E140,DANE!$A$2:$E$1123,4,0))","v":""},null,null,null,null,null,null,null,null,null,null,null,"","",""]
[null,null,null,null,null,{"$f":"+IF(E141=\"\",\"\",VLOOKUP(E141,DANE!$A$2:$E$1123,2,0))","v":""},{"$f":"+IF(E141=\"\",\"\",VLOOKUP(E141,DANE!$A$2:$E$1123,4,0))","v":""},null,null,null,null,null,null,null,null,null,null,null,{"$f":"+IF(SUM(K141:R141)=0,\"\",SUM(K141:R141))","v":""},{"$f":"+IFERROR(J141/I141,\"\")","v":""},{"$f":"+IFERROR(SUM(K141:P141)/I141,\"\")","v":""}]
[null,null,null,null,null,{"$f":"+IF(E142=\"\",\"\",VLOOKUP(E142,DANE!$A$2:$E$1123,2,0))","v":""},{"$f":"+IF(E142=\"\",\"\",VLOOKUP(E142,DANE!$A$2:$E$1123,4,0))","v":""},null,null,null,null,null,null,null,null,null,null,null,"","",""]
[null,null,null,null,null,{"$f":"+IF(E143=\"\",\"\",VLOOKUP(E143,DANE!$A$2:$E$1123,2,0))","v":""},{"$f":"+IF(E143=\"\",\"\",VLOOKUP(E143,DANE!$A$2:$E$1123,4,0))","v":""},null,null,null,null,null,null,null,null,null,null,null,"","",""]
[null,null,null,null,null,{"$f":"+IF(E144=\"\",\"\",VLOOKUP(E144,DANE!$A$2:$E$1123,2,0))","v":""},{"$f":"+IF(E144=\"\",\"\",VLOOKUP(E144,DANE!$A$2:$E$1123,4,0))","v":""},null,null,null,null,null,null,null,null,null,null,null,"","",""]
[null,null,null,null,null,{"$f":"+IF(E145=\"\",\"\",VLOOKUP(E145,DANE!$A$2:$E$1123,2,0))","v":""},{"$f":"+IF(E145=\"\",\"\",VLOOKUP(E145,DANE!$A$2:$E$1123,4,0))","v":""},null,null,null,null,null,null,null,null,null,null,null,"","",""]
[null,null,null,null,null,{"$f":"+IF(E146=\"\",\"\",VLOOKUP(E146,DANE!$A$2:$E$1123,2,0))","v":""},{"$f":"+IF(E146=\"\",\"\",VLOOKUP(E146,DANE!$A$2:$E$1123,4,0))","v":""},null,null,null,null,null,null,null,null,null,null,null,"","",""]
[null,null,null,null,null,{"$f":"+IF(E147=\"\",\"\",VLOOKUP(E147,DANE!$A$2:$E$1123,2,0))","v":""},{"$f":"+IF(E147=\"\",\"\",VLOOKUP(E147,DANE!$A$2:$E$1123,4,0))","v":""},null,null,null,null,null,null,null,null,null,null,null,"","",""]
[null,null,null,null,null,{"$f":"+IF(E148=\"\",\"\",VLOOKUP(E148,DANE!$A$2:$E$1123,2,0))","v":""},{"$f":"+IF(E148=\"\",\"\",VLOOKUP(E148,DANE!$A$2:$E$1123,4,0))","v":""},null,null,null,null,null,null,null,null,null,null,null,"","",""]
[null,null,null,null,null,{"$f":"+IF(E149=\"\",\"\",VLOOKUP(E149,DANE!$A$2:$E$1123,2,0))","v":""},{"$f":"+IF(E149=\"\",\"\",VLOOKUP(E149,DANE!$A$2:$E$1123,4,0))","v":""},null,null,null,null,null,null,null,null,null,null,null,"","",""]
[null,null,null,null,null,{"$f":"+IF(E150=\"\",\"\",VLOOKUP(E150,DANE!$A$2:$E$1123,2,0))","v":""},{"$f":"+IF(E150=\"\",\"\",VLOOKUP(E150,DANE!$A$2:$E$1123,4,0))","v":""},null,null,null,null,null,null,null,null,null,null,null,"","",""]
[]
[]
[null,"NOTAS: Por favor detalle la información de coberturas para todas las poblaciones que hacen parte de los diferentes Mercados Relevantes. \n               Aquellos usuarios ubicados en veredas, corregimientos u inspecciones deberán registrarse en la información de coberturas del municipio correspondiente.\n               La Codificación de los Departamentos y Municipios puede ser igualmente ubicada a través del sitio web del Departamento Administrativo Nacional de Estadística - DANE (www.dane.gov.co)"]

{"sheet":"Dato_Empresas","index":1,"n_rows":94,"n_cols":6,"rows_kept":94,"cut":false,"hidden":true,"merged":[]}
["Nombre","Nit","Actividad","Representante Legal","Cargo","COD FSSRI"]
["ALCANOS DE COLOMBIA S.A. E.S.P. ","891101577-4","Comercializador","CAMILO ERNESTO LOZANO HERMIDA","Gerente General",1324]
["ARAUCANA DE GASES S.A.S","901390944-8","Comercializador","RICARDO ALVAREZ HIGUERA","Gerente General",1408]
["C&DGAS S.A.S ESP ","900440491-5","Comercializador","JAVIER DARIO PEREA BARROSO","Gerente General",1389]
["CENTRAL GAS S.A.S ESP","901599899-3","Comercializador","CARLOS PUENTES OBREGON","Gerente",1409]
["CIAZ SAS ESP","804011155-7","Comercializador","SERGIO ANDRES QUINTERO ALBARRACIN","Representante Legal",1425]
["COINOGAS S.A. ESP","900100553-5","Comercializador","GERARDO CUADROS CHAHIN","Gerente",1412]
["COLGAS S.A. E.S.P.","890500726-3","Comercializador","ANDRES JULIAN CADAVID MOLINA","Suplente Gerente",1345]
["COLOMBIAN ENERGY GROUP S.A.S ESP - GRENCOL ","900957357-6","Comercializador","MAURICIO FIDEL CASTILLO RINCON ","Gerente General",1390]
["COMPAÑIA NACIONAL DE INGENIERA Y CONSTRUCCION PARA GAS SERVICIOS PUBLICOS SAS ESP ZOMAC - COINCOLGAS","901624016-4","Comercializador","ORLANDO LEDESMA MONTILLA","Representante Legal",1421]
["COMPAÑIA NACIONAL DE INGENIERIA Y GAS DEL CHAIRA S.A.S E.S.P BIC - CONGASCHAIRA","901876244-8","Comercializador","IGNACIO RODRIGUEZ FLORES","Representante Legal",1422]
["COMPRIGAS S.A.S ESP","901020967-0","Comercializador","YEISON DAVID VASQUEZ HIDALGO","Representante Legal",1392]
["CONSTRUCCION E INGENIERIA DE GAS COLOMBIA S.A.S E.S.P - COINGASCO S.A ESP","901355090-5","Comercializador","JONATHAN ALEJANDRO LEON CARDENAS","Representante Legal",1410]
["CONSTRUCTORA Y DISTRIBUIDORA DE SERVICIOS PUBLICOS DOMICILIARIOS SAS ESP - DISTRISERVICIOS ","901105922-6","Comercializador","HERNAN DARIO HUERTAS MURCIA","Gerente General",1399]
["DISTICON S.A.S ESP","900563448-6","Comercializador","CARLOS RAMON CASTAÑEDA ","Representante Legal",1370]
["DISTRIBUIDORA Y COMERCIALIZADORA DE GAS Y ENERGIAS ALTERNATIVAS - DYGAS SAS ESP","901464472-2","Comercializador","JAVIER DARÍO PEREA BARROSO","Gerente General",1404]
["DUEMAV CORP SAS ESP","901385470-9","Comeercializador Mayorista","DANIEL UMAÑA ECHEVERRIA","Representante Legal",1431]
["EFIGAS S.A. E.S.P. - CALDAS-RISARALDA-QUINDIO","800202395-3","Comercializador","CARLOS ALBERTO MAZENETH DAVILA","Gerente",1308]
["EMPRESA COMUNITARIA DE ACUEDUCTO, ALCANTARILLADO Y ASEO DE SARAVENA - ECAAAS ESP","800163392-3","Distribuidor","ASAEL TORRES","Representante Legal",1401]
["EMPRESA DE ENERGÍA DEL CASANARE - ENERCA S.A. E.S.P.","844004576-0","Comercializador","JORGE ELBERTO TORRES MENDOZA","Gerente General",1331]
["EMPRESA INTEGRAL DE SERVICIOS OP&S CONSTRUCCIONES S.A. E.S.P.","809010690-1","Comercializador","CARLOS PUENTES OBREGON","Gerente",1357]
["EMPRESA MUNICIPAL DE SERVICIOS PÚBLICOS DE OROCUE S.A. E.S.P.","900251955-1","Comercializador","LINO CEDEÑO COLINA","Gerente",1359]
["EMPRESA PRIVADA DE SERVICIOS PÚBLICOS DE LA AMAZONÍA  - EPSAS S.A.S","901175206-1","Comercializador","ALEXANDER SUAREZ SANCHEZ","Representante Legal",1394]
["EMPRESAS PÚBLICAS DE MEDELLÍN - EPM E.S.P.","890904996-1","Comercializador","JUAN ESTEBAN CALLE RESTREPO","Gerente General",1250]
["EMPRESAS PÚBLICAS DEL QUINDÍO EPQ S.A ESP","800063823-7","Comercializador","JAMES PADILLA GARCÍA ","Gerente General",1374]
["ENERCER S.A. ESP ","830140206-1","Comercializador","CARLOS ARTURO AVILA VERA","Gerente",1333]
["EOS Energy S.A.S. E.S.P.","901034973-6","Comercializador","ALEJANDRO GIRALDO VASQUEZ","Representante Legal",1380]
["ESPIGAS S.A. E.S.P.","804014885-9","Comercializador","JORGE LUIS ESCALANTE HERNANDEZ","Gerente",1329]
["G8 PROYECTOS ENERGÉTICOS S.A.S. E.S.P.","900542835-3","Comercializador","ALBERTO ENRIQUE ALFARO ARIAS","Gerente",1364]
["GAS NATURAL CUNDIBOYACENSE S.A. E.S.P. ","830045472-8","Comercializador","RICARDO ANTONIO DONADO ARENAS","Representante Legal",1315]
["GAS NATURAL DEL CESAR S.A. E.S.P.","804000551-3","Comercializador","LUZ NAYIBE CARRILLO SANTANDER","Gerente",1309]
["GAS NATURAL DEL ORIENTE S.A. E.S.P.","890205952-7","Comercializador","GERARDO RUEDA AMOROCHO","Representante Legal",1320]
["GAS SUPERIOR DE COLOMBIA SA ESP","900089898-4","Comercializador","MIGUEL DARIO VELASQUEZ V.","Gerente",1398]
["GAS UNION DE COLOMBIA ESP SAS","900586170-3","Comercializador","GEORGIA DUBY TORRES LOZANO","Representante Legal",1426]
["GASES DE LA GUAJIRA S.A. E.S.P.","892115036-6","Comercializador","CAMILO JOSE OVALLE DAZA","Gerente General",1325]
["GASES DE OCCIDENTE S.A. E.S.P. ","800167643-5","Comercializador","PILAR RODRIGUEZ CAICEDO","Gerente General",1304]
["GASES DEL CARIBE S.A. E.S.P.","890101691-2","Comercializador","RAMON DAVILA MARTINEZ","Gerente General",1318]
["GASES DEL CUSIANA S.A. E.S.P.","800218682-2","Comercializador","SANDRA MILENA CARDENAS CRUZ","Gerente",1306]
["GASES DEL LLANO - LLANOGAS S.A. E.S.P.","800021272-9","Comercializador","SHAIR ELENA  ARISMENDY","Gerente",1303]
["GASES DEL ORIENTE S.A. E.S.P.","890503900-2","Comercializador","DOLLY PINZON TAVERA","Gerente",1323]
["GASES DEL SUR DE SANTANDER - GASUR S.A. E.S.P.","804002801-9","Comercializador","JORGE ARMANDO CASTA?EDA SAENZ","Gerente General",1341]
["GASOIL SERVICES S.A.S ESP","900707217-1","Comercializador","CARLOS ENRIQUE PINTO MORENO","Representante Legal",1416]
["GASPRO SAS ESP","901802571-4","Comercializador","SANDRA  ZABALA TORRES","Representante Legal",1428]
["GIGAS ENERGY","901306019-2","Comercializador","FLOR ADRIANA HERNANDEZ HERRERA","Representante Legal",1411]
["GLOBAL REDES & OBRAS","900922760-0","Comercializador","ANYEL SALOMON GRISALES CASTILLO","Gerente",1369]
["GRUPO ENERGETICO DE COLOMBIA S.A.S. ESP","901990581-2","Districuidora - Comercializadora","NELSON CASTELBLANCO","Representante Legal",1429]
["HEGA S.A. E.S.P.","900197640-4","Comercializador","RODRIGO MANTILLA TORRES","Gerente",1356]
["INGENIERÍA Y SERVICIOS - INS S.A. E.S.P.","804011800-1","Comercializador","FABIO AUGUSTO SANTOS RODRIGUEZ","Gerente",1348]
["INGGASES ESP SAS","901438767-1","Distribuidor","DANIEL FERNÀNDEZ HENAO","Gerente General",1403]
["J&J GESTION ENERGY EMPRESA DE SERVICIOS PUBLICOS SAS ESP","901893377-0","Comercializador","LUZ ELENA ARDILA RODRIGUEZ","Representante Legal",1427]
["KAPITAL ENERGY COLOMBIA S.A.S. E.S.P","901915195-3","Comercializador","EDGAR ADOLFO VARGAS CRUZ","Representante Legal",1432]
["KEOPS Y ASOCIADOS S.A.S  ESP","900653272-3","Comercializador","LUIS ALBERTO SUAREZ CASALLAS","Gerente General",1378]
["LAND COLOMBIA S.A.S- E.S.P","901875197-5","Comercializador","ANDREY RAUL FORERO MANTILLA","Representante Legal",1423]
["LOGIGAS COLOMBIA S.A E.S.P ","901122935-3","Comercializador","FREDY ROA TOVAR","Representante Legal",1395]
["MADIGAS INGENIEROS S.A. E.S.P.","822001073-4","Comercializador","ASCLEPIADES RINCON MENDOZA","Representante Legal",1313]
["METROGAS DE COLOMBIA S.A. E.S.P.","890208316-6","Comercializador","MONICA MARIA TARAZONA ALDANA","Gerente",1321]
["MONTAGAS S.A. E.S.P.","891202203-9","Comercializador","EL-LAYTHY BARAKAT SAFA HUSEIN","Gerente",1396]
["MOVILLGAS SAS E.S.P.","901747670-1","Comercializador","LUZ MARINA DURAN NONATTO","Representante Legal",1414]
["NACIONAL DE SERVICIOS PÚBLICOS - NSP S.A. E.S.P.","830118416-1","Comercializador","FERNANDO MARCELO CASAS","Presidente",1360]
["PACIFICA ENERGY S.A.S ESP","901021569-7","Comercializador","LUIS DIEGO HURTADO PEREA","Representante Legal",1393]
["PROMESA S.A. E.S.P.","804014818-5","Comercializador","JOSE FELIPE MESA DELGADO","Gerente",1330]
["PROMOTORA DE SERVICIOS PÚBLICOS S.A. E.S.P. - PROVISERVICIOS","804013578-8","Comercializador","JHON ALEXANDER NIÑO HERRERA","Gerente General",1328]
["PROVIGAS COLOMBIA S.A ESP","900438187-4","Comercializador","LUIS CARLOS SALGADO","Gerente General",1384]
["PROYECTOS DE INGENIERÍA Y COMERCIALIZACIÓN DE GAS - INPROGAS S.A. E.S.P.","804002825-5","Comercializador","JULIO RODRIGUEZ GUALTEROS","Gerente General",1361]
["REDEGAS DEL SUR S.A.S ESP","901715654-4","Comercializador","JEISON ANDRES SAMBONI DIAZ","Representante Legal",1424]
["REDEGAS DOMICILIARIO S.A. E.S.P.","900652188-8","Comercializador","JUAN FELIPE BERNAL","Representante Legal",1365]
["REDNOVA S.A.S ESP","901042814-7","Comercializador","AMANDA CUELLAR STERLING","Representante Legal",1379]
["SERVICIOS PUBLICOS COLOMBIANOS S.A.S. E.S.P. - SERVICOLOMBIANO","901213527-2","Comercializador","HUGO JAVIER OCHOA PUENTES","Representante Legal",1400]
["SERVICIOS PÚBLICOS INGENIERÍA Y GAS - SERVINGAS S.A. E.S.P.","809012699-4","Comercializador","JUAN DAVID REINOSO ANDRADE","Representante Legal",1336]
["SERVICIOS PÚBLICOS Y GAS - SERVIGAS S.A. E.S.P.","813009626-0","Comercializador","JAIRO ENRIQUE MUÑOZ MANTILLA","Gerente",1343]
["SUPERGAS DE NARIÑO S.A.S. E.S.P.","814003050-5","Comercializador","MARIO FERNANDO GUERRERO GOMEZJURADO","Gerente",1418]
["SURCOLOMBIANA DE GAS - SURGAS S.A. E.S.P.","830510717-1","Comercializador","JAVIER FERNANDO ESCOBAR RUIZ","Gerente",1335]
["SURTIDORA DE GAS DEL CARIBE - SURTIGAS S.A. E.S.P.","890400869-9","Comercializador","JACKELINE DEL CARMEN PUENTE ALVARADO","Gerente General",1322]
["SURTIDORA DE SERVICIOS PUBLICOS S.A E.S.P - SURTISEP S.A ESP","901056458-9","Districuidora - Comercializadora","DIEGO ALEJANDRO MARTÍNEZ","Representante Legal",1430]
["TRADE CENTRAL S.A.S","901096355-1","Comercializador","ERIKA SILVANA MOLINA ARENAS","Gerente General",1407]
["VANTI S.A. E.S.P.","800007813-5","Comercializador","MARIA EUGENIA CORONADO ORJUELA","Presidente",1301]
["VIDA GAS POR NATURALEZA S.A E.S.P - YAVIGAS","900666756-2","Comercializador","JORGE HERNAN AREVALO TRIANA","Representante Legal",1368]
["YAVEGAS S.A. E.S.P.","900522263-5","Comercializador","BERNARDO HECTOR ARANGO GONZALEZ","Presidente",1362]
["INACTIVA-BIOPLANET SERVICES S.A.S ESP","900192473-8","Comercializador","ANGELA MARIA CORZO GOMEZ","Representante Legal","SIN COD FSSRI"]
["INACTIVA-CENTAURO GAS ","900718988-9","Comercializador","SEGUNDO CASTELBLANCO PARRA","Gerente","INACTIVA-1372"]
["INACTIVA-CHILCO DISTRIBUIDORA DE GAS Y ENERGÍA S.A.S ESP","900396759-5","Comercializador","JORGE EDUARDO AVILAN ARISTIZABAL","Representante Legal","SIN COD FSSRI"]
["INACTIVA-COLOMBIANA DE SERVICIOS PUBLICOS S.A.S. E.S.P. COLSERPU S.A.S. E.S.P.",8290037284,"Comercializador","JOSE CONSTANTINO COBA VACA","Representante Legal","SIN COD FSSRI"]
["INACTIVA-COLOMBIANA DE SERVICIOS PÙBLICOS SOSTENIBLES S.A ESP","900716459-5","Comercializador","HUGO MAURICIO MEDINA SANCHEZ","Gerente General","INACTIVA-1387"]
["INACTIVA-EDALGAS S.A. E.S.P.","809011710-3","Comercializador","ANGELICA MARIA PEÑA HERNANDEZ","Representante Legal","SIN COD FSSRI"]
["INACTIVA-EMPRESA MUNICIPAL DE SERVICIOS PÚBLICOS DE PUERTO PARRA - EMSEPAR S.A. E.S.P.","900063884-9","Comercializador","GONZALO EDIVER MEZA VELEZ","Representante Legal","INACTIVA-1347"]
["INACTIVA-ENERGY GAS S.A.S E.S.P.","900912454-9","Comercializador","DIANA JAZMIN MONTANA DURAN","Gerente","INACTIVA-1373"]
["INACTIVA-GAS DE LA ORINOQUIA S.A ESP","900655560-9","Comercializador","JUAN CARLOS CARDOZO GOMEZ","Representante Legal","INACTIVA-1388"]
["INACTIVA-GASES DEL SUR DE COLOMBIA - GASURCOL E.S.P.","901037565-8","Comercializador","NELSON FELIPE TORRES CALDERON","Representante Legal","INACTIVA-1397"]
["INACTIVA-GEAS GROUP SAS ESP","901389923-1","Distribuidor","SANDRA ZABALETA TORRES","Gerente General","INACTIVA-1402"]
["INACTIVA-GREEN COUNTRY S.A. E.S.P.",900773954,"Comercializador","JAIME CORZO GOMEZ","Gerente General","SIN COD FSSRI"]
["INACTIVA-KRONOS ENERGY S.A ESP","900555031-5","Comercializador","ALEJANDRO GIRALDO VASQUEZ","Representante Legal","SIN COD FSSRI"]
["INACTIVA-MARYGAS S.A.S","901226828-0","Comercializador","CAROLINA VARAS GUZMAN","Representante Legal","INACTIVA-1405"]
["INACTIVA-SERVIGAS NARIÑO ESP","901355109-6","Comercializador","JOSE MILTON GOMEZ GOMEZ","Gerente General","INACTIVA-1406"]
["INACTIVA-UNIVERSAL DE SERVICIOS PÚBLICOS S.A ESP - ","900234303-6","Comercializador","MARIA XIMENA MESA PARRA","Gerente General","INACTIVA-1376"]

{"sheet":"DANE","index":2,"n_rows":1123,"n_cols":13,"rows_kept":1123,"cut":false,"hidden":true,"merged":[]}
["Código DANE","Nombre Departamento","Código Departamento","Nombre Municipio","Código Municipio","DeptoMcpio","Código DANE",null,"Nombre Departamento","Código Deapartamento",null,"GN","Nuevo"]
["05001","ANTIOQUIA","05","MEDELLIN","001",{"$f":"+B2&D2","v":"ANTIOQUIAMEDELLIN"},{"$f":"+CONCATENATE(C2,E2)","v":"05001"},null,"ANTIOQUIA","05",null,"GLP Red","Existente"]
["05002","ANTIOQUIA","05","ABEJORRAL","002",{"$f":"+B3&D3","v":"ANTIOQUIAABEJORRAL"},"05002",null,"ATLANTICO","08",null,"GNC"]
["05004","ANTIOQUIA","05","ABRIAQUI","004","ANTIOQUIAABRIAQUI","05004",null,"BOGOTA","11",null,"GNL"]
["05021","ANTIOQUIA","05","ALEJANDRIA","021","ANTIOQUIAALEJANDRIA","05021",null,"BOLIVAR","13"]
["05030","ANTIOQUIA","05","AMAGA","030","ANTIOQUIAAMAGA","05030",null,"BOYACA","15"]
["05031","ANTIOQUIA","05","AMALFI","031","ANTIOQUIAAMALFI","05031",null,"CALDAS","17"]
["05034","ANTIOQUIA","05","ANDES","034","ANTIOQUIAANDES","05034",null,"CAQUETA","18"]
["05036","ANTIOQUIA","05","ANGELOPOLIS","036","ANTIOQUIAANGELOPOLIS","05036",null,"CAUCA","19"]
["05038","ANTIOQUIA","05","ANGOSTURA","038","ANTIOQUIAANGOSTURA","05038",null,"CESAR","20"]
["05040","ANTIOQUIA","05","ANORI","040","ANTIOQUIAANORI","05040",null,"CORDOBA","23"]
["05042","ANTIOQUIA","05","SANTAFE DE ANTIOQUIA","042","ANTIOQUIASANTAFE DE ANTIOQUIA","05042",null,"CUNDINAMARCA","25"]
["05044","ANTIOQUIA","05","ANZA","044","ANTIOQUIAANZA","05044",null,"CHOCO","27"]
["05045","ANTIOQUIA","05","APARTADO","045","ANTIOQUIAAPARTADO","05045",null,"HUILA","41"]
["05051","ANTIOQUIA","05","ARBOLETES","051","ANTIOQUIAARBOLETES","05051",null,"LA GUAJIRA","44"]
["05055","ANTIOQUIA","05","ARGELIA","055","ANTIOQUIAARGELIA","05055",null,"MAGDALENA","47"]
["05059","ANTIOQUIA","05","ARMENIA","059","ANTIOQUIAARMENIA","05059",null,"META","50"]
["05079","ANTIOQUIA","05","BARBOSA","079","ANTIOQUIABARBOSA","05079",null,"NARIÑO","52"]
["05086","ANTIOQUIA","05","BELMIRA","086","ANTIOQUIABELMIRA","05086",null,"N. DE SANTANDER","54"]
["05088","ANTIOQUIA","05","BELLO","088","ANTIOQUIABELLO","05088",null,"QUINDIO","63"]
["05091","ANTIOQUIA","05","BETANIA","091","ANTIOQUIABETANIA","05091",null,"RISARALDA","66"]
["05093","ANTIOQUIA","05","BETULIA","093","ANTIOQUIABETULIA","05093",null,"SANTANDER","68"]
["05101","ANTIOQUIA","05","CIUDAD BOLIVAR","101","ANTIOQUIACIUDAD BOLIVAR","05101",null,"SUCRE","70"]
["05107","ANTIOQUIA","05","BRICEÑO","107","ANTIOQUIABRICEÑO","05107",null,"TOLIMA","73"]
["05113","ANTIOQUIA","05","BURITICA","113","ANTIOQUIABURITICA","05113",null,"VALLE DEL CAUCA","76"]
["05120","ANTIOQUIA","05","CACERES","120","ANTIOQUIACACERES","05120",null,"ARAUCA","81"]
["05125","ANTIOQUIA","05","CAICEDO","125","ANTIOQUIACAICEDO","05125",null,"CASANARE","85"]
["05129","ANTIOQUIA","05","CALDAS","129","ANTIOQUIACALDAS","05129",null,"PUTUMAYO","86"]
["05134","ANTIOQUIA","05","CAMPAMENTO","134","ANTIOQUIACAMPAMENTO","05134",null,"SAN ANDRES","88"]
["05138","ANTIOQUIA","05","CAÑASGORDAS","138","ANTIOQUIACAÑASGORDAS","05138",null,"AMAZONAS","91"]
["05142","ANTIOQUIA","05","CARACOLI","142","ANTIOQUIACARACOLI","05142",null,"GUAINIA","94"]
["05145","ANTIOQUIA","05","CARAMANTA","145","ANTIOQUIACARAMANTA","05145",null,"GUAVIARE","95"]
["05147","ANTIOQUIA","05","CAREPA","147","ANTIOQUIACAREPA","05147",null,"VAUPES","97"]
["05148","ANTIOQUIA","05","EL CARMEN DE VIBORAL","148","ANTIOQUIAEL CARMEN DE VIBORAL","05148",null,"VICHADA","99"]
["05150","ANTIOQUIA","05","CAROLINA","150","ANTIOQUIACAROLINA","05150"]
["05154","ANTIOQUIA","05","CAUCASIA","154","ANTIOQUIACAUCASIA","05154"]
["05172","ANTIOQUIA","05","CHIGORODO","172","ANTIOQUIACHIGORODO","05172"]
["05190","ANTIOQUIA","05","CISNEROS","190","ANTIOQUIACISNEROS","05190"]
["05197","ANTIOQUIA","05","COCORNA","197","ANTIOQUIACOCORNA","05197"]
["05206","ANTIOQUIA","05","CONCEPCION","206","ANTIOQUIACONCEPCION","05206"]
["05209","ANTIOQUIA","05","CONCORDIA","209","ANTIOQUIACONCORDIA","05209"]
["05212","ANTIOQUIA","05","COPACABANA","212","ANTIOQUIACOPACABANA","05212"]
["05234","ANTIOQUIA","05","DABEIBA","234","ANTIOQUIADABEIBA","05234"]
["05237","ANTIOQUIA","05","DON MATIAS","237","ANTIOQUIADON MATIAS","05237"]
["05240","ANTIOQUIA","05","EBEJICO","240","ANTIOQUIAEBEJICO","05240"]
["05250","ANTIOQUIA","05","EL BAGRE","250","ANTIOQUIAEL BAGRE","05250"]
["05264","ANTIOQUIA","05","ENTRERRIOS","264","ANTIOQUIAENTRERRIOS","05264"]
["05266","ANTIOQUIA","05","ENVIGADO","266","ANTIOQUIAENVIGADO","05266"]
["05282","ANTIOQUIA","05","FREDONIA","282","ANTIOQUIAFREDONIA","05282"]
["05284","ANTIOQUIA","05","FRONTINO","284","ANTIOQUIAFRONTINO","05284"]
["05306","ANTIOQUIA","05","GIRALDO","306","ANTIOQUIAGIRALDO","05306"]
["05308","ANTIOQUIA","05","GIRARDOTA","308","ANTIOQUIAGIRARDOTA","05308"]
["05310","ANTIOQUIA","05","GOMEZ PLATA","310","ANTIOQUIAGOMEZ PLATA","05310"]
["05313","ANTIOQUIA","05","GRANADA","313","ANTIOQUIAGRANADA","05313"]
["05315","ANTIOQUIA","05","GUADALUPE","315","ANTIOQUIAGUADALUPE","05315"]
["05318","ANTIOQUIA","05","GUARNE","318","ANTIOQUIAGUARNE","05318"]
["05321","ANTIOQUIA","05","GUATAPE","321","ANTIOQUIAGUATAPE","05321"]
["05347","ANTIOQUIA","05","HELICONIA","347","ANTIOQUIAHELICONIA","05347"]
["05353","ANTIOQUIA","05","HISPANIA","353","ANTIOQUIAHISPANIA","05353"]
["05360","ANTIOQUIA","05","ITAGUI","360","ANTIOQUIAITAGUI","05360"]
["05361","ANTIOQUIA","05","ITUANGO","361","ANTIOQUIAITUANGO","05361"]
["05364","ANTIOQUIA","05","JARDIN","364","ANTIOQUIAJARDIN","05364"]
["05368","ANTIOQUIA","05","JERICO","368","ANTIOQUIAJERICO","05368"]
["05376","ANTIOQUIA","05","LA CEJA","376","ANTIOQUIALA CEJA","05376"]
["05380","ANTIOQUIA","05","LA ESTRELLA","380","ANTIOQUIALA ESTRELLA","05380"]
["05390","ANTIOQUIA","05","LA PINTADA","390","ANTIOQUIALA PINTADA",{"$f":"+CONCATENATE(C66,E66)","v":"05390"}]
["05400","ANTIOQUIA","05","LA UNION","400",{"$f":"+B67&D67","v":"ANTIOQUIALA UNION"},"05400"]
["05411","ANTIOQUIA","05","LIBORINA","411","ANTIOQUIALIBORINA","05411"]
["05425","ANTIOQUIA","05","MACEO","425","ANTIOQUIAMACEO","05425"]
["05440","ANTIOQUIA","05","MARINILLA","440","ANTIOQUIAMARINILLA","05440"]
["05467","ANTIOQUIA","05","MONTEBELLO","467","ANTIOQUIAMONTEBELLO","05467"]
["05475","ANTIOQUIA","05","MURINDO","475","ANTIOQUIAMURINDO","05475"]
["05480","ANTIOQUIA","05","MUTATA","480","ANTIOQUIAMUTATA","05480"]
["05483","ANTIOQUIA","05","NARIÑO","483","ANTIOQUIANARIÑO","05483"]
["05490","ANTIOQUIA","05","NECOCLI","490","ANTIOQUIANECOCLI","05490"]
["05495","ANTIOQUIA","05","NECHI","495","ANTIOQUIANECHI","05495"]
["05501","ANTIOQUIA","05","OLAYA","501","ANTIOQUIAOLAYA","05501"]
["05541","ANTIOQUIA","05","PEÐOL","541","ANTIOQUIAPEÐOL","05541"]
["05543","ANTIOQUIA","05","PEQUE","543","ANTIOQUIAPEQUE","05543"]
["05576","ANTIOQUIA","05","PUEBLORRICO","576","ANTIOQUIAPUEBLORRICO","05576"]
["05579","ANTIOQUIA","05","PUERTO BERRIO","579","ANTIOQUIAPUERTO BERRIO","05579"]
["05585","ANTIOQUIA","05","PUERTO NARE","585","ANTIOQUIAPUERTO NARE","05585"]
["05591","ANTIOQUIA","05","PUERTO TRIUNFO","591","ANTIOQUIAPUERTO TRIUNFO","05591"]
["05604","ANTIOQUIA","05","REMEDIOS","604","ANTIOQUIAREMEDIOS","05604"]
["05607","ANTIOQUIA","05","RETIRO","607","ANTIOQUIARETIRO","05607"]
["05615","ANTIOQUIA","05","RIONEGRO","615","ANTIOQUIARIONEGRO","05615"]
["05628","ANTIOQUIA","05","SABANALARGA","628","ANTIOQUIASABANALARGA","05628"]
["05631","ANTIOQUIA","05","SABANETA","631","ANTIOQUIASABANETA","05631"]
["05642","ANTIOQUIA","05","SALGAR","642","ANTIOQUIASALGAR","05642"]
["05647","ANTIOQUIA","05","SAN ANDRES DE CUERQUIA","647","ANTIOQUIASAN ANDRES DE CUERQUIA","05647"]
["05649","ANTIOQUIA","05","SAN CARLOS","649","ANTIOQUIASAN CARLOS","05649"]
["05652","ANTIOQUIA","05","SAN FRANCISCO","652","ANTIOQUIASAN FRANCISCO","05652"]
["05656","ANTIOQUIA","05","SAN JERONIMO","656","ANTIOQUIASAN JERONIMO","05656"]
["05658","ANTIOQUIA","05","SAN JOSE DE LA MONTAÑA","658","ANTIOQUIASAN JOSE DE LA MONTAÑA","05658"]
["05659","ANTIOQUIA","05","SAN JUAN DE URABA","659","ANTIOQUIASAN JUAN DE URABA","05659"]
["05660","ANTIOQUIA","05","SAN LUIS","660","ANTIOQUIASAN LUIS","05660"]
["05664","ANTIOQUIA","05","SAN PEDRO","664","ANTIOQUIASAN PEDRO","05664"]
["05665","ANTIOQUIA","05","SAN PEDRO DE URABA","665","ANTIOQUIASAN PEDRO DE URABA","05665"]
["05667","ANTIOQUIA","05","SAN RAFAEL","667","ANTIOQUIASAN RAFAEL","05667"]
["05670","ANTIOQUIA","05","SAN ROQUE","670","ANTIOQUIASAN ROQUE","05670"]
["05674","ANTIOQUIA","05","SAN VICENTE","674","ANTIOQUIASAN VICENTE","05674"]
["05679","ANTIOQUIA","05","SANTA BARBARA","679","ANTIOQUIASANTA BARBARA","05679"]
["05686","ANTIOQUIA","05","SANTA ROSA DE OSOS","686","ANTIOQUIASANTA ROSA DE OSOS","05686"]
["05690","ANTIOQUIA","05","SANTO DOMINGO","690","ANTIOQUIASANTO DOMINGO","05690"]
["05697","ANTIOQUIA","05","EL SANTUARIO","697","ANTIOQUIAEL SANTUARIO","05697"]
["05736","ANTIOQUIA","05","SEGOVIA","736","ANTIOQUIASEGOVIA","05736"]
["05756","ANTIOQUIA","05","SONSON","756","ANTIOQUIASONSON","05756"]
["05761","ANTIOQUIA","05","SOPETRAN","761","ANTIOQUIASOPETRAN","05761"]
["05789","ANTIOQUIA","05","TAMESIS","789","ANTIOQUIATAMESIS","05789"]
["05790","ANTIOQUIA","05","TARAZA","790","ANTIOQUIATARAZA","05790"]
["05792","ANTIOQUIA","05","TARSO","792","ANTIOQUIATARSO","05792"]
["05809","ANTIOQUIA","05","TITIRIBI","809","ANTIOQUIATITIRIBI","05809"]
["05819","ANTIOQUIA","05","TOLEDO","819","ANTIOQUIATOLEDO","05819"]
["05837","ANTIOQUIA","05","TURBO","837","ANTIOQUIATURBO","05837"]
["05842","ANTIOQUIA","05","URAMITA","842","ANTIOQUIAURAMITA","05842"]
["05847","ANTIOQUIA","05","URRAO","847","ANTIOQUIAURRAO","05847"]
["05854","ANTIOQUIA","05","VALDIVIA","854","ANTIOQUIAVALDIVIA","05854"]
["05856","ANTIOQUIA","05","VALPARAISO","856","ANTIOQUIAVALPARAISO","05856"]
["05858","ANTIOQUIA","05","VEGACHI","858","ANTIOQUIAVEGACHI","05858"]
["05861","ANTIOQUIA","05","VENECIA","861","ANTIOQUIAVENECIA","05861"]
["05873","ANTIOQUIA","05","VIGIA DEL FUERTE","873","ANTIOQUIAVIGIA DEL FUERTE","05873"]
["05885","ANTIOQUIA","05","YALI","885","ANTIOQUIAYALI","05885"]
["05887","ANTIOQUIA","05","YARUMAL","887","ANTIOQUIAYARUMAL","05887"]
["05890","ANTIOQUIA","05","YOLOMBO","890","ANTIOQUIAYOLOMBO","05890"]
["05893","ANTIOQUIA","05","YONDO","893","ANTIOQUIAYONDO","05893"]
["05895","ANTIOQUIA","05","ZARAGOZA","895","ANTIOQUIAZARAGOZA","05895"]
["08001","ATLANTICO","08","BARRANQUILLA","001","ATLANTICOBARRANQUILLA","08001"]
["08078","ATLANTICO","08","BARANOA","078","ATLANTICOBARANOA","08078"]
["08137","ATLANTICO","08","CAMPO DE LA CRUZ","137","ATLANTICOCAMPO DE LA CRUZ","08137"]
["08141","ATLANTICO","08","CANDELARIA","141","ATLANTICOCANDELARIA",{"$f":"+CONCATENATE(C130,E130)","v":"08141"}]
["08296","ATLANTICO","08","GALAPA","296",{"$f":"+B131&D131","v":"ATLANTICOGALAPA"},"08296"]
["08372","ATLANTICO","08","JUAN DE ACOSTA","372","ATLANTICOJUAN DE ACOSTA","08372"]
["08421","ATLANTICO","08","LURUACO","421","ATLANTICOLURUACO","08421"]
["08433","ATLANTICO","08","MALAMBO","433","ATLANTICOMALAMBO","08433"]
["08436","ATLANTICO","08","MANATI","436","ATLANTICOMANATI","08436"]
["08520","ATLANTICO","08","PALMAR DE VARELA","520","ATLANTICOPALMAR DE VARELA","08520"]
["08549","ATLANTICO","08","PIOJO","549","ATLANTICOPIOJO","08549"]
["08558","ATLANTICO","08","POLONUEVO","558","ATLANTICOPOLONUEVO","08558"]
["08560","ATLANTICO","08","PONEDERA","560","ATLANTICOPONEDERA","08560"]
["08573","ATLANTICO","08","PUERTO COLOMBIA","573","ATLANTICOPUERTO COLOMBIA","08573"]
["08606","ATLANTICO","08","REPELON","606","ATLANTICOREPELON","08606"]
["08634","ATLANTICO","08","SABANAGRANDE","634","ATLANTICOSABANAGRANDE","08634"]
["08638","ATLANTICO","08","SABANALARGA","638","ATLANTICOSABANALARGA","08638"]
["08675","ATLANTICO","08","SANTA LUCIA","675","ATLANTICOSANTA LUCIA","08675"]
["08685","ATLANTICO","08","SANTO TOMAS","685","ATLANTICOSANTO TOMAS","08685"]
["08758","ATLANTICO","08","SOLEDAD","758","ATLANTICOSOLEDAD","08758"]
["08770","ATLANTICO","08","SUAN","770","ATLANTICOSUAN","08770"]
["08832","ATLANTICO","08","TUBARA","832","ATLANTICOTUBARA","08832"]
["08849","ATLANTICO","08","USIACURI","849","ATLANTICOUSIACURI","08849"]
["11001","BOGOTA","11","BOGOTA, D.C.","001","BOGOTABOGOTA, D.C.","11001"]
["13001","BOLIVAR","13","CARTAGENA","001","BOLIVARCARTAGENA","13001"]
["13006","BOLIVAR","13","ACHI","006","BOLIVARACHI","13006"]
["13030","BOLIVAR","13","ALTOS DEL ROSARIO","030","BOLIVARALTOS DEL ROSARIO","13030"]
["13042","BOLIVAR","13","ARENAL","042","BOLIVARARENAL","13042"]
["13052","BOLIVAR","13","ARJONA","052","BOLIVARARJONA","13052"]
["13062","BOLIVAR","13","ARROYOHONDO","062","BOLIVARARROYOHONDO","13062"]
["13074","BOLIVAR","13","BARRANCO DE LOBA","074","BOLIVARBARRANCO DE LOBA","13074"]
["13140","BOLIVAR","13","CALAMAR","140","BOLIVARCALAMAR","13140"]
["13160","BOLIVAR","13","CANTAGALLO","160","BOLIVARCANTAGALLO","13160"]
["13188","BOLIVAR","13","CICUCO","188","BOLIVARCICUCO","13188"]
["13212","BOLIVAR","13","CORDOBA","212","BOLIVARCORDOBA","13212"]
["13222","BOLIVAR","13","CLEMENCIA","222","BOLIVARCLEMENCIA","13222"]
["13244","BOLIVAR","13","EL CARMEN DE BOLIVAR","244","BOLIVAREL CARMEN DE BOLIVAR","13244"]
["13248","BOLIVAR","13","EL GUAMO","248","BOLIVAREL GUAMO","13248"]
["13268","BOLIVAR","13","EL PEÑON","268","BOLIVAREL PEÑON","13268"]
["13300","BOLIVAR","13","HATILLO DE LOBA","300","BOLIVARHATILLO DE LOBA","13300"]
["13430","BOLIVAR","13","MAGANGUE","430","BOLIVARMAGANGUE","13430"]
["13433","BOLIVAR","13","MAHATES","433","BOLIVARMAHATES","13433"]
["13440","BOLIVAR","13","MARGARITA","440","BOLIVARMARGARITA","13440"]
["13442","BOLIVAR","13","MARIA LA BAJA","442","BOLIVARMARIA LA BAJA","13442"]
["13458","BOLIVAR","13","MONTECRISTO","458","BOLIVARMONTECRISTO","13458"]
["13468","BOLIVAR","13","MOMPOS","468","BOLIVARMOMPOS","13468"]
["13490","BOLIVAR","13","NOROSI","490","BOLIVARNOROSI","13490"]
["13473","BOLIVAR","13","MORALES","473","BOLIVARMORALES","13473"]
["13549","BOLIVAR","13","PINILLOS","549","BOLIVARPINILLOS","13549"]
["13580","BOLIVAR","13","REGIDOR","580","BOLIVARREGIDOR","13580"]
["13600","BOLIVAR","13","RIO VIEJO","600","BOLIVARRIO VIEJO","13600"]
["13620","BOLIVAR","13","SAN CRISTOBAL","620","BOLIVARSAN CRISTOBAL","13620"]
["13647","BOLIVAR","13","SAN ESTANISLAO","647","BOLIVARSAN ESTANISLAO","13647"]
["13650","BOLIVAR","13","SAN FERNANDO","650","BOLIVARSAN FERNANDO","13650"]
["13654","BOLIVAR","13","SAN JACINTO","654","BOLIVARSAN JACINTO","13654"]
["13655","BOLIVAR","13","SAN JACINTO DEL CAUCA","655","BOLIVARSAN JACINTO DEL CAUCA","13655"]
["13657","BOLIVAR","13","SAN JUAN NEPOMUCENO","657","BOLIVARSAN JUAN NEPOMUCENO","13657"]
["13667","BOLIVAR","13","SAN MARTIN DE LOBA","667","BOLIVARSAN MARTIN DE LOBA","13667"]
["13670","BOLIVAR","13","SAN PABLO","670","BOLIVARSAN PABLO","13670"]
["13673","BOLIVAR","13","SANTA CATALINA","673","BOLIVARSANTA CATALINA","13673"]
["13683","BOLIVAR","13","SANTA ROSA","683","BOLIVARSANTA ROSA","13683"]
["13688","BOLIVAR","13","SANTA ROSA DEL SUR","688","BOLIVARSANTA ROSA DEL SUR","13688"]
["13744","BOLIVAR","13","SIMITI","744","BOLIVARSIMITI","13744"]
["13760","BOLIVAR","13","SOPLAVIENTO","760","BOLIVARSOPLAVIENTO","13760"]
["13780","BOLIVAR","13","TALAIGUA NUEVO","780","BOLIVARTALAIGUA NUEVO","13780"]
["13810","BOLIVAR","13","TIQUISIO","810","BOLIVARTIQUISIO","13810"]
["13836","BOLIVAR","13","TURBACO","836","BOLIVARTURBACO","13836"]
["13838","BOLIVAR","13","TURBANA","838","BOLIVARTURBANA",{"$f":"+CONCATENATE(C194,E194)","v":"13838"}]
["13873","BOLIVAR","13","VILLANUEVA","873",{"$f":"+B195&D195","v":"BOLIVARVILLANUEVA"},"13873"]
["13894","BOLIVAR","13","ZAMBRANO","894","BOLIVARZAMBRANO","13894"]
["15001","BOYACA","15","TUNJA","001","BOYACATUNJA","15001"]
["15022","BOYACA","15","ALMEIDA","022","BOYACAALMEIDA","15022"]
["15047","BOYACA","15","AQUITANIA","047","BOYACAAQUITANIA","15047"]
["15051","BOYACA","15","ARCABUCO","051","BOYACAARCABUCO","15051"]
["15087","BOYACA","15","BELEN","087","BOYACABELEN","15087"]
["15090","BOYACA","15","BERBEO","090","BOYACABERBEO","15090"]
["15092","BOYACA","15","BETEITIVA","092","BOYACABETEITIVA","15092"]
["15097","BOYACA","15","BOAVITA","097","BOYACABOAVITA","15097"]
["15104","BOYACA","15","BOYACA","104","BOYACABOYACA","15104"]
["15106","BOYACA","15","BRICEÑO","106","BOYACABRICEÑO","15106"]
["15109","BOYACA","15","BUENAVISTA","109","BOYACABUENAVISTA","15109"]
["15114","BOYACA","15","BUSBANZA","114","BOYACABUSBANZA","15114"]
["15131","BOYACA","15","CALDAS","131","BOYACACALDAS","15131"]
["15135","BOYACA","15","CAMPOHERMOSO","135","BOYACACAMPOHERMOSO","15135"]
["15162","BOYACA","15","CERINZA","162","BOYACACERINZA","15162"]
["15172","BOYACA","15","CHINAVITA","172","BOYACACHINAVITA","15172"]
["15176","BOYACA","15","CHIQUINQUIRA","176","BOYACACHIQUINQUIRA","15176"]
["15180","BOYACA","15","CHISCAS","180","BOYACACHISCAS","15180"]
["15183","BOYACA","15","CHITA","183","BOYACACHITA","15183"]
["15185","BOYACA","15","CHITARAQUE","185","BOYACACHITARAQUE","15185"]
["15187","BOYACA","15","CHIVATA","187","BOYACACHIVATA","15187"]
["15189","BOYACA","15","CIENEGA","189","BOYACACIENEGA","15189"]
["15204","BOYACA","15","COMBITA","204","BOYACACOMBITA","15204"]
["15212","BOYACA","15","COPER","212","BOYACACOPER","15212"]
["15215","BOYACA","15","CORRALES","215","BOYACACORRALES","15215"]
["15218","BOYACA","15","COVARACHIA","218","BOYACACOVARACHIA","15218"]
["15223","BOYACA","15","CUBARA","223","BOYACACUBARA","15223"]
["15224","BOYACA","15","CUCAITA","224","BOYACACUCAITA","15224"]
["15226","BOYACA","15","CUITIVA","226","BOYACACUITIVA","15226"]
["15232","BOYACA","15","CHIQUIZA","232","BOYACACHIQUIZA","15232"]
["15236","BOYACA","15","CHIVOR","236","BOYACACHIVOR","15236"]
["15238","BOYACA","15","DUITAMA","238","BOYACADUITAMA","15238"]
["15244","BOYACA","15","EL COCUY","244","BOYACAEL COCUY","15244"]
["15248","BOYACA","15","EL ESPINO","248","BOYACAEL ESPINO","15248"]
["15272","BOYACA","15","FIRAVITOBA","272","BOYACAFIRAVITOBA","15272"]
["15276","BOYACA","15","FLORESTA","276","BOYACAFLORESTA","15276"]
["15293","BOYACA","15","GACHANTIVA","293","BOYACAGACHANTIVA","15293"]
["15296","BOYACA","15","GAMEZA","296","BOYACAGAMEZA","15296"]
["15299","BOYACA","15","GARAGOA","299","BOYACAGARAGOA","15299"]
["15317","BOYACA","15","GUACAMAYAS","317","BOYACAGUACAMAYAS","15317"]
["15322","BOYACA","15","GUATEQUE","322","BOYACAGUATEQUE","15322"]
["15325","BOYACA","15","GUAYATA","325","BOYACAGUAYATA","15325"]
["15332","BOYACA","15","GsICAN","332","BOYACAGsICAN","15332"]
["15362","BOYACA","15","IZA","362","BOYACAIZA","15362"]
["15367","BOYACA","15","JENESANO","367","BOYACAJENESANO","15367"]
["15368","BOYACA","15","JERICO","368","BOYACAJERICO","15368"]
["15377","BOYACA","15","LABRANZAGRANDE","377","BOYACALABRANZAGRANDE","15377"]
["15380","BOYACA","15","LA CAPILLA","380","BOYACALA CAPILLA","15380"]
["15401","BOYACA","15","LA VICTORIA","401","BOYACALA VICTORIA","15401"]
["15403","BOYACA","15","LA UVITA","403","BOYACALA UVITA","15403"]
["15407","BOYACA","15","VILLA DE LEYVA","407","BOYACAVILLA DE LEYVA","15407"]
["15425","BOYACA","15","MACANAL","425","BOYACAMACANAL","15425"]
["15442","BOYACA","15","MARIPI","442","BOYACAMARIPI","15442"]
["15455","BOYACA","15","MIRAFLORES","455","BOYACAMIRAFLORES","15455"]
["15464","BOYACA","15","MONGUA","464","BOYACAMONGUA","15464"]
["15466","BOYACA","15","MONGUI","466","BOYACAMONGUI","15466"]
["15469","BOYACA","15","MONIQUIRA","469","BOYACAMONIQUIRA","15469"]
["15476","BOYACA","15","MOTAVITA","476","BOYACAMOTAVITA","15476"]
["15480","BOYACA","15","MUZO","480","BOYACAMUZO","15480"]
["15491","BOYACA","15","NOBSA","491","BOYACANOBSA","15491"]
["15494","BOYACA","15","NUEVO COLON","494","BOYACANUEVO COLON","15494"]
["15500","BOYACA","15","OICATA","500","BOYACAOICATA",{"$f":"+CONCATENATE(C258,E258)","v":"15500"}]
["15507","BOYACA","15","OTANCHE","507",{"$f":"+B259&D259","v":"BOYACAOTANCHE"},"15507"]
["15511","BOYACA","15","PACHAVITA","511","BOYACAPACHAVITA","15511"]
["15514","BOYACA","15","PAEZ","514","BOYACAPAEZ","15514"]
["15516","BOYACA","15","PAIPA","516","BOYACAPAIPA","15516"]
["15518","BOYACA","15","PAJARITO","518","BOYACAPAJARITO","15518"]
["15522","BOYACA","15","PANQUEBA","522","BOYACAPANQUEBA","15522"]
["15531","BOYACA","15","PAUNA","531","BOYACAPAUNA","15531"]
["15533","BOYACA","15","PAYA","533","BOYACAPAYA","15533"]
["15537","BOYACA","15","PAZ DE RIO","537","BOYACAPAZ DE RIO","15537"]
["15542","BOYACA","15","PESCA","542","BOYACAPESCA","15542"]
["15550","BOYACA","15","PISBA","550","BOYACAPISBA","15550"]
["15572","BOYACA","15","PUERTO BOYACA","572","BOYACAPUERTO BOYACA","15572"]
["15580","BOYACA","15","QUIPAMA","580","BOYACAQUIPAMA","15580"]
["15599","BOYACA","15","RAMIRIQUI","599","BOYACARAMIRIQUI","15599"]
["15600","BOYACA","15","RAQUIRA","600","BOYACARAQUIRA","15600"]
["15621","BOYACA","15","RONDON","621","BOYACARONDON","15621"]
["15632","BOYACA","15","SABOYA","632","BOYACASABOYA","15632"]
["15638","BOYACA","15","SACHICA","638","BOYACASACHICA","15638"]
["15646","BOYACA","15","SAMACA","646","BOYACASAMACA","15646"]
["15660","BOYACA","15","SAN EDUARDO","660","BOYACASAN EDUARDO","15660"]
["15664","BOYACA","15","SAN JOSE DE PARE","664","BOYACASAN JOSE DE PARE","15664"]
["15667","BOYACA","15","SAN LUIS DE GACENO","667","BOYACASAN LUIS DE GACENO","15667"]
["15673","BOYACA","15","SAN MATEO","673","BOYACASAN MATEO","15673"]
["15676","BOYACA","15","SAN MIGUEL DE SEMA","676","BOYACASAN MIGUEL DE SEMA","15676"]
["15681","BOYACA","15","SAN PABLO DE BORBUR","681","BOYACASAN PABLO DE BORBUR","15681"]
["15686","BOYACA","15","SANTANA","686","BOYACASANTANA","15686"]
["15690","BOYACA","15","SANTA MARIA","690","BOYACASANTA MARIA","15690"]
["15693","BOYACA","15","SANTA ROSA DE VITERBO","693","BOYACASANTA ROSA DE VITERBO","15693"]
["15696","BOYACA","15","SANTA SOFIA","696","BOYACASANTA SOFIA","15696"]
["15720","BOYACA","15","SATIVANORTE","720","BOYACASATIVANORTE","15720"]
["15723","BOYACA","15","SATIVASUR","723","BOYACASATIVASUR","15723"]
["15740","BOYACA","15","SIACHOQUE","740","BOYACASIACHOQUE","15740"]
["15753","BOYACA","15","SOATA","753","BOYACASOATA","15753"]
["15755","BOYACA","15","SOCOTA","755","BOYACASOCOTA","15755"]
["15757","BOYACA","15","SOCHA","757","BOYACASOCHA","15757"]
["15759","BOYACA","15","SOGAMOSO","759","BOYACASOGAMOSO","15759"]
["15761","BOYACA","15","SOMONDOCO","761","BOYACASOMONDOCO","15761"]
["15762","BOYACA","15","SORA","762","BOYACASORA","15762"]
["15763","BOYACA","15","SOTAQUIRA","763","BOYACASOTAQUIRA","15763"]
["15764","BOYACA","15","SORACA","764","BOYACASORACA","15764"]
["15774","BOYACA","15","SUSACON","774","BOYACASUSACON","15774"]
["15776","BOYACA","15","SUTAMARCHAN","776","BOYACASUTAMARCHAN","15776"]
["15778","BOYACA","15","SUTATENZA","778","BOYACASUTATENZA","15778"]
["15790","BOYACA","15","TASCO","790","BOYACATASCO","15790"]
["15798","BOYACA","15","TENZA","798","BOYACATENZA","15798"]
["15804","BOYACA","15","TIBANA","804","BOYACATIBANA","15804"]
["15806","BOYACA","15","TIBASOSA","806","BOYACATIBASOSA","15806"]
["15808","BOYACA","15","TINJACA","808","BOYACATINJACA","15808"]
["15810","BOYACA","15","TIPACOQUE","810","BOYACATIPACOQUE","15810"]
["15814","BOYACA","15","TOCA","814","BOYACATOCA","15814"]
["15816","BOYACA","15","TOGsI","816","BOYACATOGsI","15816"]
["15820","BOYACA","15","TOPAGA","820","BOYACATOPAGA","15820"]
["15822","BOYACA","15","TOTA","822","BOYACATOTA","15822"]
["15832","BOYACA","15","TUNUNGUA","832","BOYACATUNUNGUA","15832"]
["15835","BOYACA","15","TURMEQUE","835","BOYACATURMEQUE","15835"]
["15837","BOYACA","15","TUTA","837","BOYACATUTA","15837"]
["15839","BOYACA","15","TUTAZA","839","BOYACATUTAZA","15839"]
["15842","BOYACA","15","UMBITA","842","BOYACAUMBITA","15842"]
["15861","BOYACA","15","VENTAQUEMADA","861","BOYACAVENTAQUEMADA","15861"]
["15879","BOYACA","15","VIRACACHA","879","BOYACAVIRACACHA","15879"]
["15897","BOYACA","15","ZETAQUIRA","897","BOYACAZETAQUIRA","15897"]
["17001","CALDAS","17","MANIZALES","001","CALDASMANIZALES","17001"]
["17013","CALDAS","17","AGUADAS","013","CALDASAGUADAS","17013"]
["17042","CALDAS","17","ANSERMA","042","CALDASANSERMA",{"$f":"+CONCATENATE(C322,E322)","v":"17042"}]
["17050","CALDAS","17","ARANZAZU","050",{"$f":"+B323&D323","v":"CALDASARANZAZU"},"17050"]
["17088","CALDAS","17","BELALCAZAR","088","CALDASBELALCAZAR","17088"]
["17174","CALDAS","17","CHINCHINA","174","CALDASCHINCHINA","17174"]
["17272","CALDAS","17","FILADELFIA","272","CALDASFILADELFIA","17272"]
["17380","CALDAS","17","LA DORADA","380","CALDASLA DORADA","17380"]
["17388","CALDAS","17","LA MERCED","388","CALDASLA MERCED","17388"]
["17433","CALDAS","17","MANZANARES","433","CALDASMANZANARES","17433"]
["17442","CALDAS","17","MARMATO","442","CALDASMARMATO","17442"]
["17444","CALDAS","17","MARQUETALIA","444","CALDASMARQUETALIA","17444"]
["17446","CALDAS","17","MARULANDA","446","CALDASMARULANDA","17446"]
["17486","CALDAS","17","NEIRA","486","CALDASNEIRA","17486"]
["17495","CALDAS","17","NORCASIA","495","CALDASNORCASIA","17495"]
["17513","CALDAS","17","PACORA","513","CALDASPACORA","17513"]
["17524","CALDAS","17","PALESTINA","524","CALDASPALESTINA","17524"]
["17541","CALDAS","17","PENSILVANIA","541","CALDASPENSILVANIA","17541"]
["17614","CALDAS","17","RIOSUCIO","614","CALDASRIOSUCIO","17614"]
["17616","CALDAS","17","RISARALDA","616","CALDASRISARALDA","17616"]
["17653","CALDAS","17","SALAMINA","653","CALDASSALAMINA","17653"]
["17662","CALDAS","17","SAMANA","662","CALDASSAMANA","17662"]
["17665","CALDAS","17","SAN JOSE","665","CALDASSAN JOSE","17665"]
["17777","CALDAS","17","SUPIA","777","CALDASSUPIA","17777"]
["17867","CALDAS","17","VICTORIA","867","CALDASVICTORIA","17867"]
["17873","CALDAS","17","VILLAMARIA","873","CALDASVILLAMARIA","17873"]
["17877","CALDAS","17","VITERBO","877","CALDASVITERBO","17877"]
["18001","CAQUETA","18","FLORENCIA","001","CAQUETAFLORENCIA","18001"]
["18029","CAQUETA","18","ALBANIA","029","CAQUETAALBANIA","18029"]
["18094","CAQUETA","18","BELEN DE LOS ANDAQUIES","094","CAQUETABELEN DE LOS ANDAQUIES","18094"]
["18150","CAQUETA","18","CARTAGENA DEL CHAIRA","150","CAQUETACARTAGENA DEL CHAIRA","18150"]
["18205","CAQUETA","18","CURILLO","205","CAQUETACURILLO","18205"]
["18247","CAQUETA","18","EL DONCELLO","247","CAQUETAEL DONCELLO","18247"]
["18256","CAQUETA","18","EL PAUJIL","256","CAQUETAEL PAUJIL","18256"]
["18410","CAQUETA","18","LA MONTAÑITA","410","CAQUETALA MONTAÑITA","18410"]
["18460","CAQUETA","18","MILAN","460","CAQUETAMILAN","18460"]
["18479","CAQUETA","18","MORELIA","479","CAQUETAMORELIA","18479"]
["18592","CAQUETA","18","PUERTO RICO","592","CAQUETAPUERTO RICO","18592"]
["18610","CAQUETA","18","SAN JOSE DEL FRAGUA","610","CAQUETASAN JOSE DEL FRAGUA","18610"]
["18753","CAQUETA","18","SAN VICENTE DEL CAGUAN","753","CAQUETASAN VICENTE DEL CAGUAN","18753"]
["18756","CAQUETA","18","SOLANO","756","CAQUETASOLANO","18756"]
["18785","CAQUETA","18","SOLITA","785","CAQUETASOLITA","18785"]
["18860","CAQUETA","18","VALPARAISO","860","CAQUETAVALPARAISO","18860"]
["19001","CAUCA","19","POPAYAN","001","CAUCAPOPAYAN","19001"]
["19022","CAUCA","19","ALMAGUER","022","CAUCAALMAGUER","19022"]
["19050","CAUCA","19","ARGELIA","050","CAUCAARGELIA","19050"]
["19075","CAUCA","19","BALBOA","075","CAUCABALBOA","19075"]
["19100","CAUCA","19","BOLIVAR","100","CAUCABOLIVAR","19100"]
["19110","CAUCA","19","BUENOS AIRES","110","CAUCABUENOS AIRES","19110"]
["19130","CAUCA","19","CAJIBIO","130","CAUCACAJIBIO","19130"]
["19137","CAUCA","19","CALDONO","137","CAUCACALDONO","19137"]
["19142","CAUCA","19","CALOTO","142","CAUCACALOTO","19142"]
["19212","CAUCA","19","CORINTO","212","CAUCACORINTO","19212"]
["19256","CAUCA","19","EL TAMBO","256","CAUCAEL TAMBO","19256"]
["19290","CAUCA","19","FLORENCIA","290","CAUCAFLORENCIA","19290"]
["19300","CAUCA","19","GUACHENE",300,"CAUCAGUACHENE","19300"]
["19318","CAUCA","19","GUAPI","318","CAUCAGUAPI","19318"]
["19355","CAUCA","19","INZA","355","CAUCAINZA","19355"]
["19364","CAUCA","19","JAMBALO","364","CAUCAJAMBALO","19364"]
["19392","CAUCA","19","LA SIERRA","392","CAUCALA SIERRA","19392"]
["19397","CAUCA","19","LA VEGA","397","CAUCALA VEGA","19397"]
["19418","CAUCA","19","LOPEZ","418","CAUCALOPEZ","19418"]
["19450","CAUCA","19","MERCADERES","450","CAUCAMERCADERES","19450"]
["19455","CAUCA","19","MIRANDA","455","CAUCAMIRANDA","19455"]
["19473","CAUCA","19","MORALES","473","CAUCAMORALES","19473"]
["19513","CAUCA","19","PADILLA","513","CAUCAPADILLA","19513"]
["19517","CAUCA","19","PAEZ","517","CAUCAPAEZ",{"$f":"+CONCATENATE(C386,E386)","v":"19517"}]
["19532","CAUCA","19","PATIA","532",{"$f":"+B387&D387","v":"CAUCAPATIA"},"19532"]
["19533","CAUCA","19","PIAMONTE","533","CAUCAPIAMONTE","19533"]
["19548","CAUCA","19","PIENDAMO","548","CAUCAPIENDAMO","19548"]
["19573","CAUCA","19","PUERTO TEJADA","573","CAUCAPUERTO TEJADA","19573"]
["19585","CAUCA","19","PURACE","585","CAUCAPURACE","19585"]
["19622","CAUCA","19","ROSAS","622","CAUCAROSAS","19622"]
["19693","CAUCA","19","SAN SEBASTIAN","693","CAUCASAN SEBASTIAN","19693"]
["19698","CAUCA","19","SANTANDER DE QUILICHAO","698","CAUCASANTANDER DE QUILICHAO","19698"]
["19701","CAUCA","19","SANTA ROSA","701","CAUCASANTA ROSA","19701"]
["19743","CAUCA","19","SILVIA","743","CAUCASILVIA","19743"]
["19760","CAUCA","19","SOTARA","760","CAUCASOTARA","19760"]
["19780","CAUCA","19","SUAREZ","780","CAUCASUAREZ","19780"]
["19785","CAUCA","19","SUCRE","785","CAUCASUCRE","19785"]
["19807","CAUCA","19","TIMBIO","807","CAUCATIMBIO","19807"]
["19809","CAUCA","19","TIMBIQUI","809","CAUCATIMBIQUI","19809"]
["19821","CAUCA","19","TORIBIO","821","CAUCATORIBIO","19821"]
["19824","CAUCA","19","TOTORO","824","CAUCATOTORO","19824"]
["19845","CAUCA","19","VILLA RICA","845","CAUCAVILLA RICA","19845"]
["20001","CESAR","20","VALLEDUPAR","001","CESARVALLEDUPAR","20001"]
["20011","CESAR","20","AGUACHICA","011","CESARAGUACHICA","20011"]
["20013","CESAR","20","AGUSTIN CODAZZI","013","CESARAGUSTIN CODAZZI","20013"]
["20032","CESAR","20","ASTREA","032","CESARASTREA","20032"]
["20045","CESAR","20","BECERRIL","045","CESARBECERRIL","20045"]
["20060","CESAR","20","BOSCONIA","060","CESARBOSCONIA","20060"]
["20175","CESAR","20","CHIMICHAGUA","175","CESARCHIMICHAGUA","20175"]
["20178","CESAR","20","CHIRIGUANA","178","CESARCHIRIGUANA","20178"]
["20228","CESAR","20","CURUMANI","228","CESARCURUMANI","20228"]
["20238","CESAR","20","EL COPEY","238","CESAREL COPEY","20238"]
["20250","CESAR","20","EL PASO","250","CESAREL PASO","20250"]
["20295","CESAR","20","GAMARRA","295","CESARGAMARRA","20295"]
["20310","CESAR","20","GONZALEZ","310","CESARGONZALEZ","20310"]
["20383","CESAR","20","LA GLORIA","383","CESARLA GLORIA","20383"]
["20400","CESAR","20","LA JAGUA DE IBIRICO","400","CESARLA JAGUA DE IBIRICO","20400"]
["20443","CESAR","20","MANAURE","443","CESARMANAURE","20443"]
["20517","CESAR","20","PAILITAS","517","CESARPAILITAS","20517"]
["20550","CESAR","20","PELAYA","550","CESARPELAYA","20550"]
["20570","CESAR","20","PUEBLO BELLO","570","CESARPUEBLO BELLO","20570"]
["20614","CESAR","20","RIO DE ORO","614","CESARRIO DE ORO","20614"]
["20621","CESAR","20","LA PAZ","621","CESARLA PAZ","20621"]
["20710","CESAR","20","SAN ALBERTO","710","CESARSAN ALBERTO","20710"]
["20750","CESAR","20","SAN DIEGO","750","CESARSAN DIEGO","20750"]
["20770","CESAR","20","SAN MARTIN","770","CESARSAN MARTIN","20770"]
["20787","CESAR","20","TAMALAMEQUE","787","CESARTAMALAMEQUE","20787"]
["23001","CORDOBA","23","MONTERIA","001","CORDOBAMONTERIA","23001"]
["23068","CORDOBA","23","AYAPEL","068","CORDOBAAYAPEL","23068"]
["23079","CORDOBA","23","BUENAVISTA","079","CORDOBABUENAVISTA","23079"]
["23090","CORDOBA","23","CANALETE","090","CORDOBACANALETE","23090"]
["23162","CORDOBA","23","CERETE","162","CORDOBACERETE","23162"]
["23168","CORDOBA","23","CHIMA","168","CORDOBACHIMA","23168"]
["23182","CORDOBA","23","CHINU","182","CORDOBACHINU","23182"]
["23189","CORDOBA","23","CIENAGA DE ORO","189","CORDOBACIENAGA DE ORO","23189"]
["23300","CORDOBA","23","COTORRA","300","CORDOBACOTORRA","23300"]
["23350","CORDOBA","23","LA APARTADA","350","CORDOBALA APARTADA","23350"]
["23417","CORDOBA","23","LORICA","417","CORDOBALORICA","23417"]
["23419","CORDOBA","23","LOS CORDOBAS","419","CORDOBALOS CORDOBAS","23419"]
["23464","CORDOBA","23","MOMIL","464","CORDOBAMOMIL","23464"]
["23466","CORDOBA","23","MONTELIBANO","466","CORDOBAMONTELIBANO","23466"]
["23500","CORDOBA","23","MOÑITOS","500","CORDOBAMOÑITOS","23500"]
["23555","CORDOBA","23","PLANETA RICA","555","CORDOBAPLANETA RICA","23555"]
["23570","CORDOBA","23","PUEBLO NUEVO","570","CORDOBAPUEBLO NUEVO","23570"]
["23574","CORDOBA","23","PUERTO ESCONDIDO","574","CORDOBAPUERTO ESCONDIDO","23574"]
["23580","CORDOBA","23","PUERTO LIBERTADOR","580","CORDOBAPUERTO LIBERTADOR","23580"]
["23586","CORDOBA","23","PURISIMA","586","CORDOBAPURISIMA","23586"]
["23660","CORDOBA","23","SAHAGUN","660","CORDOBASAHAGUN",{"$f":"+CONCATENATE(C450,E450)","v":"23660"}]
["23670","CORDOBA","23","SAN ANDRES SOTAVENTO","670",{"$f":"+B451&D451","v":"CORDOBASAN ANDRES SOTAVENTO"},"23670"]
["23672","CORDOBA","23","SAN ANTERO","672","CORDOBASAN ANTERO","23672"]
["23675","CORDOBA","23","SAN BERNARDO DEL VIENTO","675","CORDOBASAN BERNARDO DEL VIENTO","23675"]
["23678","CORDOBA","23","SAN CARLOS","678","CORDOBASAN CARLOS","23678"]
["23682","CORDOBA","23","SAN JOSE DE URE","682",{"$f":"+B455&D455","v":"CORDOBASAN JOSE DE URE"},{"$f":"+CONCATENATE(C455,E455)","v":"23682"}]
["23686","CORDOBA","23","SAN PELAYO","686",{"$f":"+B456&D456","v":"CORDOBASAN PELAYO"},{"$f":"+CONCATENATE(C456,E456)","v":"23686"}]
["23807","CORDOBA","23","TIERRALTA","807",{"$f":"+B457&D457","v":"CORDOBATIERRALTA"},{"$f":"+CONCATENATE(C457,E457)","v":"23807"}]
["23815","CORDOBA","23","TUCHIN","815",{"$f":"+B458&D458","v":"CORDOBATUCHIN"},{"$f":"+CONCATENATE(C458,E458)","v":"23815"}]
["23855","CORDOBA","23","VALENCIA","855",{"$f":"+B459&D459","v":"CORDOBAVALENCIA"},{"$f":"+CONCATENATE(C459,E459)","v":"23855"}]
["25001","CUNDINAMARCA","25","AGUA DE DIOS","001","CUNDINAMARCAAGUA DE DIOS","25001"]
["25019","CUNDINAMARCA","25","ALBAN","019","CUNDINAMARCAALBAN","25019"]
["25035","CUNDINAMARCA","25","ANAPOIMA","035","CUNDINAMARCAANAPOIMA","25035"]
["25040","CUNDINAMARCA","25","ANOLAIMA","040","CUNDINAMARCAANOLAIMA","25040"]
["25053","CUNDINAMARCA","25","ARBELAEZ","053","CUNDINAMARCAARBELAEZ","25053"]
["25086","CUNDINAMARCA","25","BELTRAN","086","CUNDINAMARCABELTRAN","25086"]
["25095","CUNDINAMARCA","25","BITUIMA","095","CUNDINAMARCABITUIMA","25095"]
["25099","CUNDINAMARCA","25","BOJACA","099","CUNDINAMARCABOJACA","25099"]
["25120","CUNDINAMARCA","25","CABRERA","120","CUNDINAMARCACABRERA","25120"]
["25123","CUNDINAMARCA","25","CACHIPAY","123","CUNDINAMARCACACHIPAY","25123"]
["25126","CUNDINAMARCA","25","CAJICA","126","CUNDINAMARCACAJICA","25126"]
["25148","CUNDINAMARCA","25","CAPARRAPI","148","CUNDINAMARCACAPARRAPI","25148"]
["25151","CUNDINAMARCA","25","CAQUEZA","151","CUNDINAMARCACAQUEZA","25151"]
["25154","CUNDINAMARCA","25","CARMEN DE CARUPA","154","CUNDINAMARCACARMEN DE CARUPA","25154"]
["25168","CUNDINAMARCA","25","CHAGUANI","168","CUNDINAMARCACHAGUANI","25168"]
["25175","CUNDINAMARCA","25","CHIA","175","CUNDINAMARCACHIA","25175"]
["25178","CUNDINAMARCA","25","CHIPAQUE","178","CUNDINAMARCACHIPAQUE","25178"]
["25181","CUNDINAMARCA","25","CHOACHI","181","CUNDINAMARCACHOACHI","25181"]
["25183","CUNDINAMARCA","25","CHOCONTA","183","CUNDINAMARCACHOCONTA","25183"]
["25200","CUNDINAMARCA","25","COGUA","200","CUNDINAMARCACOGUA","25200"]
["25214","CUNDINAMARCA","25","COTA","214","CUNDINAMARCACOTA","25214"]
["25224","CUNDINAMARCA","25","CUCUNUBA","224","CUNDINAMARCACUCUNUBA","25224"]
["25245","CUNDINAMARCA","25","EL COLEGIO","245","CUNDINAMARCAEL COLEGIO","25245"]
["25258","CUNDINAMARCA","25","EL PEÑON","258","CUNDINAMARCAEL PEÑON","25258"]
["25260","CUNDINAMARCA","25","EL ROSAL","260","CUNDINAMARCAEL ROSAL","25260"]
["25269","CUNDINAMARCA","25","FACATATIVA","269","CUNDINAMARCAFACATATIVA","25269"]
["25279","CUNDINAMARCA","25","FOMEQUE","279","CUNDINAMARCAFOMEQUE","25279"]
["25281","CUNDINAMARCA","25","FOSCA","281","CUNDINAMARCAFOSCA","25281"]
["25286","CUNDINAMARCA","25","FUNZA","286","CUNDINAMARCAFUNZA","25286"]
["25288","CUNDINAMARCA","25","FUQUENE","288","CUNDINAMARCAFUQUENE","25288"]
["25290","CUNDINAMARCA","25","FUSAGASUGA","290","CUNDINAMARCAFUSAGASUGA","25290"]
["25293","CUNDINAMARCA","25","GACHALA","293",{"$f":"+B491&D491","v":"CUNDINAMARCAGACHALA"},{"$f":"+CONCATENATE(C491,E491)","v":"25293"}]
["25295","CUNDINAMARCA","25","GACHANCIPA","295","CUNDINAMARCAGACHANCIPA","25295"]
["25297","CUNDINAMARCA","25","GACHETA","297","CUNDINAMARCAGACHETA","25297"]
["25299","CUNDINAMARCA","25","GAMA","299","CUNDINAMARCAGAMA","25299"]
["25307","CUNDINAMARCA","25","GIRARDOT","307","CUNDINAMARCAGIRARDOT","25307"]
["25312","CUNDINAMARCA","25","GRANADA","312","CUNDINAMARCAGRANADA","25312"]
["25317","CUNDINAMARCA","25","GUACHETA","317","CUNDINAMARCAGUACHETA","25317"]
["25320","CUNDINAMARCA","25","GUADUAS","320","CUNDINAMARCAGUADUAS","25320"]
["25322","CUNDINAMARCA","25","GUASCA","322","CUNDINAMARCAGUASCA","25322"]
["25324","CUNDINAMARCA","25","GUATAQUI","324","CUNDINAMARCAGUATAQUI","25324"]
["25326","CUNDINAMARCA","25","GUATAVITA","326","CUNDINAMARCAGUATAVITA","25326"]
["25328","CUNDINAMARCA","25","GUAYABAL DE SIQUIMA","328","CUNDINAMARCAGUAYABAL DE SIQUIMA","25328"]
["25335","CUNDINAMARCA","25","GUAYABETAL","335","CUNDINAMARCAGUAYABETAL","25335"]
["25339","CUNDINAMARCA","25","GUTIERREZ","339","CUNDINAMARCAGUTIERREZ","25339"]
["25368","CUNDINAMARCA","25","JERUSALEN","368","CUNDINAMARCAJERUSALEN","25368"]
["25372","CUNDINAMARCA","25","JUNIN","372","CUNDINAMARCAJUNIN","25372"]
["25377","CUNDINAMARCA","25","LA CALERA","377","CUNDINAMARCALA CALERA","25377"]
["25386","CUNDINAMARCA","25","LA MESA","386","CUNDINAMARCALA MESA","25386"]
["25394","CUNDINAMARCA","25","LA PALMA","394","CUNDINAMARCALA PALMA","25394"]
["25398","CUNDINAMARCA","25","LA PEÑA","398","CUNDINAMARCALA PEÑA","25398"]
["25402","CUNDINAMARCA","25","LA VEGA","402","CUNDINAMARCALA VEGA","25402"]
["25407","CUNDINAMARCA","25","LENGUAZAQUE","407","CUNDINAMARCALENGUAZAQUE","25407"]
["25426","CUNDINAMARCA","25","MACHETA","426","CUNDINAMARCAMACHETA","25426"]
["25430","CUNDINAMARCA","25","MADRID","430","CUNDINAMARCAMADRID","25430"]
["25436","CUNDINAMARCA","25","MANTA","436","CUNDINAMARCAMANTA","25436"]
["25438","CUNDINAMARCA","25","MEDINA","438","CUNDINAMARCAMEDINA",{"$f":"+CONCATENATE(C516,E516)","v":"25438"}]
["25473","CUNDINAMARCA","25","MOSQUERA","473",{"$f":"+B517&D517","v":"CUNDINAMARCAMOSQUERA"},"25473"]
["25483","CUNDINAMARCA","25","NARIÑO","483","CUNDINAMARCANARIÑO","25483"]
["25486","CUNDINAMARCA","25","NEMOCON","486","CUNDINAMARCANEMOCON","25486"]
["25488","CUNDINAMARCA","25","NILO","488","CUNDINAMARCANILO","25488"]
["25489","CUNDINAMARCA","25","NIMAIMA","489","CUNDINAMARCANIMAIMA","25489"]
["25491","CUNDINAMARCA","25","NOCAIMA","491","CUNDINAMARCANOCAIMA","25491"]
["25506","CUNDINAMARCA","25","VENECIA","506","CUNDINAMARCAVENECIA","25506"]
["25513","CUNDINAMARCA","25","PACHO","513","CUNDINAMARCAPACHO","25513"]
["25518","CUNDINAMARCA","25","PAIME","518","CUNDINAMARCAPAIME","25518"]
["25524","CUNDINAMARCA","25","PANDI","524","CUNDINAMARCAPANDI","25524"]
["25530","CUNDINAMARCA","25","PARATEBUENO","530","CUNDINAMARCAPARATEBUENO","25530"]
["25535","CUNDINAMARCA","25","PASCA","535","CUNDINAMARCAPASCA","25535"]
["25572","CUNDINAMARCA","25","PUERTO SALGAR","572","CUNDINAMARCAPUERTO SALGAR","25572"]
["25580","CUNDINAMARCA","25","PULI","580","CUNDINAMARCAPULI","25580"]
["25592","CUNDINAMARCA","25","QUEBRADANEGRA","592","CUNDINAMARCAQUEBRADANEGRA","25592"]
["25594","CUNDINAMARCA","25","QUETAME","594","CUNDINAMARCAQUETAME","25594"]
["25596","CUNDINAMARCA","25","QUIPILE","596","CUNDINAMARCAQUIPILE","25596"]
["25599","CUNDINAMARCA","25","APULO","599","CUNDINAMARCAAPULO","25599"]
["25612","CUNDINAMARCA","25","RICAURTE","612","CUNDINAMARCARICAURTE","25612"]
["25645","CUNDINAMARCA","25","SAN ANTONIO DEL TEQUENDAMA","645","CUNDINAMARCASAN ANTONIO DEL TEQUENDAMA","25645"]
["25649","CUNDINAMARCA","25","SAN BERNARDO","649","CUNDINAMARCASAN BERNARDO","25649"]
["25653","CUNDINAMARCA","25","SAN CAYETANO","653","CUNDINAMARCASAN CAYETANO","25653"]
["25658","CUNDINAMARCA","25","SAN FRANCISCO","658","CUNDINAMARCASAN FRANCISCO","25658"]
["25662","CUNDINAMARCA","25","SAN JUAN DE RIO SECO","662","CUNDINAMARCASAN JUAN DE RIO SECO","25662"]
["25718","CUNDINAMARCA","25","SASAIMA","718","CUNDINAMARCASASAIMA","25718"]
["25736","CUNDINAMARCA","25","SESQUILE","736","CUNDINAMARCASESQUILE","25736"]
["25740","CUNDINAMARCA","25","SIBATE","740","CUNDINAMARCASIBATE","25740"]
["25743","CUNDINAMARCA","25","SILVANIA","743","CUNDINAMARCASILVANIA","25743"]
["25745","CUNDINAMARCA","25","SIMIJACA","745","CUNDINAMARCASIMIJACA","25745"]
["25754","CUNDINAMARCA","25","SOACHA","754","CUNDINAMARCASOACHA","25754"]
["25758","CUNDINAMARCA","25","SOPO","758","CUNDINAMARCASOPO","25758"]
["25769","CUNDINAMARCA","25","SUBACHOQUE","769","CUNDINAMARCASUBACHOQUE","25769"]
["25772","CUNDINAMARCA","25","SUESCA","772","CUNDINAMARCASUESCA","25772"]
["25777","CUNDINAMARCA","25","SUPATA","777","CUNDINAMARCASUPATA","25777"]
["25779","CUNDINAMARCA","25","SUSA","779","CUNDINAMARCASUSA","25779"]
["25781","CUNDINAMARCA","25","SUTATAUSA","781","CUNDINAMARCASUTATAUSA","25781"]
["25785","CUNDINAMARCA","25","TABIO","785","CUNDINAMARCATABIO","25785"]
["25793","CUNDINAMARCA","25","TAUSA","793","CUNDINAMARCATAUSA","25793"]
["25797","CUNDINAMARCA","25","TENA","797","CUNDINAMARCATENA","25797"]
["25799","CUNDINAMARCA","25","TENJO","799","CUNDINAMARCATENJO","25799"]
["25805","CUNDINAMARCA","25","TIBACUY","805","CUNDINAMARCATIBACUY","25805"]
["25807","CUNDINAMARCA","25","TIBIRITA","807","CUNDINAMARCATIBIRITA","25807"]
["25815","CUNDINAMARCA","25","TOCAIMA","815","CUNDINAMARCATOCAIMA","25815"]
["25817","CUNDINAMARCA","25","TOCANCIPA","817","CUNDINAMARCATOCANCIPA","25817"]
["25823","CUNDINAMARCA","25","TOPAIPI","823","CUNDINAMARCATOPAIPI","25823"]
["25839","CUNDINAMARCA","25","UBALA","839","CUNDINAMARCAUBALA","25839"]
["25841","CUNDINAMARCA","25","UBAQUE","841","CUNDINAMARCAUBAQUE","25841"]
["25843","CUNDINAMARCA","25","VILLA DE SAN DIEGO DE UBATE","843","CUNDINAMARCAVILLA DE SAN DIEGO DE UBATE","25843"]
["25845","CUNDINAMARCA","25","UNE","845","CUNDINAMARCAUNE","25845"]
["25851","CUNDINAMARCA","25","UTICA","851","CUNDINAMARCAUTICA","25851"]
["25862","CUNDINAMARCA","25","VERGARA","862","CUNDINAMARCAVERGARA","25862"]
["25867","CUNDINAMARCA","25","VIANI","867","CUNDINAMARCAVIANI","25867"]
["25871","CUNDINAMARCA","25","VILLAGOMEZ","871","CUNDINAMARCAVILLAGOMEZ","25871"]
["25873","CUNDINAMARCA","25","VILLAPINZON","873","CUNDINAMARCAVILLAPINZON","25873"]
["25875","CUNDINAMARCA","25","VILLETA","875","CUNDINAMARCAVILLETA","25875"]
["25878","CUNDINAMARCA","25","VIOTA","878","CUNDINAMARCAVIOTA","25878"]
["25885","CUNDINAMARCA","25","YACOPI","885","CUNDINAMARCAYACOPI","25885"]
["25898","CUNDINAMARCA","25","ZIPACON","898","CUNDINAMARCAZIPACON","25898"]
["25899","CUNDINAMARCA","25","ZIPAQUIRA","899","CUNDINAMARCAZIPAQUIRA","25899"]
["27001","CHOCO","27","QUIBDO","001","CHOCOQUIBDO","27001"]
["27006","CHOCO","27","ACANDI","006","CHOCOACANDI","27006"]
["27025","CHOCO","27","ALTO BAUDO","025","CHOCOALTO BAUDO","27025"]
["27050","CHOCO","27","ATRATO","050","CHOCOATRATO","27050"]
["27073","CHOCO","27","BAGADO","073","CHOCOBAGADO",{"$f":"+CONCATENATE(C580,E580)","v":"27073"}]
["27075","CHOCO","27","BAHIA SOLANO","075",{"$f":"+B581&D581","v":"CHOCOBAHIA SOLANO"},"27075"]
["27077","CHOCO","27","BAJO BAUDO","077","CHOCOBAJO BAUDO","27077"]
["27099","CHOCO","27","BOJAYA","099","CHOCOBOJAYA","27099"]
["27135","CHOCO","27","EL CANTON DEL SAN PABLO","135","CHOCOEL CANTON DEL SAN PABLO","27135"]
["27150","CHOCO","27","CARMEN DEL DARIEN","150","CHOCOCARMEN DEL DARIEN","27150"]
["27160","CHOCO","27","CERTEGUI","160","CHOCOCERTEGUI","27160"]
["27205","CHOCO","27","CONDOTO","205","CHOCOCONDOTO","27205"]
["27245","CHOCO","27","EL CARMEN DE ATRATO","245","CHOCOEL CARMEN DE ATRATO","27245"]
["27250","CHOCO","27","EL LITORAL DEL SAN JUAN","250","CHOCOEL LITORAL DEL SAN JUAN","27250"]
["27361","CHOCO","27","ISTMINA","361","CHOCOISTMINA","27361"]
["27372","CHOCO","27","JURADO","372","CHOCOJURADO","27372"]
["27413","CHOCO","27","LLORO","413","CHOCOLLORO","27413"]
["27425","CHOCO","27","MEDIO ATRATO","425","CHOCOMEDIO ATRATO","27425"]
["27430","CHOCO","27","MEDIO BAUDO","430","CHOCOMEDIO BAUDO","27430"]
["27450","CHOCO","27","MEDIO SAN JUAN","450","CHOCOMEDIO SAN JUAN","27450"]
["27491","CHOCO","27","NOVITA","491","CHOCONOVITA","27491"]
["27495","CHOCO","27","NUQUI","495","CHOCONUQUI","27495"]
["27580","CHOCO","27","RIO IRO","580","CHOCORIO IRO","27580"]
["27600","CHOCO","27","RIO QUITO","600","CHOCORIO QUITO","27600"]
["27615","CHOCO","27","RIOSUCIO","615","CHOCORIOSUCIO","27615"]
["27660","CHOCO","27","SAN JOSE DEL PALMAR","660","CHOCOSAN JOSE DEL PALMAR","27660"]
["27745","CHOCO","27","SIPI","745","CHOCOSIPI","27745"]
["27787","CHOCO","27","TADO","787","CHOCOTADO","27787"]
["27800","CHOCO","27","UNGUIA","800","CHOCOUNGUIA","27800"]
["27810","CHOCO","27","UNION PANAMERICANA","810","CHOCOUNION PANAMERICANA","27810"]
["41001","HUILA","41","NEIVA","001","HUILANEIVA","41001"]
["41006","HUILA","41","ACEVEDO","006","HUILAACEVEDO","41006"]
["41013","HUILA","41","AGRADO","013","HUILAAGRADO","41013"]
["41016","HUILA","41","AIPE","016","HUILAAIPE","41016"]
["41020","HUILA","41","ALGECIRAS","020","HUILAALGECIRAS","41020"]
["41026","HUILA","41","ALTAMIRA","026","HUILAALTAMIRA","41026"]
["41078","HUILA","41","BARAYA","078","HUILABARAYA","41078"]
["41132","HUILA","41","CAMPOALEGRE","132","HUILACAMPOALEGRE","41132"]
["41206","HUILA","41","COLOMBIA","206","HUILACOLOMBIA","41206"]
["41244","HUILA","41","ELIAS","244","HUILAELIAS","41244"]
["41298","HUILA","41","GARZON","298","HUILAGARZON","41298"]
["41306","HUILA","41","GIGANTE","306","HUILAGIGANTE","41306"]
["41319","HUILA","41","GUADALUPE","319","HUILAGUADALUPE","41319"]
["41349","HUILA","41","HOBO","349","HUILAHOBO","41349"]
["41357","HUILA","41","IQUIRA","357","HUILAIQUIRA","41357"]
["41359","HUILA","41","ISNOS","359","HUILAISNOS","41359"]
["41378","HUILA","41","LA ARGENTINA","378","HUILALA ARGENTINA","41378"]
["41396","HUILA","41","LA PLATA","396","HUILALA PLATA","41396"]
["41483","HUILA","41","NATAGA","483","HUILANATAGA","41483"]
["41503","HUILA","41","OPORAPA","503","HUILAOPORAPA","41503"]
["41518","HUILA","41","PAICOL","518","HUILAPAICOL","41518"]
["41524","HUILA","41","PALERMO","524","HUILAPALERMO","41524"]
["41530","HUILA","41","PALESTINA","530","HUILAPALESTINA","41530"]
["41548","HUILA","41","PITAL","548","HUILAPITAL","41548"]
["41551","HUILA","41","PITALITO","551","HUILAPITALITO","41551"]
["41615","HUILA","41","RIVERA","615","HUILARIVERA","41615"]
["41660","HUILA","41","SALADOBLANCO","660","HUILASALADOBLANCO","41660"]
["41668","HUILA","41","SAN AGUSTIN","668","HUILASAN AGUSTIN","41668"]
["41676","HUILA","41","SANTA MARIA","676","HUILASANTA MARIA","41676"]
["41770","HUILA","41","SUAZA","770","HUILASUAZA","41770"]
["41791","HUILA","41","TARQUI","791","HUILATARQUI","41791"]
["41797","HUILA","41","TESALIA","797","HUILATESALIA","41797"]
["41799","HUILA","41","TELLO","799","HUILATELLO","41799"]
["41801","HUILA","41","TERUEL","801","HUILATERUEL","41801"]
["41807","HUILA","41","TIMANA","807","HUILATIMANA","41807"]
["41872","HUILA","41","VILLAVIEJA","872","HUILAVILLAVIEJA","41872"]
["41885","HUILA","41","YAGUARA","885","HUILAYAGUARA","41885"]
["44001","LA GUAJIRA","44","RIOHACHA","001","LA GUAJIRARIOHACHA","44001"]
["44035","LA GUAJIRA","44","ALBANIA","035","LA GUAJIRAALBANIA",{"$f":"+CONCATENATE(C644,E644)","v":"44035"}]
["44078","LA GUAJIRA","44","BARRANCAS","078",{"$f":"+B645&D645","v":"LA GUAJIRABARRANCAS"},"44078"]
["44090","LA GUAJIRA","44","DIBULLA","090","LA GUAJIRADIBULLA","44090"]
["44098","LA GUAJIRA","44","DISTRACCION","098","LA GUAJIRADISTRACCION","44098"]
["44110","LA GUAJIRA","44","EL MOLINO","110","LA GUAJIRAEL MOLINO","44110"]
["44279","LA GUAJIRA","44","FONSECA","279","LA GUAJIRAFONSECA","44279"]
["44378","LA GUAJIRA","44","HATONUEVO","378","LA GUAJIRAHATONUEVO","44378"]
["44420","LA GUAJIRA","44","LA JAGUA DEL PILAR","420","LA GUAJIRALA JAGUA DEL PILAR","44420"]
["44430","LA GUAJIRA","44","MAICAO","430","LA GUAJIRAMAICAO","44430"]
["44560","LA GUAJIRA","44","MANAURE","560","LA GUAJIRAMANAURE","44560"]
["44650","LA GUAJIRA","44","SAN JUAN DEL CESAR","650","LA GUAJIRASAN JUAN DEL CESAR","44650"]
["44847","LA GUAJIRA","44","URIBIA","847","LA GUAJIRAURIBIA","44847"]
["44855","LA GUAJIRA","44","URUMITA","855","LA GUAJIRAURUMITA","44855"]
["44874","LA GUAJIRA","44","VILLANUEVA","874","LA GUAJIRAVILLANUEVA","44874"]
["47001","MAGDALENA","47","SANTA MARTA","001","MAGDALENASANTA MARTA","47001"]
["47030","MAGDALENA","47","ALGARROBO","030","MAGDALENAALGARROBO","47030"]
["47053","MAGDALENA","47","ARACATACA","053","MAGDALENAARACATACA","47053"]
["47058","MAGDALENA","47","ARIGUANI","058","MAGDALENAARIGUANI","47058"]
["47161","MAGDALENA","47","CERRO SAN ANTONIO","161","MAGDALENACERRO SAN ANTONIO","47161"]
["47170","MAGDALENA","47","CHIBOLO","170","MAGDALENACHIBOLO","47170"]
["47189","MAGDALENA","47","CIENAGA","189","MAGDALENACIENAGA","47189"]
["47205","MAGDALENA","47","CONCORDIA","205","MAGDALENACONCORDIA","47205"]
["47245","MAGDALENA","47","EL BANCO","245","MAGDALENAEL BANCO","47245"]
["47258","MAGDALENA","47","EL PIÑON","258","MAGDALENAEL PIÑON","47258"]
["47268","MAGDALENA","47","EL RETEN","268","MAGDALENAEL RETEN","47268"]
["47288","MAGDALENA","47","FUNDACION","288","MAGDALENAFUNDACION","47288"]
["47318","MAGDALENA","47","GUAMAL","318","MAGDALENAGUAMAL","47318"]
["47460","MAGDALENA","47","NUEVA GRANADA","460","MAGDALENANUEVA GRANADA","47460"]
["47541","MAGDALENA","47","PEDRAZA","541","MAGDALENAPEDRAZA","47541"]
["47545","MAGDALENA","47","PIJIÑO DEL CARMEN","545","MAGDALENAPIJIÑO DEL CARMEN","47545"]
["47551","MAGDALENA","47","PIVIJAY","551","MAGDALENAPIVIJAY","47551"]
["47555","MAGDALENA","47","PLATO","555","MAGDALENAPLATO","47555"]
["47570","MAGDALENA","47","PUEBLOVIEJO","570","MAGDALENAPUEBLOVIEJO","47570"]
["47605","MAGDALENA","47","REMOLINO","605","MAGDALENAREMOLINO","47605"]
["47660","MAGDALENA","47","SABANAS DE SAN ANGEL","660","MAGDALENASABANAS DE SAN ANGEL","47660"]
["47675","MAGDALENA","47","SALAMINA","675","MAGDALENASALAMINA","47675"]
["47692","MAGDALENA","47","SAN SEBASTIAN DE BUENAVISTA","692","MAGDALENASAN SEBASTIAN DE BUENAVISTA","47692"]
["47703","MAGDALENA","47","SAN ZENON","703","MAGDALENASAN ZENON","47703"]
["47707","MAGDALENA","47","SANTA ANA","707","MAGDALENASANTA ANA","47707"]
["47720","MAGDALENA","47","SANTA BARBARA DE PINTO","720","MAGDALENASANTA BARBARA DE PINTO","47720"]
["47745","MAGDALENA","47","SITIONUEVO","745","MAGDALENASITIONUEVO","47745"]
["47798","MAGDALENA","47","TENERIFE","798","MAGDALENATENERIFE","47798"]
["47960","MAGDALENA","47","ZAPAYAN","960","MAGDALENAZAPAYAN","47960"]
["47980","MAGDALENA","47","ZONA BANANERA","980","MAGDALENAZONA BANANERA","47980"]
["50001","META","50","VILLAVICENCIO","001","METAVILLAVICENCIO","50001"]
["50006","META","50","ACACIAS","006","METAACACIAS","50006"]
["50110","META","50","BARRANCA DE UPIA","110","METABARRANCA DE UPIA","50110"]
["50124","META","50","CABUYARO","124","METACABUYARO","50124"]
["50150","META","50","CASTILLA LA NUEVA","150","METACASTILLA LA NUEVA","50150"]
["50223","META","50","CUBARRAL","223","METACUBARRAL","50223"]
["50226","META","50","CUMARAL","226","METACUMARAL","50226"]
["50245","META","50","EL CALVARIO","245","METAEL CALVARIO","50245"]
["50251","META","50","EL CASTILLO","251","METAEL CASTILLO","50251"]
["50270","META","50","EL DORADO","270","METAEL DORADO","50270"]
["50287","META","50","FUENTE DE ORO","287","METAFUENTE DE ORO","50287"]
["50313","META","50","GRANADA","313","METAGRANADA","50313"]
["50318","META","50","GUAMAL","318","METAGUAMAL","50318"]
["50325","META","50","MAPIRIPAN","325","METAMAPIRIPAN","50325"]
["50330","META","50","MESETAS","330","METAMESETAS","50330"]
["50350","META","50","LA MACARENA","350","METALA MACARENA","50350"]
["50370","META","50","URIBE","370","METAURIBE","50370"]
["50400","META","50","LEJANIAS","400","METALEJANIAS","50400"]
["50450","META","50","PUERTO CONCORDIA","450","METAPUERTO CONCORDIA","50450"]
["50568","META","50","PUERTO GAITAN","568","METAPUERTO GAITAN","50568"]
["50573","META","50","PUERTO LOPEZ","573","METAPUERTO LOPEZ",{"$f":"+CONCATENATE(C708,E708)","v":"50573"}]
["50577","META","50","PUERTO LLERAS","577",{"$f":"+B709&D709","v":"METAPUERTO LLERAS"},"50577"]
["50590","META","50","PUERTO RICO","590","METAPUERTO RICO","50590"]
["50606","META","50","RESTREPO","606","METARESTREPO","50606"]
["50680","META","50","SAN CARLOS DE GUAROA","680","METASAN CARLOS DE GUAROA","50680"]
["50683","META","50","SAN JUAN DE ARAMA","683","METASAN JUAN DE ARAMA","50683"]
["50686","META","50","SAN JUANITO","686","METASAN JUANITO","50686"]
["50689","META","50","SAN MARTIN","689","METASAN MARTIN","50689"]
["50711","META","50","VISTAHERMOSA","711","METAVISTAHERMOSA","50711"]
["52001","NARIÑO","52","PASTO","001","NARIÑOPASTO","52001"]
["52019","NARIÑO","52","ALBAN","019","NARIÑOALBAN","52019"]
["52022","NARIÑO","52","ALDANA","022","NARIÑOALDANA","52022"]
["52036","NARIÑO","52","ANCUYA","036","NARIÑOANCUYA","52036"]
["52051","NARIÑO","52","ARBOLEDA","051","NARIÑOARBOLEDA","52051"]
["52079","NARIÑO","52","BARBACOAS","079","NARIÑOBARBACOAS","52079"]
["52083","NARIÑO","52","BELEN","083","NARIÑOBELEN","52083"]
["52110","NARIÑO","52","BUESACO","110","NARIÑOBUESACO","52110"]
["52203","NARIÑO","52","COLON","203","NARIÑOCOLON","52203"]
["52207","NARIÑO","52","CONSACA","207","NARIÑOCONSACA","52207"]
["52210","NARIÑO","52","CONTADERO","210","NARIÑOCONTADERO","52210"]
["52215","NARIÑO","52","CORDOBA","215","NARIÑOCORDOBA","52215"]
["52224","NARIÑO","52","CUASPUD","224","NARIÑOCUASPUD","52224"]
["52227","NARIÑO","52","CUMBAL","227","NARIÑOCUMBAL","52227"]
["52233","NARIÑO","52","CUMBITARA","233","NARIÑOCUMBITARA","52233"]
["52240","NARIÑO","52","CHACHAGsI","240","NARIÑOCHACHAGsI","52240"]
["52250","NARIÑO","52","EL CHARCO","250","NARIÑOEL CHARCO","52250"]
["52254","NARIÑO","52","EL PEÑOL","254","NARIÑOEL PEÑOL","52254"]
["52256","NARIÑO","52","EL ROSARIO","256","NARIÑOEL ROSARIO","52256"]
["52258","NARIÑO","52","EL TABLON DE GOMEZ","258","NARIÑOEL TABLON DE GOMEZ","52258"]
["52260","NARIÑO","52","EL TAMBO","260","NARIÑOEL TAMBO","52260"]
["52287","NARIÑO","52","FUNES","287","NARIÑOFUNES","52287"]
["52317","NARIÑO","52","GUACHUCAL","317","NARIÑOGUACHUCAL","52317"]
["52320","NARIÑO","52","GUAITARILLA","320","NARIÑOGUAITARILLA","52320"]
["52323","NARIÑO","52","GUALMATAN","323","NARIÑOGUALMATAN","52323"]
["52352","NARIÑO","52","ILES","352","NARIÑOILES","52352"]
["52354","NARIÑO","52","IMUES","354","NARIÑOIMUES","52354"]
["52356","NARIÑO","52","IPIALES","356","NARIÑOIPIALES","52356"]
["52378","NARIÑO","52","LA CRUZ","378","NARIÑOLA CRUZ","52378"]
["52381","NARIÑO","52","LA FLORIDA","381","NARIÑOLA FLORIDA","52381"]
["52385","NARIÑO","52","LA LLANADA","385","NARIÑOLA LLANADA","52385"]
["52390","NARIÑO","52","LA TOLA","390","NARIÑOLA TOLA","52390"]
["52399","NARIÑO","52","LA UNION","399","NARIÑOLA UNION","52399"]
["52405","NARIÑO","52","LEIVA","405","NARIÑOLEIVA","52405"]
["52411","NARIÑO","52","LINARES","411","NARIÑOLINARES","52411"]
["52418","NARIÑO","52","LOS ANDES","418","NARIÑOLOS ANDES","52418"]
["52427","NARIÑO","52","MAGsI","427","NARIÑOMAGsI","52427"]
["52435","NARIÑO","52","MALLAMA","435","NARIÑOMALLAMA","52435"]
["52473","NARIÑO","52","MOSQUERA","473","NARIÑOMOSQUERA","52473"]
["52480","NARIÑO","52","NARIÑO","480","NARIÑONARIÑO","52480"]
["52490","NARIÑO","52","OLAYA HERRERA","490","NARIÑOOLAYA HERRERA","52490"]
["52506","NARIÑO","52","OSPINA","506","NARIÑOOSPINA","52506"]
["52520","NARIÑO","52","FRANCISCO PIZARRO","520","NARIÑOFRANCISCO PIZARRO","52520"]
["52540","NARIÑO","52","POLICARPA","540","NARIÑOPOLICARPA","52540"]
["52560","NARIÑO","52","POTOSI","560","NARIÑOPOTOSI","52560"]
["52565","NARIÑO","52","PROVIDENCIA","565","NARIÑOPROVIDENCIA","52565"]
["52573","NARIÑO","52","PUERRES","573","NARIÑOPUERRES","52573"]
["52585","NARIÑO","52","PUPIALES","585","NARIÑOPUPIALES","52585"]
["52612","NARIÑO","52","RICAURTE","612","NARIÑORICAURTE","52612"]
["52621","NARIÑO","52","ROBERTO PAYAN","621","NARIÑOROBERTO PAYAN","52621"]
["52678","NARIÑO","52","SAMANIEGO","678","NARIÑOSAMANIEGO","52678"]
["52683","NARIÑO","52","SANDONA","683","NARIÑOSANDONA","52683"]
["52685","NARIÑO","52","SAN BERNARDO","685","NARIÑOSAN BERNARDO","52685"]
["52687","NARIÑO","52","SAN LORENZO","687","NARIÑOSAN LORENZO","52687"]
["52693","NARIÑO","52","SAN PABLO","693","NARIÑOSAN PABLO","52693"]
["52694","NARIÑO","52","SAN PEDRO DE CARTAGO","694","NARIÑOSAN PEDRO DE CARTAGO",{"$f":"+CONCATENATE(C772,E772)","v":"52694"}]
["52696","NARIÑO","52","SANTA BARBARA","696",{"$f":"+B773&D773","v":"NARIÑOSANTA BARBARA"},"52696"]
["52699","NARIÑO","52","SANTACRUZ","699","NARIÑOSANTACRUZ","52699"]
["52720","NARIÑO","52","SAPUYES","720","NARIÑOSAPUYES","52720"]
["52786","NARIÑO","52","TAMINANGO","786","NARIÑOTAMINANGO","52786"]
["52788","NARIÑO","52","TANGUA","788","NARIÑOTANGUA","52788"]
["52835","NARIÑO","52","SAN ANDRES DE TUMACO","835","NARIÑOSAN ANDRES DE TUMACO","52835"]
["52838","NARIÑO","52","TUQUERRES","838","NARIÑOTUQUERRES","52838"]
["52885","NARIÑO","52","YACUANQUER","885","NARIÑOYACUANQUER","52885"]
["54001","N. DE SANTANDER","54","CUCUTA","001","N. DE SANTANDERCUCUTA","54001"]
["54003","N. DE SANTANDER","54","ABREGO","003","N. DE SANTANDERABREGO","54003"]
["54051","N. DE SANTANDER","54","ARBOLEDAS","051","N. DE SANTANDERARBOLEDAS","54051"]
["54099","N. DE SANTANDER","54","BOCHALEMA","099","N. DE SANTANDERBOCHALEMA","54099"]
["54109","N. DE SANTANDER","54","BUCARASICA","109","N. DE SANTANDERBUCARASICA","54109"]
["54125","N. DE SANTANDER","54","CACOTA","125","N. DE SANTANDERCACOTA","54125"]
["54128","N. DE SANTANDER","54","CACHIRA","128","N. DE SANTANDERCACHIRA","54128"]
["54172","N. DE SANTANDER","54","CHINACOTA","172","N. DE SANTANDERCHINACOTA","54172"]
["54174","N. DE SANTANDER","54","CHITAGA","174","N. DE SANTANDERCHITAGA","54174"]
["54206","N. DE SANTANDER","54","CONVENCION","206","N. DE SANTANDERCONVENCION","54206"]
["54223","N. DE SANTANDER","54","CUCUTILLA","223","N. DE SANTANDERCUCUTILLA","54223"]
["54239","N. DE SANTANDER","54","DURANIA","239","N. DE SANTANDERDURANIA","54239"]
["54245","N. DE SANTANDER","54","EL CARMEN","245","N. DE SANTANDEREL CARMEN","54245"]
["54250","N. DE SANTANDER","54","EL TARRA","250","N. DE SANTANDEREL TARRA","54250"]
["54261","N. DE SANTANDER","54","EL ZULIA","261","N. DE SANTANDEREL ZULIA","54261"]
["54313","N. DE SANTANDER","54","GRAMALOTE","313","N. DE SANTANDERGRAMALOTE","54313"]
["54344","N. DE SANTANDER","54","HACARI","344","N. DE SANTANDERHACARI","54344"]
["54347","N. DE SANTANDER","54","HERRAN","347","N. DE SANTANDERHERRAN","54347"]
["54377","N. DE SANTANDER","54","LABATECA","377","N. DE SANTANDERLABATECA","54377"]
["54385","N. DE SANTANDER","54","LA ESPERANZA","385","N. DE SANTANDERLA ESPERANZA","54385"]
["54398","N. DE SANTANDER","54","LA PLAYA","398","N. DE SANTANDERLA PLAYA","54398"]
["54405","N. DE SANTANDER","54","LOS PATIOS","405","N. DE SANTANDERLOS PATIOS","54405"]
["54418","N. DE SANTANDER","54","LOURDES","418","N. DE SANTANDERLOURDES","54418"]
["54480","N. DE SANTANDER","54","MUTISCUA","480","N. DE SANTANDERMUTISCUA","54480"]
["54498","N. DE SANTANDER","54","OCAÑA","498","N. DE SANTANDEROCAÑA","54498"]
["54518","N. DE SANTANDER","54","PAMPLONA","518","N. DE SANTANDERPAMPLONA","54518"]
["54520","N. DE SANTANDER","54","PAMPLONITA","520","N. DE SANTANDERPAMPLONITA","54520"]
["54553","N. DE SANTANDER","54","PUERTO SANTANDER","553","N. DE SANTANDERPUERTO SANTANDER","54553"]
["54599","N. DE SANTANDER","54","RAGONVALIA","599","N. DE SANTANDERRAGONVALIA","54599"]
["54660","N. DE SANTANDER","54","SALAZAR","660","N. DE SANTANDERSALAZAR","54660"]
["54670","N. DE SANTANDER","54","SAN CALIXTO","670","N. DE SANTANDERSAN CALIXTO","54670"]
["54673","N. DE SANTANDER","54","SAN CAYETANO","673","N. DE SANTANDERSAN CAYETANO","54673"]
["54680","N. DE SANTANDER","54","SANTIAGO","680","N. DE SANTANDERSANTIAGO","54680"]
["54720","N. DE SANTANDER","54","SARDINATA","720","N. DE SANTANDERSARDINATA","54720"]
["54743","N. DE SANTANDER","54","SILOS","743","N. DE SANTANDERSILOS","54743"]
["54800","N. DE SANTANDER","54","TEORAMA","800","N. DE SANTANDERTEORAMA","54800"]
["54810","N. DE SANTANDER","54","TIBU","810","N. DE SANTANDERTIBU","54810"]
["54820","N. DE SANTANDER","54","TOLEDO","820","N. DE SANTANDERTOLEDO","54820"]
["54871","N. DE SANTANDER","54","VILLA CARO","871","N. DE SANTANDERVILLA CARO","54871"]
["54874","N. DE SANTANDER","54","VILLA DEL ROSARIO","874","N. DE SANTANDERVILLA DEL ROSARIO","54874"]
["63001","QUINDIO","63","ARMENIA","001","QUINDIOARMENIA","63001"]
["63111","QUINDIO","63","BUENAVISTA","111","QUINDIOBUENAVISTA","63111"]
["63130","QUINDIO","63","CALARCA","130","QUINDIOCALARCA","63130"]
["63190","QUINDIO","63","CIRCASIA","190","QUINDIOCIRCASIA","63190"]
["63212","QUINDIO","63","CORDOBA","212","QUINDIOCORDOBA","63212"]
["63272","QUINDIO","63","FILANDIA","272","QUINDIOFILANDIA","63272"]
["63302","QUINDIO","63","GENOVA","302","QUINDIOGENOVA","63302"]
["63401","QUINDIO","63","LA TEBAIDA","401","QUINDIOLA TEBAIDA","63401"]
["63470","QUINDIO","63","MONTENEGRO","470","QUINDIOMONTENEGRO","63470"]
["63548","QUINDIO","63","PIJAO","548","QUINDIOPIJAO","63548"]
["63594","QUINDIO","63","QUIMBAYA","594","QUINDIOQUIMBAYA","63594"]
["63690","QUINDIO","63","SALENTO","690","QUINDIOSALENTO","63690"]
["66001","RISARALDA","66","PEREIRA","001","RISARALDAPEREIRA","66001"]
["66045","RISARALDA","66","APIA","045","RISARALDAAPIA","66045"]
["66075","RISARALDA","66","BALBOA","075","RISARALDABALBOA","66075"]
["66088","RISARALDA","66","BELEN DE UMBRIA","088","RISARALDABELEN DE UMBRIA",{"$f":"+CONCATENATE(C836,E836)","v":"66088"}]
["66170","RISARALDA","66","DOSQUEBRADAS","170",{"$f":"+B837&D837","v":"RISARALDADOSQUEBRADAS"},"66170"]
["66318","RISARALDA","66","GUATICA","318","RISARALDAGUATICA","66318"]
["66383","RISARALDA","66","LA CELIA","383","RISARALDALA CELIA","66383"]
["66400","RISARALDA","66","LA VIRGINIA","400","RISARALDALA VIRGINIA","66400"]
["66440","RISARALDA","66","MARSELLA","440","RISARALDAMARSELLA","66440"]
["66456","RISARALDA","66","MISTRATO","456","RISARALDAMISTRATO","66456"]
["66572","RISARALDA","66","PUEBLO RICO","572","RISARALDAPUEBLO RICO","66572"]
["66594","RISARALDA","66","QUINCHIA","594","RISARALDAQUINCHIA","66594"]
["66682","RISARALDA","66","SANTA ROSA DE CABAL","682","RISARALDASANTA ROSA DE CABAL","66682"]
["66687","RISARALDA","66","SANTUARIO","687","RISARALDASANTUARIO","66687"]
["68001","SANTANDER","68","BUCARAMANGA","001","SANTANDERBUCARAMANGA","68001"]
["68013","SANTANDER","68","AGUADA","013","SANTANDERAGUADA","68013"]
["68020","SANTANDER","68","ALBANIA","020","SANTANDERALBANIA","68020"]
["68051","SANTANDER","68","ARATOCA","051","SANTANDERARATOCA","68051"]
["68077","SANTANDER","68","BARBOSA","077","SANTANDERBARBOSA","68077"]
["68079","SANTANDER","68","BARICHARA","079","SANTANDERBARICHARA","68079"]
["68081","SANTANDER","68","BARRANCABERMEJA","081","SANTANDERBARRANCABERMEJA","68081"]
["68092","SANTANDER","68","BETULIA","092","SANTANDERBETULIA","68092"]
["68101","SANTANDER","68","BOLIVAR","101","SANTANDERBOLIVAR","68101"]
["68121","SANTANDER","68","CABRERA","121","SANTANDERCABRERA","68121"]
["68132","SANTANDER","68","CALIFORNIA","132","SANTANDERCALIFORNIA","68132"]
["68147","SANTANDER","68","CAPITANEJO","147","SANTANDERCAPITANEJO","68147"]
["68152","SANTANDER","68","CARCASI","152","SANTANDERCARCASI","68152"]
["68160","SANTANDER","68","CEPITA","160","SANTANDERCEPITA","68160"]
["68162","SANTANDER","68","CERRITO","162","SANTANDERCERRITO","68162"]
["68167","SANTANDER","68","CHARALA","167","SANTANDERCHARALA","68167"]
["68169","SANTANDER","68","CHARTA","169","SANTANDERCHARTA","68169"]
["68176","SANTANDER","68","CHIMA","176","SANTANDERCHIMA","68176"]
["68179","SANTANDER","68","CHIPATA","179","SANTANDERCHIPATA","68179"]
["68190","SANTANDER","68","CIMITARRA","190","SANTANDERCIMITARRA","68190"]
["68207","SANTANDER","68","CONCEPCION","207","SANTANDERCONCEPCION","68207"]
["68209","SANTANDER","68","CONFINES","209","SANTANDERCONFINES","68209"]
["68211","SANTANDER","68","CONTRATACION","211","SANTANDERCONTRATACION","68211"]
["68217","SANTANDER","68","COROMORO","217","SANTANDERCOROMORO","68217"]
["68229","SANTANDER","68","CURITI","229","SANTANDERCURITI","68229"]
["68235","SANTANDER","68","EL CARMEN DE CHUCURI","235","SANTANDEREL CARMEN DE CHUCURI","68235"]
["68245","SANTANDER","68","EL GUACAMAYO","245","SANTANDEREL GUACAMAYO","68245"]
["68250","SANTANDER","68","EL PEÑON","250","SANTANDEREL PEÑON","68250"]
["68255","SANTANDER","68","EL PLAYON","255","SANTANDEREL PLAYON","68255"]
["68264","SANTANDER","68","ENCINO","264","SANTANDERENCINO","68264"]
["68266","SANTANDER","68","ENCISO","266","SANTANDERENCISO","68266"]
["68271","SANTANDER","68","FLORIAN","271","SANTANDERFLORIAN","68271"]
["68276","SANTANDER","68","FLORIDABLANCA","276","SANTANDERFLORIDABLANCA","68276"]
["68296","SANTANDER","68","GALAN","296","SANTANDERGALAN","68296"]
["68298","SANTANDER","68","GAMBITA","298","SANTANDERGAMBITA","68298"]
["68307","SANTANDER","68","GIRON","307","SANTANDERGIRON","68307"]
["68318","SANTANDER","68","GUACA","318","SANTANDERGUACA","68318"]
["68320","SANTANDER","68","GUADALUPE","320","SANTANDERGUADALUPE","68320"]
["68322","SANTANDER","68","GUAPOTA","322","SANTANDERGUAPOTA","68322"]
["68324","SANTANDER","68","GUAVATA","324","SANTANDERGUAVATA","68324"]
["68327","SANTANDER","68","GsEPSA","327","SANTANDERGsEPSA","68327"]
["68344","SANTANDER","68","HATO","344","SANTANDERHATO","68344"]
["68368","SANTANDER","68","JESUS MARIA","368","SANTANDERJESUS MARIA","68368"]
["68370","SANTANDER","68","JORDAN","370","SANTANDERJORDAN","68370"]
["68377","SANTANDER","68","LA BELLEZA","377","SANTANDERLA BELLEZA","68377"]
["68385","SANTANDER","68","LANDAZURI","385","SANTANDERLANDAZURI","68385"]
["68397","SANTANDER","68","LA PAZ","397","SANTANDERLA PAZ","68397"]
["68406","SANTANDER","68","LEBRIJA","406","SANTANDERLEBRIJA","68406"]
["68418","SANTANDER","68","LOS SANTOS","418","SANTANDERLOS SANTOS","68418"]
["68425","SANTANDER","68","MACARAVITA","425","SANTANDERMACARAVITA","68425"]
["68432","SANTANDER","68","MALAGA","432","SANTANDERMALAGA","68432"]
["68444","SANTANDER","68","MATANZA","444","SANTANDERMATANZA","68444"]
["68464","SANTANDER","68","MOGOTES","464","SANTANDERMOGOTES","68464"]
["68468","SANTANDER","68","MOLAGAVITA","468","SANTANDERMOLAGAVITA",{"$f":"+CONCATENATE(C900,E900)","v":"68468"}]
["68498","SANTANDER","68","OCAMONTE","498",{"$f":"+B901&D901","v":"SANTANDEROCAMONTE"},"68498"]
["68500","SANTANDER","68","OIBA","500","SANTANDEROIBA","68500"]
["68502","SANTANDER","68","ONZAGA","502","SANTANDERONZAGA","68502"]
["68522","SANTANDER","68","PALMAR","522","SANTANDERPALMAR","68522"]
["68524","SANTANDER","68","PALMAS DEL SOCORRO","524","SANTANDERPALMAS DEL SOCORRO","68524"]
["68533","SANTANDER","68","PARAMO","533","SANTANDERPARAMO","68533"]
["68547","SANTANDER","68","PIEDECUESTA","547","SANTANDERPIEDECUESTA","68547"]
["68549","SANTANDER","68","PINCHOTE","549","SANTANDERPINCHOTE","68549"]
["68572","SANTANDER","68","PUENTE NACIONAL","572","SANTANDERPUENTE NACIONAL","68572"]
["68573","SANTANDER","68","PUERTO PARRA","573","SANTANDERPUERTO PARRA","68573"]
["68575","SANTANDER","68","PUERTO WILCHES","575","SANTANDERPUERTO WILCHES","68575"]
["68615","SANTANDER","68","RIONEGRO","615","SANTANDERRIONEGRO","68615"]
["68655","SANTANDER","68","SABANA DE TORRES","655","SANTANDERSABANA DE TORRES","68655"]
["68669","SANTANDER","68","SAN ANDRES","669","SANTANDERSAN ANDRES","68669"]
["68673","SANTANDER","68","SAN BENITO","673","SANTANDERSAN BENITO","68673"]
["68679","SANTANDER","68","SAN GIL","679","SANTANDERSAN GIL","68679"]
["68682","SANTANDER","68","SAN JOAQUIN","682","SANTANDERSAN JOAQUIN","68682"]
["68684","SANTANDER","68","SAN JOSE DE MIRANDA","684","SANTANDERSAN JOSE DE MIRANDA","68684"]
["68686","SANTANDER","68","SAN MIGUEL","686","SANTANDERSAN MIGUEL","68686"]
["68689","SANTANDER","68","SAN VICENTE DE CHUCURI","689","SANTANDERSAN VICENTE DE CHUCURI","68689"]
["68705","SANTANDER","68","SANTA BARBARA","705","SANTANDERSANTA BARBARA","68705"]
["68720","SANTANDER","68","SANTA HELENA DEL OPON","720","SANTANDERSANTA HELENA DEL OPON","68720"]
["68745","SANTANDER","68","SIMACOTA","745","SANTANDERSIMACOTA","68745"]
["68755","SANTANDER","68","SOCORRO","755","SANTANDERSOCORRO","68755"]
["68770","SANTANDER","68","SUAITA","770","SANTANDERSUAITA","68770"]
["68773","SANTANDER","68","SUCRE","773","SANTANDERSUCRE","68773"]
["68780","SANTANDER","68","SURATA","780","SANTANDERSURATA","68780"]
["68820","SANTANDER","68","TONA","820","SANTANDERTONA","68820"]
["68855","SANTANDER","68","VALLE DE SAN JOSE","855","SANTANDERVALLE DE SAN JOSE","68855"]
["68861","SANTANDER","68","VELEZ","861","SANTANDERVELEZ","68861"]
["68867","SANTANDER","68","VETAS","867","SANTANDERVETAS","68867"]
["68872","SANTANDER","68","VILLANUEVA","872","SANTANDERVILLANUEVA","68872"]
["68895","SANTANDER","68","ZAPATOCA","895","SANTANDERZAPATOCA","68895"]
["70001","SUCRE","70","SINCELEJO","001","SUCRESINCELEJO","70001"]
["70110","SUCRE","70","BUENAVISTA","110","SUCREBUENAVISTA","70110"]
["70124","SUCRE","70","CAIMITO","124","SUCRECAIMITO","70124"]
["70204","SUCRE","70","COLOSO","204","SUCRECOLOSO","70204"]
["70215","SUCRE","70","COROZAL","215","SUCRECOROZAL","70215"]
["70221","SUCRE","70","COVEÑAS","221","SUCRECOVEÑAS","70221"]
["70230","SUCRE","70","CHALAN","230","SUCRECHALAN","70230"]
["70233","SUCRE","70","EL ROBLE","233","SUCREEL ROBLE","70233"]
["70235","SUCRE","70","GALERAS","235","SUCREGALERAS","70235"]
["70265","SUCRE","70","GUARANDA","265","SUCREGUARANDA","70265"]
["70400","SUCRE","70","LA UNION","400","SUCRELA UNION","70400"]
["70418","SUCRE","70","LOS PALMITOS","418","SUCRELOS PALMITOS","70418"]
["70429","SUCRE","70","MAJAGUAL","429","SUCREMAJAGUAL","70429"]
["70473","SUCRE","70","MORROA","473","SUCREMORROA","70473"]
["70508","SUCRE","70","OVEJAS","508","SUCREOVEJAS","70508"]
["70523","SUCRE","70","PALMITO","523","SUCREPALMITO","70523"]
["70670","SUCRE","70","SAMPUES","670","SUCRESAMPUES","70670"]
["70678","SUCRE","70","SAN BENITO ABAD","678","SUCRESAN BENITO ABAD","70678"]
["70702","SUCRE","70","SAN JUAN DE BETULIA","702","SUCRESAN JUAN DE BETULIA","70702"]
["70708","SUCRE","70","SAN MARCOS","708","SUCRESAN MARCOS","70708"]
["70713","SUCRE","70","SAN ONOFRE","713","SUCRESAN ONOFRE","70713"]
["70717","SUCRE","70","SAN PEDRO","717","SUCRESAN PEDRO","70717"]
["70742","SUCRE","70","SAN LUIS DE SINCE","742","SUCRESAN LUIS DE SINCE","70742"]
["70771","SUCRE","70","SUCRE","771","SUCRESUCRE","70771"]
["70820","SUCRE","70","SANTIAGO DE TOLU","820","SUCRESANTIAGO DE TOLU","70820"]
["70823","SUCRE","70","TOLU VIEJO","823","SUCRETOLU VIEJO","70823"]
["73001","TOLIMA","73","IBAGUE","001","TOLIMAIBAGUE","73001"]
["73024","TOLIMA","73","ALPUJARRA","024","TOLIMAALPUJARRA","73024"]
["73026","TOLIMA","73","ALVARADO","026","TOLIMAALVARADO","73026"]
["73030","TOLIMA","73","AMBALEMA","030","TOLIMAAMBALEMA","73030"]
["73043","TOLIMA","73","ANZOATEGUI","043","TOLIMAANZOATEGUI",{"$f":"+CONCATENATE(C964,E964)","v":"73043"}]
["73055","TOLIMA","73","ARMERO","055",{"$f":"+B965&D965","v":"TOLIMAARMERO"},"73055"]
["73067","TOLIMA","73","ATACO","067","TOLIMAATACO","73067"]
["73124","TOLIMA","73","CAJAMARCA","124","TOLIMACAJAMARCA","73124"]
["73148","TOLIMA","73","CARMEN DE APICALA","148","TOLIMACARMEN DE APICALA","73148"]
["73152","TOLIMA","73","CASABIANCA","152","TOLIMACASABIANCA","73152"]
["73168","TOLIMA","73","CHAPARRAL","168","TOLIMACHAPARRAL","73168"]
["73200","TOLIMA","73","COELLO","200","TOLIMACOELLO","73200"]
["73217","TOLIMA","73","COYAIMA","217","TOLIMACOYAIMA","73217"]
["73226","TOLIMA","73","CUNDAY","226","TOLIMACUNDAY","73226"]
["73236","TOLIMA","73","DOLORES","236","TOLIMADOLORES","73236"]
["73268","TOLIMA","73","ESPINAL","268","TOLIMAESPINAL","73268"]
["73270","TOLIMA","73","FALAN","270","TOLIMAFALAN","73270"]
["73275","TOLIMA","73","FLANDES","275","TOLIMAFLANDES","73275"]
["73283","TOLIMA","73","FRESNO","283","TOLIMAFRESNO","73283"]
["73319","TOLIMA","73","GUAMO","319","TOLIMAGUAMO","73319"]
["73347","TOLIMA","73","HERVEO","347","TOLIMAHERVEO","73347"]
["73349","TOLIMA","73","HONDA","349","TOLIMAHONDA","73349"]
["73352","TOLIMA","73","ICONONZO","352","TOLIMAICONONZO","73352"]
["73408","TOLIMA","73","LERIDA","408","TOLIMALERIDA","73408"]
["73411","TOLIMA","73","LIBANO","411","TOLIMALIBANO","73411"]
["73443","TOLIMA","73","MARIQUITA","443","TOLIMAMARIQUITA","73443"]
["73449","TOLIMA","73","MELGAR","449","TOLIMAMELGAR","73449"]
["73461","TOLIMA","73","MURILLO","461","TOLIMAMURILLO","73461"]
["73483","TOLIMA","73","NATAGAIMA","483","TOLIMANATAGAIMA","73483"]
["73504","TOLIMA","73","ORTEGA","504","TOLIMAORTEGA","73504"]
["73520","TOLIMA","73","PALOCABILDO","520","TOLIMAPALOCABILDO","73520"]
["73547","TOLIMA","73","PIEDRAS","547","TOLIMAPIEDRAS","73547"]
["73555","TOLIMA","73","PLANADAS","555","TOLIMAPLANADAS","73555"]
["73563","TOLIMA","73","PRADO","563","TOLIMAPRADO","73563"]
["73585","TOLIMA","73","PURIFICACION","585","TOLIMAPURIFICACION","73585"]
["73616","TOLIMA","73","RIOBLANCO","616","TOLIMARIOBLANCO","73616"]
["73622","TOLIMA","73","RONCESVALLES","622","TOLIMARONCESVALLES","73622"]
["73624","TOLIMA","73","ROVIRA","624","TOLIMAROVIRA","73624"]
["73671","TOLIMA","73","SALDAÑA","671","TOLIMASALDAÑA","73671"]
["73675","TOLIMA","73","SAN ANTONIO","675","TOLIMASAN ANTONIO","73675"]
["73678","TOLIMA","73","SAN LUIS","678","TOLIMASAN LUIS","73678"]
["73686","TOLIMA","73","SANTA ISABEL","686","TOLIMASANTA ISABEL","73686"]
["73770","TOLIMA","73","SUAREZ","770","TOLIMASUAREZ","73770"]
["73854","TOLIMA","73","VALLE DE SAN JUAN","854","TOLIMAVALLE DE SAN JUAN","73854"]
["73861","TOLIMA","73","VENADILLO","861","TOLIMAVENADILLO","73861"]
["73870","TOLIMA","73","VILLAHERMOSA","870","TOLIMAVILLAHERMOSA","73870"]
["73873","TOLIMA","73","VILLARRICA","873","TOLIMAVILLARRICA","73873"]
["76001","VALLE DEL CAUCA","76","CALI","001","VALLE DEL CAUCACALI","76001"]
["76020","VALLE DEL CAUCA","76","ALCALA","020","VALLE DEL CAUCAALCALA","76020"]
["76036","VALLE DEL CAUCA","76","ANDALUCIA","036","VALLE DEL CAUCAANDALUCIA","76036"]
["76041","VALLE DEL CAUCA","76","ANSERMANUEVO","041","VALLE DEL CAUCAANSERMANUEVO","76041"]
["76054","VALLE DEL CAUCA","76","ARGELIA","054","VALLE DEL CAUCAARGELIA","76054"]
["76100","VALLE DEL CAUCA","76","BOLIVAR","100","VALLE DEL CAUCABOLIVAR","76100"]
["76109","VALLE DEL CAUCA","76","BUENAVENTURA","109","VALLE DEL CAUCABUENAVENTURA","76109"]
["76111","VALLE DEL CAUCA","76","GUADALAJARA DE BUGA","111","VALLE DEL CAUCAGUADALAJARA DE BUGA","76111"]
["76113","VALLE DEL CAUCA","76","BUGALAGRANDE","113","VALLE DEL CAUCABUGALAGRANDE","76113"]
["76122","VALLE DEL CAUCA","76","CAICEDONIA","122","VALLE DEL CAUCACAICEDONIA","76122"]
["76126","VALLE DEL CAUCA","76","CALIMA","126","VALLE DEL CAUCACALIMA","76126"]
["76130","VALLE DEL CAUCA","76","CANDELARIA","130","VALLE DEL CAUCACANDELARIA","76130"]
["76147","VALLE DEL CAUCA","76","CARTAGO","147","VALLE DEL CAUCACARTAGO","76147"]
["76233","VALLE DEL CAUCA","76","DAGUA","233","VALLE DEL CAUCADAGUA","76233"]
["76243","VALLE DEL CAUCA","76","EL AGUILA","243","VALLE DEL CAUCAEL AGUILA","76243"]
["76246","VALLE DEL CAUCA","76","EL CAIRO","246","VALLE DEL CAUCAEL CAIRO","76246"]
["76248","VALLE DEL CAUCA","76","EL CERRITO","248","VALLE DEL CAUCAEL CERRITO","76248"]
["76250","VALLE DEL CAUCA","76","EL DOVIO","250","VALLE DEL CAUCAEL DOVIO","76250"]
["76275","VALLE DEL CAUCA","76","FLORIDA","275","VALLE DEL CAUCAFLORIDA","76275"]
["76306","VALLE DEL CAUCA","76","GINEBRA","306","VALLE DEL CAUCAGINEBRA","76306"]
["76318","VALLE DEL CAUCA","76","GUACARI","318","VALLE DEL CAUCAGUACARI","76318"]
["76364","VALLE DEL CAUCA","76","JAMUNDI","364","VALLE DEL CAUCAJAMUNDI",{"$f":"+CONCATENATE(C1028,E1028)","v":"76364"}]
["76377","VALLE DEL CAUCA","76","LA CUMBRE","377",{"$f":"+B1029&D1029","v":"VALLE DEL CAUCALA CUMBRE"},"76377"]
["76400","VALLE DEL CAUCA","76","LA UNION","400","VALLE DEL CAUCALA UNION","76400"]
["76403","VALLE DEL CAUCA","76","LA VICTORIA","403","VALLE DEL CAUCALA VICTORIA","76403"]
["76497","VALLE DEL CAUCA","76","OBANDO","497","VALLE DEL CAUCAOBANDO","76497"]
["76520","VALLE DEL CAUCA","76","PALMIRA","520","VALLE DEL CAUCAPALMIRA","76520"]
["76563","VALLE DEL CAUCA","76","PRADERA","563","VALLE DEL CAUCAPRADERA","76563"]
["76606","VALLE DEL CAUCA","76","RESTREPO","606","VALLE DEL CAUCARESTREPO","76606"]
["76616","VALLE DEL CAUCA","76","RIOFRIO","616","VALLE DEL CAUCARIOFRIO","76616"]
["76622","VALLE DEL CAUCA","76","ROLDANILLO","622","VALLE DEL CAUCAROLDANILLO","76622"]
["76670","VALLE DEL CAUCA","76","SAN PEDRO","670","VALLE DEL CAUCASAN PEDRO","76670"]
["76736","VALLE DEL CAUCA","76","SEVILLA","736","VALLE DEL CAUCASEVILLA","76736"]
["76823","VALLE DEL CAUCA","76","TORO","823","VALLE DEL CAUCATORO","76823"]
["76828","VALLE DEL CAUCA","76","TRUJILLO","828","VALLE DEL CAUCATRUJILLO","76828"]
["76834","VALLE DEL CAUCA","76","TULUA","834","VALLE DEL CAUCATULUA","76834"]
["76845","VALLE DEL CAUCA","76","ULLOA","845","VALLE DEL CAUCAULLOA","76845"]
["76863","VALLE DEL CAUCA","76","VERSALLES","863","VALLE DEL CAUCAVERSALLES","76863"]
["76869","VALLE DEL CAUCA","76","VIJES","869","VALLE DEL CAUCAVIJES","76869"]
["76890","VALLE DEL CAUCA","76","YOTOCO","890","VALLE DEL CAUCAYOTOCO","76890"]
["76892","VALLE DEL CAUCA","76","YUMBO","892","VALLE DEL CAUCAYUMBO","76892"]
["76895","VALLE DEL CAUCA","76","ZARZAL","895","VALLE DEL CAUCAZARZAL","76895"]
["81001","ARAUCA","81","ARAUCA","001","ARAUCAARAUCA","81001"]
["81065","ARAUCA","81","ARAUQUITA","065","ARAUCAARAUQUITA","81065"]
["81220","ARAUCA","81","CRAVO NORTE","220","ARAUCACRAVO NORTE","81220"]
["81300","ARAUCA","81","FORTUL","300","ARAUCAFORTUL","81300"]
["81591","ARAUCA","81","PUERTO RONDON","591","ARAUCAPUERTO RONDON","81591"]
["81736","ARAUCA","81","SARAVENA","736","ARAUCASARAVENA","81736"]
["81794","ARAUCA","81","TAME","794","ARAUCATAME","81794"]
["85001","CASANARE","85","YOPAL","001","CASANAREYOPAL","85001"]
["85010","CASANARE","85","AGUAZUL","010","CASANAREAGUAZUL","85010"]
["85015","CASANARE","85","CHAMEZA","015","CASANARECHAMEZA","85015"]
["85125","CASANARE","85","HATO COROZAL","125","CASANAREHATO COROZAL","85125"]
["85136","CASANARE","85","LA SALINA","136","CASANARELA SALINA","85136"]
["85139","CASANARE","85","MANI","139","CASANAREMANI","85139"]
["85162","CASANARE","85","MONTERREY","162","CASANAREMONTERREY","85162"]
["85225","CASANARE","85","NUNCHIA","225","CASANARENUNCHIA","85225"]
["85230","CASANARE","85","OROCUE","230","CASANAREOROCUE","85230"]
["85250","CASANARE","85","PAZ DE ARIPORO","250","CASANAREPAZ DE ARIPORO","85250"]
["85263","CASANARE","85","PORE","263","CASANAREPORE","85263"]
["85279","CASANARE","85","RECETOR","279","CASANARERECETOR","85279"]
["85300","CASANARE","85","SABANALARGA","300","CASANARESABANALARGA","85300"]
["85315","CASANARE","85","SACAMA","315","CASANARESACAMA","85315"]
["85325","CASANARE","85","SAN LUIS DE PALENQUE","325","CASANARESAN LUIS DE PALENQUE","85325"]
["85400","CASANARE","85","TAMARA","400","CASANARETAMARA","85400"]
["85410","CASANARE","85","TAURAMENA","410","CASANARETAURAMENA","85410"]
["85430","CASANARE","85","TRINIDAD","430","CASANARETRINIDAD","85430"]
["85440","CASANARE","85","VILLANUEVA","440","CASANAREVILLANUEVA","85440"]
["86001","PUTUMAYO","86","MOCOA","001","PUTUMAYOMOCOA","86001"]
["86219","PUTUMAYO","86","COLON","219","PUTUMAYOCOLON","86219"]
["86320","PUTUMAYO","86","ORITO","320","PUTUMAYOORITO","86320"]
["86568","PUTUMAYO","86","PUERTO ASIS","568","PUTUMAYOPUERTO ASIS","86568"]
["86569","PUTUMAYO","86","PUERTO CAICEDO","569","PUTUMAYOPUERTO CAICEDO","86569"]
["86571","PUTUMAYO","86","PUERTO GUZMAN","571","PUTUMAYOPUERTO GUZMAN","86571"]
["86573","PUTUMAYO","86","LEGUIZAMO","573","PUTUMAYOLEGUIZAMO","86573"]
["86749","PUTUMAYO","86","SIBUNDOY","749","PUTUMAYOSIBUNDOY","86749"]
["86755","PUTUMAYO","86","SAN FRANCISCO","755","PUTUMAYOSAN FRANCISCO","86755"]
["86757","PUTUMAYO","86","SAN MIGUEL","757","PUTUMAYOSAN MIGUEL","86757"]
["86760","PUTUMAYO","86","SANTIAGO","760","PUTUMAYOSANTIAGO","86760"]
["86865","PUTUMAYO","86","VALLE DEL GUAMUEZ","865","PUTUMAYOVALLE DEL GUAMUEZ","86865"]
["86885","PUTUMAYO","86","VILLAGARZON","885","PUTUMAYOVILLAGARZON","86885"]
["88001","SAN ANDRES","88","SAN ANDRES","001","SAN ANDRESSAN ANDRES","88001"]
["88564","SAN ANDRES","88","PROVIDENCIA","564","SAN ANDRESPROVIDENCIA","88564"]
["91001","AMAZONAS","91","LETICIA","001","AMAZONASLETICIA","91001"]
["91263","AMAZONAS","91","EL ENCANTO","263","AMAZONASEL ENCANTO","91263"]
["91405","AMAZONAS","91","LA CHORRERA","405","AMAZONASLA CHORRERA",{"$f":"+CONCATENATE(C1092,E1092)","v":"91405"}]
["91407","AMAZONAS","91","LA PEDRERA","407",{"$f":"+B1093&D1093","v":"AMAZONASLA PEDRERA"},"91407"]
["91430","AMAZONAS","91","LA VICTORIA",430,"AMAZONASLA VICTORIA","91430"]
["91460","AMAZONAS","91","MIRITI - PARANA","460","AMAZONASMIRITI - PARANA","91460"]
["91530","AMAZONAS","91","PUERTO ALEGRIA","530","AMAZONASPUERTO ALEGRIA","91530"]
["91536","AMAZONAS","91","PUERTO ARICA","536","AMAZONASPUERTO ARICA","91536"]
["91540","AMAZONAS","91","PUERTO NARIÑO","540","AMAZONASPUERTO NARIÑO","91540"]
["91669","AMAZONAS","91","PUERTO SANTANDER","669","AMAZONASPUERTO SANTANDER","91669"]
["91798","AMAZONAS","91","TARAPACA","798","AMAZONASTARAPACA","91798"]
["94001","GUAINIA","94","INIRIDA","001","GUAINIAINIRIDA","94001"]
["94343","GUAINIA","94","BARRANCO MINAS","343","GUAINIABARRANCO MINAS","94343"]
["94663","GUAINIA","94","MAPIRIPANA",663,"GUAINIAMAPIRIPANA","94663"]
["94883","GUAINIA","94","SAN FELIPE","883","GUAINIASAN FELIPE","94883"]
["94884","GUAINIA","94","PUERTO COLOMBIA","884","GUAINIAPUERTO COLOMBIA","94884"]
["94885","GUAINIA","94","LA GUADALUPE","885","GUAINIALA GUADALUPE","94885"]
["94886","GUAINIA","94","CACAHUAL","886","GUAINIACACAHUAL","94886"]
["94887","GUAINIA","94","PANA PANA",887,"GUAINIAPANA PANA","94887"]
["94888","GUAINIA","94","MORICHAL",888,"GUAINIAMORICHAL","94888"]
["95001","GUAVIARE","95","SAN JOSE DEL GUAVIARE","001","GUAVIARESAN JOSE DEL GUAVIARE","95001"]
["95015","GUAVIARE","95","CALAMAR","015","GUAVIARECALAMAR","95015"]
["95025","GUAVIARE","95","EL RETORNO","025","GUAVIAREEL RETORNO","95025"]
["95200","GUAVIARE","95","MIRAFLORES","200","GUAVIAREMIRAFLORES","95200"]
["97001","VAUPES","97","MITU","001","VAUPESMITU","97001"]
["97161","VAUPES","97","CARURU","161","VAUPESCARURU","97161"]
["97511","VAUPES",97,"PACOA",511,"VAUPESPACOA","97511"]
["97666","VAUPES","97","TARAIRA","666","VAUPESTARAIRA","97666"]
["97777","VAUPES","97","PAPUNAUA","777","VAUPESPAPUNAUA","97777"]
["97889","VAUPES","97","YAVARATE","889","VAUPESYAVARATE","97889"]
["99001","VICHADA","99","PUERTO CARREÑO","001","VICHADAPUERTO CARREÑO","99001"]
["99524","VICHADA","99","LA PRIMAVERA","524","VICHADALA PRIMAVERA","99524"]
["99624","VICHADA","99","SANTA ROSALIA","624","VICHADASANTA ROSALIA","99624"]
["99773","VICHADA","99","CUMARIBO","773","VICHADACUMARIBO","99773"]

{"sheet":"Mcpio","index":3,"n_rows":126,"n_cols":33,"rows_kept":126,"cut":false,"hidden":true,"merged":[]}
["ANTIOQUIA","ATLANTICO","BOGOTA","BOLIVAR","BOYACA","CALDAS","CAQUETA","CAUCA","CESAR","CORDOBA","CUNDINAMARCA","CHOCO","HUILA","LA GUAJIRA","MAGDALENA","META","NARIÑO","N. DE SANTANDER","QUINDIO","RISARALDA","SANTANDER","SUCRE","TOLIMA","VALLE DEL CAUCA","ARAUCA","CASANARE","PUTUMAYO","SAN ANDRES","AMAZONAS","GUAINIA","GUAVIARE","VAUPES","VICHADA"]
["ABEJORRAL","BARANOA","BOGOTA, D.C.","ACHI","ALMEIDA","AGUADAS","ALBANIA","ALMAGUER","AGUACHICA","AYAPEL","AGUA DE DIOS","ACANDI","ACEVEDO","ALBANIA","ALGARROBO","ACACIAS","ALBAN","ABREGO","ARMENIA","APIA","AGUADA","BUENAVISTA","ALPUJARRA","ALCALA","ARAUCA","AGUAZUL","COLON","SAN ANDRES","EL ENCANTO","INIRIDA","CALAMAR","CARURU","CUMARIBO"]
["ABRIAQUI","BARRANQUILLA",null,"ALTOS DEL ROSARIO","AQUITANIA","ANSERMA","BELEN DE LOS ANDAQUIES","ARGELIA","AGUSTIN CODAZZI","BUENAVISTA","ALBAN","ALTO BAUDO","AGRADO","BARRANCAS","ARACATACA","BARRANCA DE UPIA","ALDANA","ARBOLEDAS","BUENAVISTA","BALBOA","ALBANIA","CAIMITO","ALVARADO","ANDALUCIA","ARAUQUITA","CHAMEZA","MOCOA","PROVIDENCIA","LA CHORRERA","BARRANCO MINAS","EL RETORNO","MITU","LA PRIMAVERA"]
["ALEJANDRIA","CAMPO DE LA CRUZ",null,"ARENAL","ARCABUCO","ARANZAZU","CARTAGENA DEL CHAIRA","BALBOA","ASTREA","CANALETE","ANAPOIMA","ATRATO","AIPE","DIBULLA","ARIGUANI","CABUYARO","ANCUYA","BOCHALEMA","CALARCA","BELEN DE UMBRIA","ARATOCA","COLOSO","AMBALEMA","ANSERMANUEVO","CRAVO NORTE","HATO COROZAL","ORITO",null,"LA PEDRERA","MAPIRIPANA","MIRAFLORES","PACOA","PUERTO CARREÑO"]
["AMAGA","CANDELARIA",null,"ARJONA","BELEN","BELALCAZAR","CURILLO","BOLIVAR","BECERRIL","CERETE","ANOLAIMA","BAGADO","ALGECIRAS","DISTRACCION","CERRO SAN ANTONIO","CASTILLA LA NUEVA","ARBOLEDA","BUCARASICA","CIRCASIA","DOSQUEBRADAS","BARBOSA","COROZAL","ANZOATEGUI","ARGELIA","FORTUL","LA SALINA","PUERTO ASIS",null,"LA VICTORIA","SAN FELIPE","SAN JOSE DEL GUAVIARE","TARAIRA","SANTA ROSALIA"]
["AMALFI","GALAPA",null,"ARROYOHONDO","BERBEO","CHINCHINA","EL DONCELLO","BUENOS AIRES","BOSCONIA","CHIMA","ARBELAEZ","BAHIA SOLANO","ALTAMIRA","EL MOLINO","CHIBOLO","CUBARRAL","BARBACOAS","CACOTA","CORDOBA","GUATICA","BARICHARA","COVEÑAS","ARMERO","BOLIVAR","PUERTO RONDON","MANI","PUERTO CAICEDO",null,"LETICIA","PUERTO COLOMBIA",null,"PAPUNAUA"]
["ANDES","JUAN DE ACOSTA",null,"BARRANCO DE LOBA","BETEITIVA","FILADELFIA","EL PAUJIL","CAJIBIO","CHIMICHAGUA","CHINU","BELTRAN","BAJO BAUDO","BARAYA","FONSECA","CIENAGA","CUMARAL","BELEN","CACHIRA","FILANDIA","LA CELIA","BARRANCABERMEJA","CHALAN","ATACO","BUENAVENTURA","SARAVENA","MONTERREY","PUERTO GUZMAN",null,"MIRITI - PARANA","LA GUADALUPE",null,"YAVARATE"]
["ANGELOPOLIS","LURUACO",null,"CALAMAR","BOAVITA","LA DORADA","FLORENCIA","CALDONO","CHIRIGUANA","CIENAGA DE ORO","BITUIMA","BOJAYA","CAMPOALEGRE","HATONUEVO","CONCORDIA","EL CALVARIO","BUESACO","CHINACOTA","GENOVA","LA VIRGINIA","BETULIA","EL ROBLE","CAJAMARCA","GUADALAJARA DE BUGA","TAME","NUNCHIA","LEGUIZAMO",null,"PUERTO ALEGRIA","CACAHUAL"]
["ANGOSTURA","MALAMBO",null,"CANTAGALLO","BOYACA","LA MERCED","LA MONTAÑITA","CALOTO","CURUMANI","COTORRA","BOJACA","EL CANTON DEL SAN PABLO","COLOMBIA","LA JAGUA DEL PILAR","EL BANCO","EL CASTILLO","COLON","CHITAGA","LA TEBAIDA","MARSELLA","BOLIVAR","GALERAS","CARMEN DE APICALA","BUGALAGRANDE",null,"OROCUE","SIBUNDOY",null,"PUERTO ARICA","PANA PANA"]
["ANORI","MANATI",null,"CARTAGENA","BRICEÑO","MANIZALES","MILAN","CORINTO","EL COPEY","LA APARTADA","CABRERA","CARMEN DEL DARIEN","ELIAS","MAICAO","EL PIÑON","EL DORADO","CONSACA","CONVENCION","MONTENEGRO","MISTRATO","BUCARAMANGA","GUARANDA","CASABIANCA","CAICEDONIA",null,"PAZ DE ARIPORO","SAN FRANCISCO",null,"PUERTO NARIÑO","MORICHAL"]
["SANTAFE DE ANTIOQUIA","PALMAR DE VARELA",null,"CICUCO","BUENAVISTA","MANZANARES","MORELIA","EL TAMBO","EL PASO","LORICA","CACHIPAY","CERTEGUI","GARZON","MANAURE","EL RETEN","FUENTE DE ORO","CONTADERO","CUCUTA","PIJAO","PEREIRA","CABRERA","LA UNION","CHAPARRAL","CALI",null,"PORE","SAN MIGUEL",null,"PUERTO SANTANDER"]
["ANZA","PIOJO",null,"CORDOBA","BUSBANZA","MARMATO","PUERTO RICO","FLORENCIA","GAMARRA","LOS CORDOBAS","CAJICA","CONDOTO","GIGANTE","RIOHACHA","FUNDACION","GRANADA","CORDOBA","CUCUTILLA","QUIMBAYA","PUEBLO RICO","CALIFORNIA","LOS PALMITOS","COELLO","CALIMA",null,"RECETOR","SANTIAGO",null,"TARAPACA"]
["APARTADO","POLONUEVO",null,"CLEMENCIA","CALDAS","MARQUETALIA","SAN JOSE DEL FRAGUA","GUACHENE","GONZALEZ","MOMIL","CAPARRAPI","EL CARMEN DE ATRATO","GUADALUPE","SAN JUAN DEL CESAR","GUAMAL","GUAMAL","CUASPUD","DURANIA","SALENTO","QUINCHIA","CAPITANEJO","MAJAGUAL","COYAIMA","CANDELARIA",null,"SABANALARGA","VALLE DEL GUAMUEZ"]
["ARBOLETES","PONEDERA",null,"EL CARMEN DE BOLIVAR","CAMPOHERMOSO","MARULANDA","SAN VICENTE DEL CAGUAN","GUAPI","LA GLORIA","MONTELIBANO","CAQUEZA","EL LITORAL DEL SAN JUAN","HOBO","URIBIA","NUEVA GRANADA","MAPIRIPAN","CUMBAL","EL CARMEN",null,"SANTA ROSA DE CABAL","CARCASI","MORROA","CUNDAY","CARTAGO",null,"SACAMA","VILLAGARZON"]
["ARGELIA","PUERTO COLOMBIA",null,"EL GUAMO","CERINZA","NEIRA","SOLANO","INZA","LA JAGUA DE IBIRICO","MONTERIA","CARMEN DE CARUPA","ISTMINA","IQUIRA","URUMITA","PEDRAZA","MESETAS","CUMBITARA","EL TARRA",null,"SANTUARIO","CEPITA","OVEJAS","DOLORES","DAGUA",null,"SAN LUIS DE PALENQUE"]
["ARMENIA","REPELON",null,"EL PEÑON","CHINAVITA","NORCASIA","SOLITA","JAMBALO","MANAURE","MOÑITOS","CHAGUANI","JURADO","ISNOS","VILLANUEVA","PIJIÑO DEL CARMEN","LA MACARENA","CHACHAGsI","EL ZULIA",null,null,"CERRITO","PALMITO","ESPINAL","EL AGUILA",null,"TAMARA"]
["BARBOSA","SABANAGRANDE",null,"HATILLO DE LOBA","CHIQUINQUIRA","PACORA","VALPARAISO","LA SIERRA","PAILITAS","PLANETA RICA","CHIA","LLORO","LA ARGENTINA",null,"PIVIJAY","URIBE","EL CHARCO","GRAMALOTE",null,null,"CHARALA","SAMPUES","FALAN","EL CAIRO",null,"TAURAMENA"]
["BELMIRA","SABANALARGA",null,"MAGANGUE","CHISCAS","PALESTINA",null,"LA VEGA","PELAYA","PUEBLO NUEVO","CHIPAQUE","MEDIO ATRATO","LA PLATA",null,"PLATO","LEJANIAS","EL PEÑOL","HACARI",null,null,"CHARTA","SAN BENITO ABAD","FLANDES","EL CERRITO",null,"TRINIDAD"]
["BELLO","SANTA LUCIA",null,"MAHATES","CHITA","PENSILVANIA",null,"LOPEZ","PUEBLO BELLO","PUERTO ESCONDIDO","CHOACHI","MEDIO BAUDO","NATAGA",null,"PUEBLOVIEJO","PUERTO CONCORDIA","EL ROSARIO","HERRAN",null,null,"CHIMA","SAN JUAN DE BETULIA","FRESNO","EL DOVIO",null,"VILLANUEVA"]
["BETANIA","SANTO TOMAS",null,"MARGARITA","CHITARAQUE","RIOSUCIO",null,"MERCADERES","RIO DE ORO","PUERTO LIBERTADOR","CHOCONTA","MEDIO SAN JUAN","NEIVA",null,"REMOLINO","PUERTO GAITAN","EL TABLON DE GOMEZ","LABATECA",null,null,"CHIPATA","SAN MARCOS","GUAMO","FLORIDA",null,"YOPAL"]
["BETULIA","SOLEDAD",null,"MARIA LA BAJA","CHIVATA","RISARALDA",null,"MIRANDA","LA PAZ","PURISIMA","COGUA","NOVITA","OPORAPA",null,"SABANAS DE SAN ANGEL","PUERTO LOPEZ","EL TAMBO","LA ESPERANZA",null,null,"CIMITARRA","SAN ONOFRE","HERVEO","GINEBRA"]
["CIUDAD BOLIVAR","SUAN",null,"MONTECRISTO","CIENEGA","SALAMINA",null,"MORALES","SAN ALBERTO","SAHAGUN","COTA","NUQUI","PAICOL",null,"SALAMINA","PUERTO LLERAS","FUNES","LA PLAYA",null,null,"CONCEPCION","SAN PEDRO","HONDA","GUACARI"]
["BRICEÑO","TUBARA",null,"MOMPOS","COMBITA","SAMANA",null,"PADILLA","SAN DIEGO","SAN ANDRES SOTAVENTO","CUCUNUBA","QUIBDO","PALERMO",null,"SAN SEBASTIAN DE BUENAVISTA","PUERTO RICO","GUACHUCAL","LOS PATIOS",null,null,"CONFINES","SAN LUIS DE SINCE","IBAGUE","JAMUNDI"]
["BURITICA","USIACURI",null,"NOROSI","COPER","SAN JOSE",null,"PAEZ","SAN MARTIN","SAN ANTERO","EL COLEGIO","RIO IRO","PALESTINA",null,"SAN ZENON","RESTREPO","GUAITARILLA","LOURDES",null,null,"CONTRATACION","SUCRE","ICONONZO","LA CUMBRE"]
["CACERES",null,null,"MORALES","CORRALES","SUPIA",null,"PATIA","TAMALAMEQUE","SAN BERNARDO DEL VIENTO","EL PEÑON","RIO QUITO","PITAL",null,"SANTA ANA","SAN CARLOS DE GUAROA","GUALMATAN","MUTISCUA",null,null,"COROMORO","SANTIAGO DE TOLU","LERIDA","LA UNION"]
["CAICEDO",null,null,"PINILLOS","COVARACHIA","VICTORIA",null,"PIAMONTE","VALLEDUPAR","SAN CARLOS","EL ROSAL","RIOSUCIO","PITALITO",null,"SANTA BARBARA DE PINTO","SAN JUAN DE ARAMA","ILES","OCAÑA",null,null,"CURITI","SINCELEJO","LIBANO","LA VICTORIA"]
["CALDAS",null,null,"REGIDOR","CUBARA","VILLAMARIA",null,"PIENDAMO",null,"SAN PELAYO","FACATATIVA","SAN JOSE DEL PALMAR","RIVERA",null,"SANTA MARTA","SAN JUANITO","IMUES","PAMPLONA",null,null,"EL CARMEN DE CHUCURI","TOLU VIEJO","MARIQUITA","OBANDO"]
["CAMPAMENTO",null,null,"RIO VIEJO","CUCAITA","VITERBO",null,"POPAYAN",null,"TIERRALTA","FOMEQUE","SIPI","SALADOBLANCO",null,"SITIONUEVO","SAN MARTIN","IPIALES","PAMPLONITA",null,null,"EL GUACAMAYO",null,"MELGAR","PALMIRA"]
["CAÑASGORDAS",null,null,"SAN CRISTOBAL","CUITIVA",null,null,"PUERTO TEJADA",null,"VALENCIA","FOSCA","TADO","SAN AGUSTIN",null,"TENERIFE","VILLAVICENCIO","LA CRUZ","PUERTO SANTANDER",null,null,"EL PEÑON",null,"MURILLO","PRADERA"]
["CARACOLI",null,null,"SAN ESTANISLAO","CHIQUIZA",null,null,"PURACE",null,null,"FUNZA","UNGUIA","SANTA MARIA",null,"ZAPAYAN","VISTAHERMOSA","LA FLORIDA","RAGONVALIA",null,null,"EL PLAYON",null,"NATAGAIMA","RESTREPO"]
["CARAMANTA",null,null,"SAN FERNANDO","CHIVOR",null,null,"ROSAS",null,null,"FUQUENE","UNION PANAMERICANA","SUAZA",null,"ZONA BANANERA",null,"LA LLANADA","SALAZAR",null,null,"ENCINO",null,"ORTEGA","RIOFRIO"]
["CAREPA",null,null,"SAN JACINTO","DUITAMA",null,null,"SAN SEBASTIAN",null,null,"FUSAGASUGA",null,"TARQUI",null,null,null,"LA TOLA","SAN CALIXTO",null,null,"ENCISO",null,"PALOCABILDO","ROLDANILLO"]
["EL CARMEN DE VIBORAL",null,null,"SAN JACINTO DEL CAUCA","EL COCUY",null,null,"SANTANDER DE QUILICHAO",null,null,"GACHALA",null,"TESALIA",null,null,null,"LA UNION","SAN CAYETANO",null,null,"FLORIAN",null,"PIEDRAS","SAN PEDRO"]
["CAROLINA",null,null,"SAN JUAN NEPOMUCENO","EL ESPINO",null,null,"SANTA ROSA",null,null,"GACHANCIPA",null,"TELLO",null,null,null,"LEIVA","SANTIAGO",null,null,"FLORIDABLANCA",null,"PLANADAS","SEVILLA"]
["CAUCASIA",null,null,"SAN MARTIN DE LOBA","FIRAVITOBA",null,null,"SILVIA",null,null,"GACHETA",null,"TERUEL",null,null,null,"LINARES","SARDINATA",null,null,"GALAN",null,"PRADO","TORO"]
["CHIGORODO",null,null,"SAN PABLO","FLORESTA",null,null,"SOTARA",null,null,"GAMA",null,"TIMANA",null,null,null,"LOS ANDES","SILOS",null,null,"GAMBITA",null,"PURIFICACION","TRUJILLO"]
["CISNEROS",null,null,"SANTA CATALINA","GACHANTIVA",null,null,"SUAREZ",null,null,"GIRARDOT",null,"VILLAVIEJA",null,null,null,"MAGsI","TEORAMA",null,null,"GIRON",null,"RIOBLANCO","TULUA"]
["COCORNA",null,null,"SANTA ROSA","GAMEZA",null,null,"SUCRE",null,null,"GRANADA",null,"YAGUARA",null,null,null,"MALLAMA","TIBU",null,null,"GUACA",null,"RONCESVALLES","ULLOA"]
["CONCEPCION",null,null,"SANTA ROSA DEL SUR","GARAGOA",null,null,"TIMBIO",null,null,"GUACHETA",null,null,null,null,null,"MOSQUERA","TOLEDO",null,null,"GUADALUPE",null,"ROVIRA","VERSALLES"]
["CONCORDIA",null,null,"SIMITI","GUACAMAYAS",null,null,"TIMBIQUI",null,null,"GUADUAS",null,null,null,null,null,"NARIÑO","VILLA CARO",null,null,"GUAPOTA",null,"SALDAÑA","VIJES"]
["COPACABANA",null,null,"SOPLAVIENTO","GUATEQUE",null,null,"TORIBIO",null,null,"GUASCA",null,null,null,null,null,"OLAYA HERRERA","VILLA DEL ROSARIO",null,null,"GUAVATA",null,"SAN ANTONIO","YOTOCO"]
["DABEIBA",null,null,"TALAIGUA NUEVO","GUAYATA",null,null,"TOTORO",null,null,"GUATAQUI",null,null,null,null,null,"OSPINA",null,null,null,"GsEPSA",null,"SAN LUIS","YUMBO"]
["DON MATIAS",null,null,"TIQUISIO","GsICAN",null,null,"VILLA RICA",null,null,"GUATAVITA",null,null,null,null,null,"FRANCISCO PIZARRO",null,null,null,"HATO",null,"SANTA ISABEL","ZARZAL"]
["EBEJICO",null,null,"TURBACO","IZA",null,null,null,null,null,"GUAYABAL DE SIQUIMA",null,null,null,null,null,"PASTO",null,null,null,"JESUS MARIA",null,"SUAREZ"]
["EL BAGRE",null,null,"TURBANA","JENESANO",null,null,null,null,null,"GUAYABETAL",null,null,null,null,null,"POLICARPA",null,null,null,"JORDAN",null,"VALLE DE SAN JUAN"]
["ENTRERRIOS",null,null,"VILLANUEVA","JERICO",null,null,null,null,null,"GUTIERREZ",null,null,null,null,null,"POTOSI",null,null,null,"LA BELLEZA",null,"VENADILLO"]
["ENVIGADO",null,null,"ZAMBRANO","LABRANZAGRANDE",null,null,null,null,null,"JERUSALEN",null,null,null,null,null,"PROVIDENCIA",null,null,null,"LANDAZURI",null,"VILLAHERMOSA"]
["FREDONIA",null,null,null,"LA CAPILLA",null,null,null,null,null,"JUNIN",null,null,null,null,null,"PUERRES",null,null,null,"LA PAZ",null,"VILLARRICA"]
["FRONTINO",null,null,null,"LA VICTORIA",null,null,null,null,null,"LA CALERA",null,null,null,null,null,"PUPIALES",null,null,null,"LEBRIJA"]
["GIRALDO",null,null,null,"LA UVITA",null,null,null,null,null,"LA MESA",null,null,null,null,null,"RICAURTE",null,null,null,"LOS SANTOS"]
["GIRARDOTA",null,null,null,"VILLA DE LEYVA",null,null,null,null,null,"LA PALMA",null,null,null,null,null,"ROBERTO PAYAN",null,null,null,"MACARAVITA"]
["GOMEZ PLATA",null,null,null,"MACANAL",null,null,null,null,null,"LA PEÑA",null,null,null,null,null,"SAMANIEGO",null,null,null,"MALAGA"]
["GRANADA",null,null,null,"MARIPI",null,null,null,null,null,"LA VEGA",null,null,null,null,null,"SANDONA",null,null,null,"MATANZA"]
["GUADALUPE",null,null,null,"MIRAFLORES",null,null,null,null,null,"LENGUAZAQUE",null,null,null,null,null,"SAN BERNARDO",null,null,null,"MOGOTES"]
["GUARNE",null,null,null,"MONGUA",null,null,null,null,null,"MACHETA",null,null,null,null,null,"SAN LORENZO",null,null,null,"MOLAGAVITA"]
["GUATAPE",null,null,null,"MONGUI",null,null,null,null,null,"MADRID",null,null,null,null,null,"SAN PABLO",null,null,null,"OCAMONTE"]
["HELICONIA",null,null,null,"MONIQUIRA",null,null,null,null,null,"MANTA",null,null,null,null,null,"SAN PEDRO DE CARTAGO",null,null,null,"OIBA"]
["HISPANIA",null,null,null,"MOTAVITA",null,null,null,null,null,"MEDINA",null,null,null,null,null,"SANTA BARBARA",null,null,null,"ONZAGA"]
["ITAGUI",null,null,null,"MUZO",null,null,null,null,null,"MOSQUERA",null,null,null,null,null,"SANTACRUZ",null,null,null,"PALMAR"]
["ITUANGO",null,null,null,"NOBSA",null,null,null,null,null,"NARIÑO",null,null,null,null,null,"SAPUYES",null,null,null,"PALMAS DEL SOCORRO"]
["JARDIN",null,null,null,"NUEVO COLON",null,null,null,null,null,"NEMOCON",null,null,null,null,null,"TAMINANGO",null,null,null,"PARAMO"]
["JERICO",null,null,null,"OICATA",null,null,null,null,null,"NILO",null,null,null,null,null,"TANGUA",null,null,null,"PIEDECUESTA"]
["LA CEJA",null,null,null,"OTANCHE",null,null,null,null,null,"NIMAIMA",null,null,null,null,null,"SAN ANDRES DE TUMACO",null,null,null,"PINCHOTE"]
["LA ESTRELLA",null,null,null,"PACHAVITA",null,null,null,null,null,"NOCAIMA",null,null,null,null,null,"TUQUERRES",null,null,null,"PUENTE NACIONAL"]
["LA PINTADA",null,null,null,"PAEZ",null,null,null,null,null,"VENECIA",null,null,null,null,null,"YACUANQUER",null,null,null,"PUERTO PARRA"]
["LA UNION",null,null,null,"PAIPA",null,null,null,null,null,"PACHO",null,null,null,null,null,null,null,null,null,"PUERTO WILCHES"]
["LIBORINA",null,null,null,"PAJARITO",null,null,null,null,null,"PAIME",null,null,null,null,null,null,null,null,null,"RIONEGRO"]
["MACEO",null,null,null,"PANQUEBA",null,null,null,null,null,"PANDI",null,null,null,null,null,null,null,null,null,"SABANA DE TORRES"]
["MARINILLA",null,null,null,"PAUNA",null,null,null,null,null,"PARATEBUENO",null,null,null,null,null,null,null,null,null,"SAN ANDRES"]
["MEDELLIN",null,null,null,"PAYA",null,null,null,null,null,"PASCA",null,null,null,null,null,null,null,null,null,"SAN BENITO"]
["MONTEBELLO",null,null,null,"PAZ DE RIO",null,null,null,null,null,"PUERTO SALGAR",null,null,null,null,null,null,null,null,null,"SAN GIL"]
["MURINDO",null,null,null,"PESCA",null,null,null,null,null,"PULI",null,null,null,null,null,null,null,null,null,"SAN JOAQUIN"]
["MUTATA",null,null,null,"PISBA",null,null,null,null,null,"QUEBRADANEGRA",null,null,null,null,null,null,null,null,null,"SAN JOSE DE MIRANDA"]
["NARIÑO",null,null,null,"PUERTO BOYACA",null,null,null,null,null,"QUETAME",null,null,null,null,null,null,null,null,null,"SAN MIGUEL"]
["NECOCLI",null,null,null,"QUIPAMA",null,null,null,null,null,"QUIPILE",null,null,null,null,null,null,null,null,null,"SAN VICENTE DE CHUCURI"]
["NECHI",null,null,null,"RAMIRIQUI",null,null,null,null,null,"APULO",null,null,null,null,null,null,null,null,null,"SANTA BARBARA"]
["OLAYA",null,null,null,"RAQUIRA",null,null,null,null,null,"RICAURTE",null,null,null,null,null,null,null,null,null,"SANTA HELENA DEL OPON"]
["PEÐOL",null,null,null,"RONDON",null,null,null,null,null,"SAN ANTONIO DEL TEQUENDAMA",null,null,null,null,null,null,null,null,null,"SIMACOTA"]
["PEQUE",null,null,null,"SABOYA",null,null,null,null,null,"SAN BERNARDO",null,null,null,null,null,null,null,null,null,"SOCORRO"]
["PUEBLORRICO",null,null,null,"SACHICA",null,null,null,null,null,"SAN CAYETANO",null,null,null,null,null,null,null,null,null,"SUAITA"]
["PUERTO BERRIO",null,null,null,"SAMACA",null,null,null,null,null,"SAN FRANCISCO",null,null,null,null,null,null,null,null,null,"SUCRE"]
["PUERTO NARE",null,null,null,"SAN EDUARDO",null,null,null,null,null,"SAN JUAN DE RIO SECO",null,null,null,null,null,null,null,null,null,"SURATA"]
["PUERTO TRIUNFO",null,null,null,"SAN JOSE DE PARE",null,null,null,null,null,"SASAIMA",null,null,null,null,null,null,null,null,null,"TONA"]
["REMEDIOS",null,null,null,"SAN LUIS DE GACENO",null,null,null,null,null,"SESQUILE",null,null,null,null,null,null,null,null,null,"VALLE DE SAN JOSE"]
["RETIRO",null,null,null,"SAN MATEO",null,null,null,null,null,"SIBATE",null,null,null,null,null,null,null,null,null,"VELEZ"]
["RIONEGRO",null,null,null,"SAN MIGUEL DE SEMA",null,null,null,null,null,"SILVANIA",null,null,null,null,null,null,null,null,null,"VETAS"]
["SABANALARGA",null,null,null,"SAN PABLO DE BORBUR",null,null,null,null,null,"SIMIJACA",null,null,null,null,null,null,null,null,null,"VILLANUEVA"]
["SABANETA",null,null,null,"SANTANA",null,null,null,null,null,"SOACHA",null,null,null,null,null,null,null,null,null,"ZAPATOCA"]
["SALGAR",null,null,null,"SANTA MARIA",null,null,null,null,null,"SOPO"]
["SAN ANDRES DE CUERQUIA",null,null,null,"SANTA ROSA DE VITERBO",null,null,null,null,null,"SUBACHOQUE"]
["SAN CARLOS",null,null,null,"SANTA SOFIA",null,null,null,null,null,"SUESCA"]
["SAN FRANCISCO",null,null,null,"SATIVANORTE",null,null,null,null,null,"SUPATA"]
["SAN JERONIMO",null,null,null,"SATIVASUR",null,null,null,null,null,"SUSA"]
["SAN JOSE DE LA MONTAÑA",null,null,null,"SIACHOQUE",null,null,null,null,null,"SUTATAUSA"]
["SAN JUAN DE URABA",null,null,null,"SOATA",null,null,null,null,null,"TABIO"]
["SAN LUIS",null,null,null,"SOCOTA",null,null,null,null,null,"TAUSA"]
["SAN PEDRO",null,null,null,"SOCHA",null,null,null,null,null,"TENA"]
["SAN PEDRO DE URABA",null,null,null,"SOGAMOSO",null,null,null,null,null,"TENJO"]
["SAN RAFAEL",null,null,null,"SOMONDOCO",null,null,null,null,null,"TIBACUY"]
["SAN ROQUE",null,null,null,"SORA",null,null,null,null,null,"TIBIRITA"]
["SAN VICENTE",null,null,null,"SOTAQUIRA",null,null,null,null,null,"TOCAIMA"]
["SANTA BARBARA",null,null,null,"SORACA",null,null,null,null,null,"TOCANCIPA"]
["SANTA ROSA DE OSOS",null,null,null,"SUSACON",null,null,null,null,null,"TOPAIPI"]
["SANTO DOMINGO",null,null,null,"SUTAMARCHAN",null,null,null,null,null,"UBALA"]
["EL SANTUARIO",null,null,null,"SUTATENZA",null,null,null,null,null,"UBAQUE"]
["SEGOVIA",null,null,null,"TASCO",null,null,null,null,null,"VILLA DE SAN DIEGO DE UBATE"]
["SONSON",null,null,null,"TENZA",null,null,null,null,null,"UNE"]
["SOPETRAN",null,null,null,"TIBANA",null,null,null,null,null,"UTICA"]
["TAMESIS",null,null,null,"TIBASOSA",null,null,null,null,null,"VERGARA"]
["TARAZA",null,null,null,"TINJACA",null,null,null,null,null,"VIANI"]
["TARSO",null,null,null,"TIPACOQUE",null,null,null,null,null,"VILLAGOMEZ"]
["TITIRIBI",null,null,null,"TOCA",null,null,null,null,null,"VILLAPINZON"]
["TOLEDO",null,null,null,"TOGsI",null,null,null,null,null,"VILLETA"]
["TURBO",null,null,null,"TOPAGA",null,null,null,null,null,"VIOTA"]
["URAMITA",null,null,null,"TOTA",null,null,null,null,null,"YACOPI"]
["URRAO",null,null,null,"TUNJA",null,null,null,null,null,"ZIPACON"]
["VALDIVIA",null,null,null,"TUNUNGUA",null,null,null,null,null,"ZIPAQUIRA"]
["VALPARAISO",null,null,null,"TURMEQUE"]
["VEGACHI",null,null,null,"TUTA"]
["VENECIA",null,null,null,"TUTAZA"]
["VIGIA DEL FUERTE",null,null,null,"UMBITA"]
["YALI",null,null,null,"VENTAQUEMADA"]
["YARUMAL",null,null,null,"VIRACACHA"]
["YOLOMBO",null,null,null,"ZETAQUIRA"]
["YONDO"]
["ZARAGOZA"]